Body,BodyName,ServiceLabel,ServiceDivisionLabel,ExpenditureCategory,DetailedExpenditureType,DetailedExpenditureCode,DatePaid,TransactionNumber,NetAmount,CapitalOrRevenue,SupplierName
http://statistics.data.gov.uk/doc/local-authority/00DA,Leeds City Council,Central & Corporate,Commercial Services Trading Services,Supplies and Services,Operational Materials,205,20-Jun-13,1306-00001,1240,R,A J H  Pump Supply & Repair Ltd
http://statistics.data.gov.uk/doc/local-authority/00DA,Leeds City Council,Central & Corporate,Commercial Services Trading Services,Supplies and Services,Operational Materials,205,20-Jun-13,1306-00002,2100,R,A J H  Pump Supply & Repair Ltd
http://statistics.data.gov.uk/doc/local-authority/00DA,Leeds City Council,Central & Corporate,Commercial Services Trading Services,Supplies and Services,Other Hired And Contracted Services,265,18-Jun-13,1306-00003,1752,R,A J H  Pump Supply & Repair Ltd
http://statistics.data.gov.uk/doc/local-authority/00DA,Leeds City Council,City Development,Libraries   Arts & Heritage,Supplies and Services,Publication And Promotion,267,28-Jun-13,1306-00004,1100,R,A J Promotions
http://statistics.data.gov.uk/doc/local-authority/00DA,Leeds City Council,Environment & Housing,Parks & Countryside,Supplies and Services,Resaleable Materials,204,06-Jun-13,1306-00005,786.84,R,A J Promotions
http://statistics.data.gov.uk/doc/local-authority/00DA,Leeds City Council,Childrens Services,Safeguarding Targeted & Specialist,Third Party Payments,General External Residential Placements,507,07-Jun-13,1306-00006,13000,R,A Lowrie Care Service Limited
http://statistics.data.gov.uk/doc/local-authority/00DA,Leeds City Council,Childrens Services,Safeguarding Targeted & Specialist,Third Party Payments,General External Residential Placements,507,07-Jun-13,1306-00007,13000,R,A Lowrie Care Service Limited
http://statistics.data.gov.uk/doc/local-authority/00DA,Leeds City Council,Childrens Services,Safeguarding Targeted & Specialist,Third Party Payments,General External Residential Placements,507,17-Jun-13,1306-00008,13000,R,A Lowrie Care Service Limited
http://statistics.data.gov.uk/doc/local-authority/00DA,Leeds City Council,Childrens Services,Safeguarding Targeted & Specialist,Third Party Payments,General External Residential Placements,507,07-Jun-13,1306-00009,14000,R,A Lowrie Care Service Limited
http://statistics.data.gov.uk/doc/local-authority/00DA,Leeds City Council,Childrens Services,Safeguarding Targeted & Specialist,Third Party Payments,General External Residential Placements,507,07-Jun-13,1306-00010,14000,R,A Lowrie Care Service Limited
http://statistics.data.gov.uk/doc/local-authority/00DA,Leeds City Council,Childrens Services,Safeguarding Targeted & Specialist,Third Party Payments,General External Residential Placements,507,17-Jun-13,1306-00011,14000,R,A Lowrie Care Service Limited
http://statistics.data.gov.uk/doc/local-authority/00DA,Leeds City Council,Environment & Housing,Statutory Housing,Supplies and Services,Other Hired And Contracted Services,265,25-Jun-13,1306-00012,500,R,A Macdonald Properties
http://statistics.data.gov.uk/doc/local-authority/00DA,Leeds City Council,Central & Corporate,Customer Services,Supplies and Services,Other Hired And Contracted Services,265,05-Jun-13,1306-00013,605.5,R,A Namaki
http://statistics.data.gov.uk/doc/local-authority/00DA,West - North West            ,West - North West,Property And Maintenance,Premises,General Maintenance,104,13-Jun-13,1306-00014,4700,R,REDACTED PERSONAL DATA
http://statistics.data.gov.uk/doc/local-authority/00DA,Leeds City Council,Adult Social Care,Services For Older People Under 65 P/Dis,Transfer Payments,Direct Payments,626,05-Jun-13,1306-00015,1161.42,R,REDACTED PERSONAL DATA
http://statistics.data.gov.uk/doc/local-authority/00DA,Leeds City Council,Central & Corporate,Customer Services,Supplies and Services,Other Hired And Contracted Services,265,05-Jun-13,1306-00016,434.75,R,A Sheikholeslami
http://statistics.data.gov.uk/doc/local-authority/00DA,Leeds City Council,Central & Corporate,Customer Services,Supplies and Services,Other Hired And Contracted Services,265,05-Jun-13,1306-00017,2685.76,R,A Sheikholeslami
http://statistics.data.gov.uk/doc/local-authority/00DA,Leeds City Council,Adult Social Care,Services For Older People Under 65 P/Dis,Transfer Payments,Direct Payments,626,05-Jun-13,1306-00018,1384.16,R,REDACTED PERSONAL DATA
http://statistics.data.gov.uk/doc/local-authority/00DA,Leeds City Council,Adult Social Care,Services For Older People - 65 And Over,Transfer Payments,Personalised Budgets,627,05-Jun-13,1306-00019,4142.89,R,REDACTED PERSONAL DATA
http://statistics.data.gov.uk/doc/local-authority/00DA,Leeds City Council,Adult Social Care,Services For Older People - 65 And Over,Third Party Payments,Residential Care Dementia,571,05-Jun-13,1306-00020,1142.2,R,Abbey Lea Residential Care Home
http://statistics.data.gov.uk/doc/local-authority/00DA,Leeds City Council,Childrens Services,Safeguarding Targeted & Specialist,Third Party Payments,Leaving Care Allowances,555,27-Jun-13,1306-00021,600,R,Abbey Taxis (Boston) Ltd
http://statistics.data.gov.uk/doc/local-authority/00DA,Leeds City Council,Adult Social Care,Services For Adults Under 65 Mental/Dis,Third Party Payments,Residential,580,05-Jun-13,1306-00022,1193.52,R,Abbeydale Care Home
http://statistics.data.gov.uk/doc/local-authority/00DA,Leeds City Council,Adult Social Care,Services For Older People - 65 And Over,Third Party Payments,Residential,580,05-Jun-13,1306-00023,1050.36,R,Abbeydale Residential Home
http://statistics.data.gov.uk/doc/local-authority/00DA,Leeds City Council,Environment & Housing,Parks & Countryside,Supplies and Services,Non-Recurring Grants,227,17-Jun-13,1306-00024,1100,R,Aberford And District Parish Council
http://statistics.data.gov.uk/doc/local-authority/00DA,Leeds City Council,Adult Social Care,Services For Older People - 65 And Over,Third Party Payments,Nursing Home,570,05-Jun-13,1306-00025,12840.33,R,Aberford Hall
http://statistics.data.gov.uk/doc/local-authority/00DA,Leeds City Council,Adult Social Care,Services For Older People - 65 And Over,Third Party Payments,Residential,580,05-Jun-13,1306-00026,2034.6,R,Aberford Hall
http://statistics.data.gov.uk/doc/local-authority/00DA,Leeds City Council as Accountable Body,Social Services Pooled Budgets,Jcs For People With Learning Disabilitie,Transfer Payments,Personal Budgets,627,05-Jun-13,1306-00027,2061.84,R,REDACTED PERSONAL DATA
http://statistics.data.gov.uk/doc/local-authority/00DA,Leeds City Council,Environment & Housing,Environmental Health,Capital,Construction,3,12-Jun-13,1306-00028,2632,C,Able Bathing & Building Contractors Ltd
http://statistics.data.gov.uk/doc/local-authority/00DA,Leeds City Council,Environment & Housing,Environmental Health,Capital,Construction,3,27-Jun-13,1306-00029,2890,C,Able Bathing & Building Contractors Ltd
http://statistics.data.gov.uk/doc/local-authority/00DA,Leeds City Council,Environment & Housing,Environmental Health,Capital,Construction,3,03-Jun-13,1306-00030,2890,C,Able Bathing & Building Contractors Ltd
http://statistics.data.gov.uk/doc/local-authority/00DA,Leeds City Council,Environment & Housing,Environmental Health,Capital,Construction,3,19-Jun-13,1306-00031,2890,C,Able Bathing & Building Contractors Ltd
http://statistics.data.gov.uk/doc/local-authority/00DA,Leeds City Council,Environment & Housing,Environmental Health,Capital,Construction,3,19-Jun-13,1306-00032,4150,C,Able Bathing & Building Contractors Ltd
http://statistics.data.gov.uk/doc/local-authority/00DA,Leeds City Council,Environment & Housing,Environmental Health,Capital,Construction,3,12-Jun-13,1306-00033,4150,C,Able Bathing & Building Contractors Ltd
http://statistics.data.gov.uk/doc/local-authority/00DA,Leeds City Council,Environment & Housing,Environmental Health,Capital,Construction,3,24-Jun-13,1306-00034,4150,C,Able Bathing & Building Contractors Ltd
http://statistics.data.gov.uk/doc/local-authority/00DA,Leeds City Council,Environment & Housing,Environmental Health,Capital,Construction,3,27-Jun-13,1306-00035,4150,C,Able Bathing & Building Contractors Ltd
http://statistics.data.gov.uk/doc/local-authority/00DA,Leeds City Council,Environment & Housing,Environmental Health,Capital,Construction,3,28-Jun-13,1306-00036,4150,C,Able Bathing & Building Contractors Ltd
http://statistics.data.gov.uk/doc/local-authority/00DA,Leeds City Council,Environment & Housing,Environmental Health,Capital,Construction,3,03-Jun-13,1306-00037,4150,C,Able Bathing & Building Contractors Ltd
http://statistics.data.gov.uk/doc/local-authority/00DA,Leeds City Council,Environment & Housing,Environmental Health,Capital,Construction,3,19-Jun-13,1306-00038,4150,C,Able Bathing & Building Contractors Ltd
http://statistics.data.gov.uk/doc/local-authority/00DA,Leeds City Council,Environment & Housing,Environmental Health,Capital,Construction,3,03-Jun-13,1306-00039,4200,C,Able Bathing & Building Contractors Ltd
http://statistics.data.gov.uk/doc/local-authority/00DA,Leeds City Council,Environment & Housing,Environmental Health,Capital,Construction,3,28-Jun-13,1306-00040,4420,C,Able Bathing & Building Contractors Ltd
http://statistics.data.gov.uk/doc/local-authority/00DA,Leeds City Council,Environment & Housing,Environmental Health,Capital,Construction,3,24-Jun-13,1306-00041,4460.2,C,Able Bathing & Building Contractors Ltd
http://statistics.data.gov.uk/doc/local-authority/00DA,Leeds City Council,Environment & Housing,Environmental Health,Capital,Construction,3,27-Jun-13,1306-00042,4460.2,C,Able Bathing & Building Contractors Ltd
http://statistics.data.gov.uk/doc/local-authority/00DA,Leeds City Council,Environment & Housing,Environmental Health,Capital,Construction,3,12-Jun-13,1306-00043,4460.2,C,Able Bathing & Building Contractors Ltd
http://statistics.data.gov.uk/doc/local-authority/00DA,Leeds City Council,Environment & Housing,Environmental Health,Capital,Construction,3,03-Jun-13,1306-00044,4495,C,Able Bathing & Building Contractors Ltd
http://statistics.data.gov.uk/doc/local-authority/00DA,Leeds City Council,Environment & Housing,Environmental Health,Capital,Construction,3,27-Jun-13,1306-00045,4570,C,Able Bathing & Building Contractors Ltd
http://statistics.data.gov.uk/doc/local-authority/00DA,Leeds City Council,Environment & Housing,Environmental Health,Capital,Construction,3,03-Jun-13,1306-00046,7895,C,Able Bathing & Building Contractors Ltd
http://statistics.data.gov.uk/doc/local-authority/00DA,Leeds City Council,Environment & Housing,Environmental Health,Capital,Construction,3,12-Jun-13,1306-00047,8000,C,Able Bathing & Building Contractors Ltd
http://statistics.data.gov.uk/doc/local-authority/00DA,Leeds City Council,Environment & Housing,Environmental Health,Capital,Construction,3,27-Jun-13,1306-00048,8965,C,Able Bathing & Building Contractors Ltd
http://statistics.data.gov.uk/doc/local-authority/00DA,Leeds City Council,Environment & Housing,Environmental Health,Capital,Construction,3,03-Jun-13,1306-00049,10000,C,Able Bathing & Building Contractors Ltd
http://statistics.data.gov.uk/doc/local-authority/00DA,Leeds City Council,Environment & Housing,Environmental Health,Capital,Construction,3,03-Jun-13,1306-00050,11192,C,Able Bathing & Building Contractors Ltd
http://statistics.data.gov.uk/doc/local-authority/00DA,Leeds City Council,Environment & Housing,Statutory Housing,Supplies and Services,Other Hired And Contracted Services,265,25-Jun-13,1306-00051,650,R,Abu Sufian
http://statistics.data.gov.uk/doc/local-authority/00DA,Leeds City Council,Childrens Services,Learning Skills & Universal,Third Party Payments,Services Rendered By Other Organisations,511,14-Jun-13,1306-00052,520.52,R,Academic Appointments Ltd
http://statistics.data.gov.uk/doc/local-authority/00DA,Leeds City Council,Childrens Services,Learning Skills & Universal,Third Party Payments,Services Rendered By Other Organisations,511,21-Jun-13,1306-00053,640.64,R,Academic Appointments Ltd
http://statistics.data.gov.uk/doc/local-authority/00DA,Leeds City Council,Childrens Services,Learning Skills & Universal,Third Party Payments,Services Rendered By Other Organisations,511,12-Jun-13,1306-00054,11526.54,R,Academic Appointments Ltd
http://statistics.data.gov.uk/doc/local-authority/00DA,Leeds City Council,Childrens Services,Safeguarding Targeted & Specialist,Employees,Agency Staff,8,26-Jun-13,1306-00055,3512.04,R,Academic Appointments Ltd
http://statistics.data.gov.uk/doc/local-authority/00DA,Leeds City Council,Childrens Services,Safeguarding Targeted & Specialist,Employees,Agency Staff,8,18-Jun-13,1306-00056,4904.92,R,Academic Appointments Ltd
http://statistics.data.gov.uk/doc/local-authority/00DA,Leeds City Council,Childrens Services,Safeguarding Targeted & Specialist,Employees,Agency Staff,8,26-Jun-13,1306-00057,6491.1,R,Academic Appointments Ltd
http://statistics.data.gov.uk/doc/local-authority/00DA,Leeds City Council,Childrens Services,Safeguarding Targeted & Specialist,Employees,Agency Staff,8,28-Jun-13,1306-00058,6557.16,R,Academic Appointments Ltd
http://statistics.data.gov.uk/doc/local-authority/00DA,Leeds City Council,Adult Social Care,Other Adult Services,Third Party Payments,Residential - Drugs & Alcohol,583,06-Jun-13,1306-00059,1737.83,R,Acorn Services
http://statistics.data.gov.uk/doc/local-authority/00DA,Leeds City Council,Adult Social Care,Services For Adults Under 65 Mental/Dis,Third Party Payments,Residential,580,05-Jun-13,1306-00060,1718.12,R,Acre Green
http://statistics.data.gov.uk/doc/local-authority/00DA,Leeds City Council,Adult Social Care,Services For Older People - 65 And Over,Third Party Payments,Nursing Home,570,05-Jun-13,1306-00061,2307.38,R,Acre Green
http://statistics.data.gov.uk/doc/local-authority/00DA,Leeds City Council,Adult Social Care,Services For Older People - 65 And Over,Third Party Payments,Nursing Care Dementia,574,05-Jun-13,1306-00062,1945.75,R,Acre Green
http://statistics.data.gov.uk/doc/local-authority/00DA,Leeds City Council,Adult Social Care,Services For Older People - 65 And Over,Third Party Payments,Residential,580,05-Jun-13,1306-00063,13767.08,R,Acre Green
http://statistics.data.gov.uk/doc/local-authority/00DA,Leeds City Council,Adult Social Care,Services For Older People Under 65 P/Dis,Third Party Payments,Nursing Home,570,05-Jun-13,1306-00064,1633.48,R,Acre Green
http://statistics.data.gov.uk/doc/local-authority/00DA,Leeds City Council,Adult Social Care,Services For Older People Under 65 P/Dis,Third Party Payments,Residential,580,05-Jun-13,1306-00065,1232.12,R,Acre Green
http://statistics.data.gov.uk/doc/local-authority/00DA,Leeds City Council,Childrens Services,Safeguarding Targeted & Specialist,Third Party Payments,Independent Fostering Agencies,509,07-Jun-13,1306-00066,4774,R,Action For Children Services Ltd
http://statistics.data.gov.uk/doc/local-authority/00DA,Leeds City Council,Childrens Services,Safeguarding Targeted & Specialist,Third Party Payments,Independent Fostering Agencies,509,07-Jun-13,1306-00067,5026.34,R,Action For Children Services Ltd
http://statistics.data.gov.uk/doc/local-authority/00DA,Leeds City Council,Environment & Housing,Parks & Countryside,Supplies and Services,Bought In Professional Services,277,18-Jun-13,1306-00068,17744.22,R,REDACTED COMMERCIAL CONFIDENTIALITY
http://statistics.data.gov.uk/doc/local-authority/00DA,Leeds City Council,Adult Social Care,Services For Older People Under 65 P/Dis,Transfer Payments,Personalised Budgets,627,05-Jun-13,1306-00069,717.28,R,REDACTED PERSONAL DATA
http://statistics.data.gov.uk/doc/local-authority/00DA,Leeds City Council as Accountable Body,Social Services Pooled Budgets,Jcs For People With Learning Disabilitie,Transfer Payments,Asylum Seekers,626,05-Jun-13,1306-00070,1570.68,R,REDACTED PERSONAL DATA
http://statistics.data.gov.uk/doc/local-authority/00DA,Leeds City Council,Adult Social Care,Services For Adults Under 65 Mental/Dis,Transfer Payments,Direct Payments,626,05-Jun-13,1306-00071,444.4,R,REDACTED PERSONAL DATA
http://statistics.data.gov.uk/doc/local-authority/00DA,Leeds City Council,Adult Social Care,Services For Older People Under 65 P/Dis,Transfer Payments,Direct Payments,626,05-Jun-13,1306-00072,877.2,R,REDACTED PERSONAL DATA
http://statistics.data.gov.uk/doc/local-authority/00DA,Leeds City Council as Accountable Body,Social Services Pooled Budgets,Jcs For People With Learning Disabilitie,Transfer Payments,Asylum Seekers,626,05-Jun-13,1306-00073,859.6,R,REDACTED PERSONAL DATA
http://statistics.data.gov.uk/doc/local-authority/00DA,Leeds City Council,Central & Corporate,Public Health,Third Party Payments,Public Health Commissioned Services,526,21-Jun-13,1306-00074,86750,R,Addiction Dependency Solutions
http://statistics.data.gov.uk/doc/local-authority/00DA,Leeds City Council,Strategic Accounts,Miscellaneous,Supplies and Services,Other Hired And Contracted Services,265,04-Jun-13,1306-00075,8017,R,Addleshaw Goddard
http://statistics.data.gov.uk/doc/local-authority/00DA,Leeds City Council,Childrens Services,Safeguarding Targeted & Specialist,Third Party Payments,Adoptions - Allowances,560,07-Jun-13,1306-00076,1194.42,R,Adoption Matters Northwest
http://statistics.data.gov.uk/doc/local-authority/00DA,Leeds City Council,Childrens Services,Safeguarding Targeted & Specialist,Third Party Payments,Adoptions - Allowances,560,24-Jun-13,1306-00077,28667,R,Adoption Matters Northwest
http://statistics.data.gov.uk/doc/local-authority/00DA,Leeds City Council,Childrens Services,Safeguarding Targeted & Specialist,Third Party Payments,Payments To Voluntary Organisations,561,05-Jun-13,1306-00078,2460,R,Adoption Uk
http://statistics.data.gov.uk/doc/local-authority/00DA,Leeds City Council,Childrens Services,Strategy Policy Planning & Participation,Premises,Premises Security Services,162,06-Jun-13,1306-00079,805.19,R,Adt Fire & Security
http://statistics.data.gov.uk/doc/local-authority/00DA,Leeds City Council,Central & Corporate Functions,Support And Facilities General Fund  ,Supplies and Services,Security Services (Non Infrastructure),262,15-May-13,1306-00080,1012.86,R,Adt Leeds Cc
http://statistics.data.gov.uk/doc/local-authority/00DA,Leeds City Council,Central & Corporate Functions,Support And Facilities General Fund  ,Supplies and Services,Security Services (Non Infrastructure),262,15-May-13,1306-00081,1264.06,R,Adt Leeds Cc
http://statistics.data.gov.uk/doc/local-authority/00DA,Leeds City Council,Central & Corporate Functions,Support And Facilities General Fund  ,Supplies and Services,Security Services (Non Infrastructure),262,15-May-13,1306-00082,1701.56,R,Adt Leeds Cc
http://statistics.data.gov.uk/doc/local-authority/00DA,East - North East                 ,East - North East,Construction Services,Supplies and Services,Other Hired And Contracted Services,265,19-Jun-13,1306-00083,427.5,R,Adult Placement Services
http://statistics.data.gov.uk/doc/local-authority/00DA,East - North East                 ,East - North East,Construction Services,Supplies and Services,Other Hired And Contracted Services,265,19-Jun-13,1306-00084,427.5,R,Adult Placement Services
http://statistics.data.gov.uk/doc/local-authority/00DA,East - North East                 ,East - North East,Construction Services,Supplies and Services,Other Hired And Contracted Services,265,19-Jun-13,1306-00085,465.5,R,Adult Placement Services
http://statistics.data.gov.uk/doc/local-authority/00DA,East - North East                 ,East - North East,Construction Services,Supplies and Services,Other Hired And Contracted Services,265,19-Jun-13,1306-00086,503.5,R,Adult Placement Services
http://statistics.data.gov.uk/doc/local-authority/00DA,East - North East                 ,East - North East,Construction Services,Supplies and Services,Other Hired And Contracted Services,265,19-Jun-13,1306-00087,589,R,Adult Placement Services
http://statistics.data.gov.uk/doc/local-authority/00DA,East - North East                 ,East - North East,Construction Services,Supplies and Services,Other Hired And Contracted Services,265,19-Jun-13,1306-00088,669.75,R,Adult Placement Services
http://statistics.data.gov.uk/doc/local-authority/00DA,East - North East                 ,East - North East,Construction Services,Supplies and Services,Other Hired And Contracted Services,265,19-Jun-13,1306-00089,689.51,R,Adult Placement Services
http://statistics.data.gov.uk/doc/local-authority/00DA,East - North East                 ,East - North East,Construction Services,Supplies and Services,Other Hired And Contracted Services,265,19-Jun-13,1306-00090,817,R,Adult Placement Services
http://statistics.data.gov.uk/doc/local-authority/00DA,East - North East                 ,East - North East,Construction Services,Supplies and Services,Other Hired And Contracted Services,265,19-Jun-13,1306-00091,874,R,Adult Placement Services
http://statistics.data.gov.uk/doc/local-authority/00DA,East - North East                 ,East - North East,Construction Services,Supplies and Services,Other Hired And Contracted Services,265,19-Jun-13,1306-00092,978.5,R,Adult Placement Services
http://statistics.data.gov.uk/doc/local-authority/00DA,East - North East                 ,East - North East,Construction Services,Supplies and Services,Other Hired And Contracted Services,265,19-Jun-13,1306-00093,1054.5,R,Adult Placement Services
http://statistics.data.gov.uk/doc/local-authority/00DA,East - North East                 ,East - North East,Construction Services,Supplies and Services,Other Hired And Contracted Services,265,19-Jun-13,1306-00094,1064,R,Adult Placement Services
http://statistics.data.gov.uk/doc/local-authority/00DA,East - North East                 ,East - North East,Construction Services,Supplies and Services,Other Hired And Contracted Services,265,19-Jun-13,1306-00095,1083,R,Adult Placement Services
http://statistics.data.gov.uk/doc/local-authority/00DA,East - North East                 ,East - North East,Construction Services,Supplies and Services,Other Hired And Contracted Services,265,19-Jun-13,1306-00096,1263.5,R,Adult Placement Services
http://statistics.data.gov.uk/doc/local-authority/00DA,East - North East                 ,East - North East,Construction Services,Supplies and Services,Other Hired And Contracted Services,265,19-Jun-13,1306-00097,1624.5,R,Adult Placement Services
http://statistics.data.gov.uk/doc/local-authority/00DA,East - North East                 ,East - North East,Construction Services,Supplies and Services,Other Hired And Contracted Services,265,03-Jun-13,1306-00098,2251.5,R,Adult Placement Services
http://statistics.data.gov.uk/doc/local-authority/00DA,East - North East                 ,East - North East,Technical Services,Premises,H.R.A. - Repairs A To P,107,27-Jun-13,1306-00099,11523.38,R,Adult Placement Services
http://statistics.data.gov.uk/doc/local-authority/00DA,Leeds City Council as Accountable Body,Social Services Pooled Budgets,Jcs For People With Learning Disabilitie,Third Party Payments,Home Care,568,05-Jun-13,1306-00100,475.6,R,Adult Placement Services
http://statistics.data.gov.uk/doc/local-authority/00DA,Leeds City Council as Accountable Body,Social Services Pooled Budgets,Jcs For People With Learning Disabilitie,Third Party Payments,Home Care,568,05-Jun-13,1306-00101,553.78,R,Adult Placement Services
http://statistics.data.gov.uk/doc/local-authority/00DA,Leeds City Council as Accountable Body,Social Services Pooled Budgets,Jcs For People With Learning Disabilitie,Third Party Payments,Home Care,568,28-Jun-13,1306-00102,573.32,R,Adult Placement Services
http://statistics.data.gov.uk/doc/local-authority/00DA,Leeds City Council as Accountable Body,Social Services Pooled Budgets,Jcs For People With Learning Disabilitie,Third Party Payments,Home Care,568,13-Jun-13,1306-00103,1332.2,R,Adult Placement Services
http://statistics.data.gov.uk/doc/local-authority/00DA,Leeds City Council,Adult Social Care,Services For Adults Under 65 Mental/Dis,Third Party Payments,Nursing Home,570,05-Jun-13,1306-00104,1549.8,R,Adult Supported Living Ltd
http://statistics.data.gov.uk/doc/local-authority/00DA,Leeds City Council,Childrens Services,Safeguarding Targeted & Specialist,Third Party Payments,General External Residential Placements,507,21-Jun-13,1306-00105,10285.8,R,Advanced Childcare Limited
http://statistics.data.gov.uk/doc/local-authority/00DA,Leeds City Council,Childrens Services,Safeguarding Targeted & Specialist,Third Party Payments,General External Residential Placements,507,21-Jun-13,1306-00106,12428.7,R,Advanced Childcare Limited
http://statistics.data.gov.uk/doc/local-authority/00DA,Leeds City Council,Childrens Services,Safeguarding Targeted & Specialist,Third Party Payments,General External Residential Placements,507,21-Jun-13,1306-00107,13285.8,R,Advanced Childcare Limited
http://statistics.data.gov.uk/doc/local-authority/00DA,Leeds City Council,Childrens Services,Safeguarding Targeted & Specialist,Third Party Payments,General External Residential Placements,507,21-Jun-13,1306-00108,16285.8,R,Advanced Childcare Limited
http://statistics.data.gov.uk/doc/local-authority/00DA,Leeds City Council,Childrens Services,Safeguarding Targeted & Specialist,Third Party Payments,General External Residential Placements,507,21-Jun-13,1306-00109,19285.8,R,Advanced Childcare Limited
http://statistics.data.gov.uk/doc/local-authority/00DA,Leeds City Council,Childrens Services,Safeguarding Targeted & Specialist,Third Party Payments,General External Residential Placements,507,21-Jun-13,1306-00110,21214.2,R,Advanced Childcare Limited
http://statistics.data.gov.uk/doc/local-authority/00DA,Leeds City Council,Childrens Services,Safeguarding Targeted & Specialist,Third Party Payments,Independent Fostering Agencies,509,21-Jun-13,1306-00111,2829.6,R,Advanced Childcare Limited
http://statistics.data.gov.uk/doc/local-authority/00DA,Leeds City Council,Childrens Services,Safeguarding Targeted & Specialist,Third Party Payments,Independent Fostering Agencies,509,21-Jun-13,1306-00112,2829.6,R,Advanced Childcare Limited
http://statistics.data.gov.uk/doc/local-authority/00DA,Leeds City Council,Childrens Services,Safeguarding Targeted & Specialist,Third Party Payments,Independent Fostering Agencies,509,21-Jun-13,1306-00113,2829.6,R,Advanced Childcare Limited
http://statistics.data.gov.uk/doc/local-authority/00DA,Leeds City Council,Childrens Services,Safeguarding Targeted & Specialist,Third Party Payments,Independent Fostering Agencies,509,21-Jun-13,1306-00114,2892.9,R,Advanced Childcare Limited
http://statistics.data.gov.uk/doc/local-authority/00DA,Leeds City Council,Childrens Services,Safeguarding Targeted & Specialist,Third Party Payments,Independent Fostering Agencies,509,21-Jun-13,1306-00115,3053.7,R,Advanced Childcare Limited
http://statistics.data.gov.uk/doc/local-authority/00DA,Leeds City Council,Childrens Services,Safeguarding Targeted & Specialist,Third Party Payments,Independent Fostering Agencies,509,03-Jun-13,1306-00116,3214.2,R,Advanced Childcare Limited
http://statistics.data.gov.uk/doc/local-authority/00DA,Leeds City Council,Childrens Services,Safeguarding Targeted & Specialist,Third Party Payments,Independent Fostering Agencies,509,04-Jun-13,1306-00117,3321.34,R,Advanced Childcare Limited
http://statistics.data.gov.uk/doc/local-authority/00DA,Leeds City Council,Adult Social Care,Home Care Services,Supplies and Services,Telephones,213,20-Jun-13,1306-00118,3000,R,Advanced Health And Care Ltd
http://statistics.data.gov.uk/doc/local-authority/00DA,Leeds City Council as Accountable Body,Social Services Pooled Budgets,Jcs For People With Learning Disabilitie,Third Party Payments,Home Care,568,11-Jun-13,1306-00119,450.36,R,Advantage Healthcare Nursing &
http://statistics.data.gov.uk/doc/local-authority/00DA,Leeds City Council as Accountable Body,Social Services Pooled Budgets,Jcs For People With Learning Disabilitie,Third Party Payments,Home Care,568,27-Jun-13,1306-00120,2860.77,R,Advantage Healthcare Nursing &
http://statistics.data.gov.uk/doc/local-authority/00DA,Leeds City Council as Accountable Body,Social Services Pooled Budgets,Jcs For People With Learning Disabilitie,Third Party Payments,Home Care,568,14-Jun-13,1306-00121,2894.22,R,Advantage Healthcare Nursing &
http://statistics.data.gov.uk/doc/local-authority/00DA,Leeds City Council as Accountable Body,Social Services Pooled Budgets,Jcs For People With Learning Disabilitie,Third Party Payments,Home Care,568,20-Jun-13,1306-00122,3882.84,R,Advantage Healthcare Nursing &
http://statistics.data.gov.uk/doc/local-authority/00DA,Leeds City Council as Accountable Body,Social Services Pooled Budgets,Jcs For People With Learning Disabilitie,Third Party Payments,Nursing Home,570,20-Jun-13,1306-00123,738.61,R,Advantage Healthcare Nursing &
http://statistics.data.gov.uk/doc/local-authority/00DA,Leeds City Council as Accountable Body,Social Services Pooled Budgets,Jcs For People With Learning Disabilitie,Third Party Payments,Nursing Home,570,28-Jun-13,1306-00124,738.61,R,Advantage Healthcare Nursing &
http://statistics.data.gov.uk/doc/local-authority/00DA,Leeds City Council as Accountable Body,Social Services Pooled Budgets,Jcs For People With Learning Disabilitie,Third Party Payments,Nursing Home,570,14-Jun-13,1306-00125,1259.07,R,Advantage Healthcare Nursing &
http://statistics.data.gov.uk/doc/local-authority/00DA,Leeds City Council as Accountable Body,Social Services Pooled Budgets,Jcs For People With Learning Disabilitie,Third Party Payments,Nursing Home,570,11-Jun-13,1306-00126,1372.99,R,Advantage Healthcare Nursing &
http://statistics.data.gov.uk/doc/local-authority/00DA,Leeds City Council as Accountable Body,Social Services Pooled Budgets,Jcs For People With Learning Disabilitie,Third Party Payments,Residential,580,05-Jun-13,1306-00127,20332.4,R,Advitam Ltd
http://statistics.data.gov.uk/doc/local-authority/00DA,Leeds City Council,Adult Social Care,Social Services Support Services,Third Party Payments,Payments To Voluntary Organisations,561,14-Jun-13,1306-00128,90446.46,R,Advonet
http://statistics.data.gov.uk/doc/local-authority/00DA,Leeds City Council,Adult Social Care,Services For Adults Under 65 Mental/Dis,Third Party Payments,Home Care,568,12-Jun-13,1306-00129,925.65,R,Affinity Trust
http://statistics.data.gov.uk/doc/local-authority/00DA,Leeds City Council,Adult Social Care,Services For Older People - 65 And Over,Third Party Payments,Home Care,568,07-Jun-13,1306-00130,1328.78,R,Affinity Trust
http://statistics.data.gov.uk/doc/local-authority/00DA,Leeds City Council,Adult Social Care,Services For Older People Under 65 P/Dis,Third Party Payments,Home Care,568,14-Jun-13,1306-00131,504.6,R,Affinity Trust
http://statistics.data.gov.uk/doc/local-authority/00DA,Leeds City Council,Adult Social Care,Services For Older People Under 65 P/Dis,Third Party Payments,Home Care,568,14-Jun-13,1306-00132,526.68,R,Affinity Trust
http://statistics.data.gov.uk/doc/local-authority/00DA,Leeds City Council,Adult Social Care,Services For Older People Under 65 P/Dis,Third Party Payments,Home Care,568,11-Jun-13,1306-00133,660,R,Affinity Trust
http://statistics.data.gov.uk/doc/local-authority/00DA,Leeds City Council,Adult Social Care,Services For Older People Under 65 P/Dis,Third Party Payments,Home Care,568,07-Jun-13,1306-00134,972.3,R,Affinity Trust
http://statistics.data.gov.uk/doc/local-authority/00DA,Leeds City Council,Adult Social Care,Services For Older People Under 65 P/Dis,Third Party Payments,Home Care,568,07-Jun-13,1306-00135,1183.28,R,Affinity Trust
http://statistics.data.gov.uk/doc/local-authority/00DA,Leeds City Council,Adult Social Care,Services For Older People Under 65 P/Dis,Third Party Payments,Home Care,568,07-Jun-13,1306-00136,2181.2,R,Affinity Trust
http://statistics.data.gov.uk/doc/local-authority/00DA,Leeds City Council,Adult Social Care,Services For Older People Under 65 P/Dis,Third Party Payments,Home Care,568,07-Jun-13,1306-00137,2188.28,R,Affinity Trust
http://statistics.data.gov.uk/doc/local-authority/00DA,Leeds City Council,Central & Corporate,Financial Management,Third Party Payments,Home Care,568,11-Jun-13,1306-00138,479.4,R,Affinity Trust
http://statistics.data.gov.uk/doc/local-authority/00DA,Leeds City Council as Accountable Body,Social Services Pooled Budgets,Jcs For People With Learning Disabilitie,Third Party Payments,Day Centre,564,28-Jun-13,1306-00139,469.28,R,Affinity Trust
http://statistics.data.gov.uk/doc/local-authority/00DA,Leeds City Council as Accountable Body,Social Services Pooled Budgets,Jcs For People With Learning Disabilitie,Third Party Payments,Day Centre,564,28-Jun-13,1306-00140,601.92,R,Affinity Trust
http://statistics.data.gov.uk/doc/local-authority/00DA,Leeds City Council as Accountable Body,Social Services Pooled Budgets,Jcs For People With Learning Disabilitie,Third Party Payments,Day Centre,564,28-Jun-13,1306-00141,1053.36,R,Affinity Trust
http://statistics.data.gov.uk/doc/local-authority/00DA,Leeds City Council as Accountable Body,Social Services Pooled Budgets,Jcs For People With Learning Disabilitie,Third Party Payments,Day Centre,564,28-Jun-13,1306-00142,1068.86,R,Affinity Trust
http://statistics.data.gov.uk/doc/local-authority/00DA,Leeds City Council as Accountable Body,Social Services Pooled Budgets,Jcs For People With Learning Disabilitie,Third Party Payments,Day Centre,564,11-Jun-13,1306-00143,2916.25,R,Affinity Trust
http://statistics.data.gov.uk/doc/local-authority/00DA,Leeds City Council as Accountable Body,Social Services Pooled Budgets,Jcs For People With Learning Disabilitie,Third Party Payments,Home Care,568,11-Jun-13,1306-00144,510.8,R,Affinity Trust
http://statistics.data.gov.uk/doc/local-authority/00DA,Leeds City Council as Accountable Body,Social Services Pooled Budgets,Jcs For People With Learning Disabilitie,Third Party Payments,Home Care,568,11-Jun-13,1306-00145,639.2,R,Affinity Trust
http://statistics.data.gov.uk/doc/local-authority/00DA,Leeds City Council as Accountable Body,Social Services Pooled Budgets,Jcs For People With Learning Disabilitie,Third Party Payments,Home Care,568,28-Jun-13,1306-00146,754.2,R,Affinity Trust
http://statistics.data.gov.uk/doc/local-authority/00DA,Leeds City Council as Accountable Body,Social Services Pooled Budgets,Jcs For People With Learning Disabilitie,Third Party Payments,Home Care,568,28-Jun-13,1306-00147,804.48,R,Affinity Trust
http://statistics.data.gov.uk/doc/local-authority/00DA,Leeds City Council as Accountable Body,Social Services Pooled Budgets,Jcs For People With Learning Disabilitie,Third Party Payments,Home Care,568,28-Jun-13,1306-00148,964.67,R,Affinity Trust
http://statistics.data.gov.uk/doc/local-authority/00DA,Leeds City Council as Accountable Body,Social Services Pooled Budgets,Jcs For People With Learning Disabilitie,Third Party Payments,Home Care,568,12-Jun-13,1306-00149,1009.2,R,Affinity Trust
http://statistics.data.gov.uk/doc/local-authority/00DA,Leeds City Council as Accountable Body,Social Services Pooled Budgets,Jcs For People With Learning Disabilitie,Third Party Payments,Home Care,568,12-Jun-13,1306-00150,1020,R,Affinity Trust
http://statistics.data.gov.uk/doc/local-authority/00DA,Leeds City Council as Accountable Body,Social Services Pooled Budgets,Jcs For People With Learning Disabilitie,Third Party Payments,Home Care,568,28-Jun-13,1306-00151,1076.72,R,Affinity Trust
http://statistics.data.gov.uk/doc/local-authority/00DA,Leeds City Council as Accountable Body,Social Services Pooled Budgets,Jcs For People With Learning Disabilitie,Third Party Payments,Home Care,568,12-Jun-13,1306-00152,1141,R,Affinity Trust
http://statistics.data.gov.uk/doc/local-authority/00DA,Leeds City Council as Accountable Body,Social Services Pooled Budgets,Jcs For People With Learning Disabilitie,Third Party Payments,Home Care,568,28-Jun-13,1306-00153,1428.65,R,Affinity Trust
http://statistics.data.gov.uk/doc/local-authority/00DA,Leeds City Council as Accountable Body,Social Services Pooled Budgets,Jcs For People With Learning Disabilitie,Third Party Payments,Home Care,568,11-Jun-13,1306-00154,1474.88,R,Affinity Trust
http://statistics.data.gov.uk/doc/local-authority/00DA,Leeds City Council as Accountable Body,Social Services Pooled Budgets,Jcs For People With Learning Disabilitie,Third Party Payments,Home Care,568,12-Jun-13,1306-00155,1630.84,R,Affinity Trust
http://statistics.data.gov.uk/doc/local-authority/00DA,Leeds City Council as Accountable Body,Social Services Pooled Budgets,Jcs For People With Learning Disabilitie,Third Party Payments,Home Care,568,12-Jun-13,1306-00156,1641.44,R,Affinity Trust
http://statistics.data.gov.uk/doc/local-authority/00DA,Leeds City Council as Accountable Body,Social Services Pooled Budgets,Jcs For People With Learning Disabilitie,Third Party Payments,Home Care,568,12-Jun-13,1306-00157,1650,R,Affinity Trust
http://statistics.data.gov.uk/doc/local-authority/00DA,Leeds City Council as Accountable Body,Social Services Pooled Budgets,Jcs For People With Learning Disabilitie,Third Party Payments,Home Care,568,11-Jun-13,1306-00158,1682,R,Affinity Trust
http://statistics.data.gov.uk/doc/local-authority/00DA,Leeds City Council as Accountable Body,Social Services Pooled Budgets,Jcs For People With Learning Disabilitie,Third Party Payments,Home Care,568,12-Jun-13,1306-00159,1732.5,R,Affinity Trust
http://statistics.data.gov.uk/doc/local-authority/00DA,Leeds City Council as Accountable Body,Social Services Pooled Budgets,Jcs For People With Learning Disabilitie,Third Party Payments,Home Care,568,28-Jun-13,1306-00160,1810.08,R,Affinity Trust
http://statistics.data.gov.uk/doc/local-authority/00DA,Leeds City Council as Accountable Body,Social Services Pooled Budgets,Jcs For People With Learning Disabilitie,Third Party Payments,Home Care,568,12-Jun-13,1306-00161,2061.42,R,Affinity Trust
http://statistics.data.gov.uk/doc/local-authority/00DA,Leeds City Council as Accountable Body,Social Services Pooled Budgets,Jcs For People With Learning Disabilitie,Third Party Payments,Home Care,568,28-Jun-13,1306-00162,3102.12,R,Affinity Trust
http://statistics.data.gov.uk/doc/local-authority/00DA,Leeds City Council as Accountable Body,Social Services Pooled Budgets,Jcs For People With Learning Disabilitie,Third Party Payments,Home Care,568,28-Jun-13,1306-00163,3422.88,R,Affinity Trust
http://statistics.data.gov.uk/doc/local-authority/00DA,Leeds City Council as Accountable Body,Social Services Pooled Budgets,Jcs For People With Learning Disabilitie,Third Party Payments,Home Care,568,19-Jun-13,1306-00164,3563.54,R,Affinity Trust
http://statistics.data.gov.uk/doc/local-authority/00DA,Leeds City Council as Accountable Body,Social Services Pooled Budgets,Jcs For People With Learning Disabilitie,Third Party Payments,Home Care,568,27-Jun-13,1306-00165,3848.08,R,Affinity Trust
http://statistics.data.gov.uk/doc/local-authority/00DA,Leeds City Council as Accountable Body,Social Services Pooled Budgets,Jcs For People With Learning Disabilitie,Third Party Payments,Home Care,568,27-Jun-13,1306-00166,3848.08,R,Affinity Trust
http://statistics.data.gov.uk/doc/local-authority/00DA,Leeds City Council as Accountable Body,Social Services Pooled Budgets,Jcs For People With Learning Disabilitie,Third Party Payments,Residential,580,05-Jun-13,1306-00167,98791.92,R,Affinity Trust North Divisional Office
http://statistics.data.gov.uk/doc/local-authority/00DA,Leeds City Council,Childrens Services,Safeguarding Targeted & Specialist,Third Party Payments,Payments To Voluntary Organisations,561,14-Jun-13,1306-00168,17500,R,After Adoption Yorkshire
http://statistics.data.gov.uk/doc/local-authority/00DA,Leeds City Council,Central & Corporate,Commercial Services Trading Services,Supplies and Services,Other Hired And Contracted Services,265,21-Jun-13,1306-00169,4500,R,Age Uk Leeds
http://statistics.data.gov.uk/doc/local-authority/00DA,Leeds City Council,Environment & Housing,Strategy & Commissioning,Third Party Payments,Supporting Ppl - Block Gross Chargeable,514,14-Jun-13,1306-00170,3957.68,R,Age Uk Leeds
http://statistics.data.gov.uk/doc/local-authority/00DA,Leeds City Council,Adult Social Care,Services For Older People Under 65 P/Dis,Third Party Payments,Residential,580,05-Jun-13,1306-00171,5612.16,R,Agricola House
http://statistics.data.gov.uk/doc/local-authority/00DA,Leeds City Council,Adult Social Care,Services For Older People Under 65 P/Dis,Transfer Payments,Personalised Budgets,627,05-Jun-13,1306-00172,531.2,R,REDACTED PERSONAL DATA
http://statistics.data.gov.uk/doc/local-authority/00DA,Leeds City Council as Accountable Body,Social Services Pooled Budgets,Leeds Community Equip Store Pooled Budgt,Supplies and Services,Other Equipment,203,21-Jun-13,1306-00173,654,R,Aidapt Bathrooms Ltd
http://statistics.data.gov.uk/doc/local-authority/00DA,Leeds City Council as Accountable Body,Social Services Pooled Budgets,Leeds Community Equip Store Pooled Budgt,Supplies and Services,Other Equipment,203,21-Jun-13,1306-00174,675,R,Aidapt Bathrooms Ltd
http://statistics.data.gov.uk/doc/local-authority/00DA,Leeds City Council as Accountable Body,Social Services Pooled Budgets,Leeds Community Equip Store Pooled Budgt,Supplies and Services,Other Equipment,203,07-Jun-13,1306-00175,860,R,Aidapt Bathrooms Ltd
http://statistics.data.gov.uk/doc/local-authority/00DA,Leeds City Council as Accountable Body,Social Services Pooled Budgets,Leeds Community Equip Store Pooled Budgt,Supplies and Services,Other Equipment,203,28-Jun-13,1306-00176,1247,R,Aidapt Bathrooms Ltd
http://statistics.data.gov.uk/doc/local-authority/00DA,Leeds City Council as Accountable Body,Social Services Pooled Budgets,Leeds Community Equip Store Pooled Budgt,Supplies and Services,Other Equipment,203,21-Jun-13,1306-00177,1252,R,Aidapt Bathrooms Ltd
http://statistics.data.gov.uk/doc/local-authority/00DA,Leeds City Council as Accountable Body,Social Services Pooled Budgets,Jcs For People With Learning Disabilitie,Transfer Payments,Personal Budgets,627,05-Jun-13,1306-00178,2839.32,R,REDACTED PERSONAL DATA
http://statistics.data.gov.uk/doc/local-authority/00DA,Leeds City Council,Childrens Services,Safeguarding Targeted & Specialist,Supplies and Services,Operational Furniture And Equipment,203,06-Jun-13,1306-00179,484.3,R,Aidservice Ltd
http://statistics.data.gov.uk/doc/local-authority/00DA,Leeds City Council as Accountable Body,Social Services Pooled Budgets,Jcs For People With Learning Disabilitie,Supplies and Services,Other Equipment,203,06-Jun-13,1306-00180,639.3,R,Aidservice Ltd
http://statistics.data.gov.uk/doc/local-authority/00DA,Leeds City Council,Adult Social Care,Services For Older People - 65 And Over,Transfer Payments,Personalised Budgets,627,05-Jun-13,1306-00181,529.24,R,REDACTED PERSONAL DATA
http://statistics.data.gov.uk/doc/local-authority/00DA,Leeds City Council,Adult Social Care,Services For Adults Under 65 Mental/Dis,Third Party Payments,Residential,580,05-Jun-13,1306-00182,6028.4,R,Aire House
http://statistics.data.gov.uk/doc/local-authority/00DA,Leeds City Council as Accountable Body,Social Services Pooled Budgets,Jcs For People With Learning Disabilitie,Third Party Payments,Residential,580,05-Jun-13,1306-00183,9106.64,R,Aire House
http://statistics.data.gov.uk/doc/local-authority/00DA,East - North East                 ,East - North East,Business Improvement,Premises,Other,114,21-Jun-13,1306-00184,1135,R,Aire Valley Landscaping Services Ltd
http://statistics.data.gov.uk/doc/local-authority/00DA,West - North West            ,West - North West,Property And Maintenance,Premises,General Maintenance,104,21-Jun-13,1306-00185,1500,R,Aire Valley Landscaping Services Ltd
http://statistics.data.gov.uk/doc/local-authority/00DA,East - North East                 ,East - North East,Housing Services,Premises,Grounds Maintenance (Closed Landfill),134,21-Jun-13,1306-00186,475,R,Aire Valley Tree Services Ltd
http://statistics.data.gov.uk/doc/local-authority/00DA,Leeds City Council,Adult Social Care,Services For Older People - 65 And Over,Third Party Payments,Residential Care Dementia,571,05-Jun-13,1306-00187,30837.44,R,Aire View Residential Home
http://statistics.data.gov.uk/doc/local-authority/00DA,Leeds City Council,Adult Social Care,Services For Older People - 65 And Over,Third Party Payments,Residential,580,05-Jun-13,1306-00188,-2164.25,R,Aire View Residential Home
http://statistics.data.gov.uk/doc/local-authority/00DA,Leeds City Council,Adult Social Care,Services For Older People - 65 And Over,Third Party Payments,Residential,580,05-Jun-13,1306-00189,26136.25,R,Airedale (Goldsborough)
http://statistics.data.gov.uk/doc/local-authority/00DA,Leeds City Council,Environment & Housing,Streetscene Environmental Services,Supplies and Services,Operational Materials,205,12-Jun-13,1306-00190,10119.33,R,Airwave Solutions Ltd
http://statistics.data.gov.uk/doc/local-authority/00DA,Leeds City Council,City Development,Recreation,Supplies and Services,Operational Materials,205,19-Jun-13,1306-00191,1244.35,R,Aitkens Sportsturf Ltd
http://statistics.data.gov.uk/doc/local-authority/00DA,Leeds City Council,Environment & Housing,Parks & Countryside,Supplies and Services,Operational Materials,205,28-Jun-13,1306-00192,1183.85,R,Aitkens Sportsturf Ltd
http://statistics.data.gov.uk/doc/local-authority/00DA,Leeds City Council,Environment & Housing,Parks & Countryside,Supplies and Services,Operational Materials,205,12-Jun-13,1306-00193,1247.84,R,Aitkens Sportsturf Ltd
http://statistics.data.gov.uk/doc/local-authority/00DA,Leeds City Council,Adult Social Care,Services For Older People - 65 And Over,Third Party Payments,Home Care,568,27-Jun-13,1306-00194,2315.25,R,Aj Social Care
http://statistics.data.gov.uk/doc/local-authority/00DA,Leeds City Council,Adult Social Care,Services For Older People - 65 And Over,Third Party Payments,Home Care,568,27-Jun-13,1306-00195,9206.4,R,Aj Social Care
http://statistics.data.gov.uk/doc/local-authority/00DA,Leeds City Council,Adult Social Care,Services For Older People Under 65 P/Dis,Third Party Payments,Home Care,568,27-Jun-13,1306-00196,567,R,Aj Social Care
http://statistics.data.gov.uk/doc/local-authority/00DA,Leeds City Council,Adult Social Care,Services For Older People Under 65 P/Dis,Third Party Payments,Home Care,568,27-Jun-13,1306-00197,2323.2,R,Aj Social Care
http://statistics.data.gov.uk/doc/local-authority/00DA,East - North East                 ,East - North East,Construction Services,Supplies and Services,Other Equipment,203,27-Jun-13,1306-00198,960,R,Ajm Fixings & Power Tools Ltd
http://statistics.data.gov.uk/doc/local-authority/00DA,Leeds City Council,Adult Social Care,Services For Older People - 65 And Over,Third Party Payments,Nursing Home,570,06-Jun-13,1306-00199,918.96,R,Akari Care Ltd
http://statistics.data.gov.uk/doc/local-authority/00DA,Leeds City Council,Adult Social Care,Services For Older People Under 65 P/Dis,Transfer Payments,Direct Payments,626,05-Jun-13,1306-00200,1228.96,R,REDACTED PERSONAL DATA
http://statistics.data.gov.uk/doc/local-authority/00DA,Leeds City Council,Central & Corporate,Support And Facilities General Fund,Supplies and Services,Publication And Promotion,267,21-Jun-13,1306-00201,540,R,Alan Brown Flowers
http://statistics.data.gov.uk/doc/local-authority/00DA,Leeds City Council,City Development,Planning & Sustainable Development,Support Services,Legal Disbursements,411,19-Jun-13,1306-00202,3700,R,Alan Evans
http://statistics.data.gov.uk/doc/local-authority/00DA,Leeds City Council,Adult Social Care,Services For Older People Under 65 P/Dis,Transfer Payments,Personalised Budgets,627,05-Jun-13,1306-00203,2040.08,R,REDACTED PERSONAL DATA
http://statistics.data.gov.uk/doc/local-authority/00DA,Leeds City Council,Adult Social Care,Services For Older People - 65 And Over,Transfer Payments,Direct Payments,626,05-Jun-13,1306-00204,2916.88,R,REDACTED PERSONAL DATA
http://statistics.data.gov.uk/doc/local-authority/00DA,Leeds City Council,City Development,Libraries   Arts & Heritage,Supplies and Services,Other Hired And Contracted Services,265,05-Jun-13,1306-00205,4000,R,Aled Jones Enterprises Limited
http://statistics.data.gov.uk/doc/local-authority/00DA,Leeds City Council,Adult Social Care,Adult Social Care,Capital,Furniture And Equipment,5,06-Jun-13,1306-00206,1898,C,Alert It
http://statistics.data.gov.uk/doc/local-authority/00DA,Leeds City Council as Accountable Body,Social Services Pooled Budgets,Jcs For People With Learning Disabilitie,Transfer Payments,Asylum Seekers,626,05-Jun-13,1306-00207,1174.25,R,REDACTED PERSONAL DATA
http://statistics.data.gov.uk/doc/local-authority/00DA,Leeds City Council,Adult Social Care,Services For Older People Under 65 P/Dis,Transfer Payments,Direct Payments,626,05-Jun-13,1306-00208,751.36,R,REDACTED PERSONAL DATA
http://statistics.data.gov.uk/doc/local-authority/00DA,Leeds City Council,Adult Social Care,Services For Older People - 65 And Over,Third Party Payments,Nursing Home,570,06-Jun-13,1306-00209,1614.76,R,Alexander Court Care Home
http://statistics.data.gov.uk/doc/local-authority/00DA,Leeds City Council,Adult Social Care,Services For Older People Under 65 P/Dis,Transfer Payments,Personalised Budgets,627,18-Jun-13,1306-00210,1840.9,R,REDACTED PERSONAL DATA
http://statistics.data.gov.uk/doc/local-authority/00DA,Leeds City Council,Adult Social Care,Services For Adults Under 65 Mental/Dis,Transfer Payments,Personalised Budgets,627,05-Jun-13,1306-00211,640,R,REDACTED PERSONAL DATA
http://statistics.data.gov.uk/doc/local-authority/00DA,Leeds City Council,Adult Social Care,Services For Older People - 65 And Over,Third Party Payments,Residential Care Dementia,571,05-Jun-13,1306-00212,8401.96,R,Alexander Residential Home
http://statistics.data.gov.uk/doc/local-authority/00DA,Leeds City Council,Adult Social Care,Services For Older People - 65 And Over,Third Party Payments,Residential,580,05-Jun-13,1306-00213,18629.24,R,Alexander Residential Home
http://statistics.data.gov.uk/doc/local-authority/00DA,Leeds City Council as Accountable Body,Social Services Pooled Budgets,Jcs For People With Learning Disabilitie,Third Party Payments,Residential,580,05-Jun-13,1306-00214,1270,R,Alexander Residential Home
http://statistics.data.gov.uk/doc/local-authority/00DA,Leeds City Council as Accountable Body,Social Services Pooled Budgets,Jcs For People With Learning Disabilitie,Transfer Payments,Personal Budgets,627,05-Jun-13,1306-00215,536.48,R,REDACTED PERSONAL DATA
http://statistics.data.gov.uk/doc/local-authority/00DA,Leeds City Council,Adult Social Care,Services For Older People - 65 And Over,Third Party Payments,Residential,580,05-Jun-13,1306-00216,4713.2,R,Alexandra Court
http://statistics.data.gov.uk/doc/local-authority/00DA,Leeds City Council,Environment & Housing,Environmental Action (South),Supplies and Services,Bought In Professional Services,277,20-Jun-13,1306-00217,484.3,R,Alfies Boarding Kennels
http://statistics.data.gov.uk/doc/local-authority/00DA,Leeds City Council,Environment & Housing,Environmental Action (South),Supplies and Services,Bought In Professional Services,277,21-Jun-13,1306-00218,490.2,R,Alfies Boarding Kennels
http://statistics.data.gov.uk/doc/local-authority/00DA,Leeds City Council,Environment & Housing,Environmental Action (South),Supplies and Services,Bought In Professional Services,277,20-Jun-13,1306-00219,700,R,Alfies Boarding Kennels
http://statistics.data.gov.uk/doc/local-authority/00DA,Leeds City Council,City Development,Asset Management Services,Premises,Maintenance Of Buildings,101,19-Jun-13,1306-00220,1530.74,R,Alfred Bagnall & Sons (Leeds) Ltd
http://statistics.data.gov.uk/doc/local-authority/00DA,Leeds City Council,City Development,Asset Management Services,Capital,Construction,3,13-Jun-13,1306-00221,600,C,Alfred Bagnall & Sons (Leeds) Ltd
http://statistics.data.gov.uk/doc/local-authority/00DA,West - North West            ,West - North West,Property And Maintenance,Premises,General Maintenance,104,28-Jun-13,1306-00222,980,R,Alfred Bagnall & Sons (Leeds) Ltd
http://statistics.data.gov.uk/doc/local-authority/00DA,West - North West            ,West - North West,Property And Maintenance,Premises,General Maintenance,104,28-Jun-13,1306-00223,1225,R,Alfred Bagnall & Sons (Leeds) Ltd
http://statistics.data.gov.uk/doc/local-authority/00DA,West - North West            ,West - North West,Property And Maintenance,Premises,General Maintenance,104,28-Jun-13,1306-00224,1225,R,Alfred Bagnall & Sons (Leeds) Ltd
http://statistics.data.gov.uk/doc/local-authority/00DA,West - North West            ,West - North West,Property And Maintenance,Premises,General Maintenance,104,28-Jun-13,1306-00225,1225,R,Alfred Bagnall & Sons (Leeds) Ltd
http://statistics.data.gov.uk/doc/local-authority/00DA,West - North West            ,West - North West,Property And Maintenance,Premises,General Maintenance,104,28-Jun-13,1306-00226,1715,R,Alfred Bagnall & Sons (Leeds) Ltd
http://statistics.data.gov.uk/doc/local-authority/00DA,West - North West            ,West - North West,Property And Maintenance,Premises,General Maintenance,104,28-Jun-13,1306-00227,1715,R,Alfred Bagnall & Sons (Leeds) Ltd
http://statistics.data.gov.uk/doc/local-authority/00DA,Leeds City Council,Adult Social Care,Services For Older People Under 65 P/Dis,Transfer Payments,Personalised Budgets,627,05-Jun-13,1306-00228,2477.56,R,REDACTED PERSONAL DATA
http://statistics.data.gov.uk/doc/local-authority/00DA,Leeds City Council,Adult Social Care,Services For Older People - 65 And Over,Transfer Payments,Personalised Budgets,627,05-Jun-13,1306-00229,489.24,R,REDACTED PERSONAL DATA
http://statistics.data.gov.uk/doc/local-authority/00DA,Leeds City Council,Adult Social Care,Services For Older People - 65 And Over,Transfer Payments,Personalised Budgets,627,05-Jun-13,1306-00230,1234,R,REDACTED PERSONAL DATA
http://statistics.data.gov.uk/doc/local-authority/00DA,Leeds City Council as Accountable Body,Social Services Pooled Budgets,Jcs For People With Learning Disabilitie,Transfer Payments,Personal Budgets,627,05-Jun-13,1306-00231,947.96,R,REDACTED PERSONAL DATA
http://statistics.data.gov.uk/doc/local-authority/00DA,Leeds City Council,Adult Social Care,Services For Older People Under 65 P/Dis,Transfer Payments,Personalised Budgets,627,05-Jun-13,1306-00232,666.6,R,REDACTED PERSONAL DATA
http://statistics.data.gov.uk/doc/local-authority/00DA,Leeds City Council,Adult Social Care,Services For Adults Under 65 Mental/Dis,Transfer Payments,Personalised Budgets,627,05-Jun-13,1306-00233,1176.6,R,REDACTED PERSONAL DATA
http://statistics.data.gov.uk/doc/local-authority/00DA,Leeds City Council,Adult Social Care,Services For Older People Under 65 P/Dis,Transfer Payments,Personalised Budgets,627,05-Jun-13,1306-00234,8301.83,R,REDACTED PERSONAL DATA
http://statistics.data.gov.uk/doc/local-authority/00DA,Leeds City Council,Adult Social Care,Services For Older People - 65 And Over,Third Party Payments,Residential,580,05-Jun-13,1306-00235,1107.4,R,Allendale Residential Home
http://statistics.data.gov.uk/doc/local-authority/00DA,Leeds City Council as Accountable Body,Social Services Pooled Budgets,Jcs For People With Learning Disabilitie,Third Party Payments,Residential,580,05-Jun-13,1306-00236,15616.36,R,Allerton Avenue
http://statistics.data.gov.uk/doc/local-authority/00DA,Leeds City Council,Environment & Housing,Parks & Countryside,Supplies and Services,Non-Recurring Grants,227,17-Jun-13,1306-00237,500,R,Allerton Bywater Collery Allotments
http://statistics.data.gov.uk/doc/local-authority/00DA,Leeds City Council,Central & Corporate,Benefits,Supplies and Services,Bank Charges,263,04-Jun-13,1306-00238,1310.56,R,Alliance & Leicester Commercial Bank
http://statistics.data.gov.uk/doc/local-authority/00DA,Leeds City Council,Adult Social Care,Other Generic Services,Third Party Payments,Home Care,568,27-Jun-13,1306-00239,2723.76,R,Allied Healthcare Group Ltd
http://statistics.data.gov.uk/doc/local-authority/00DA,Leeds City Council,Adult Social Care,Other Generic Services,Third Party Payments,Home Care,568,27-Jun-13,1306-00240,6809.47,R,Allied Healthcare Group Ltd
http://statistics.data.gov.uk/doc/local-authority/00DA,Leeds City Council,Adult Social Care,Services For Older People - 65 And Over,Third Party Payments,Home Care,568,27-Jun-13,1306-00241,632.4,R,Allied Healthcare Group Ltd
http://statistics.data.gov.uk/doc/local-authority/00DA,Leeds City Council,Adult Social Care,Services For Older People - 65 And Over,Third Party Payments,Home Care,568,13-Jun-13,1306-00242,715.71,R,Allied Healthcare Group Ltd
http://statistics.data.gov.uk/doc/local-authority/00DA,Leeds City Council,Adult Social Care,Services For Older People - 65 And Over,Third Party Payments,Home Care,568,13-Jun-13,1306-00243,770.93,R,Allied Healthcare Group Ltd
http://statistics.data.gov.uk/doc/local-authority/00DA,Leeds City Council,Adult Social Care,Services For Older People - 65 And Over,Third Party Payments,Home Care,568,13-Jun-13,1306-00244,1657.14,R,Allied Healthcare Group Ltd
http://statistics.data.gov.uk/doc/local-authority/00DA,Leeds City Council,Adult Social Care,Services For Older People - 65 And Over,Third Party Payments,Home Care,568,13-Jun-13,1306-00245,2003.78,R,Allied Healthcare Group Ltd
http://statistics.data.gov.uk/doc/local-authority/00DA,Leeds City Council,Adult Social Care,Services For Older People - 65 And Over,Third Party Payments,Home Care,568,13-Jun-13,1306-00246,2978.53,R,Allied Healthcare Group Ltd
http://statistics.data.gov.uk/doc/local-authority/00DA,Leeds City Council,Adult Social Care,Services For Older People - 65 And Over,Third Party Payments,Home Care,568,13-Jun-13,1306-00247,3194.59,R,Allied Healthcare Group Ltd
http://statistics.data.gov.uk/doc/local-authority/00DA,Leeds City Council,Adult Social Care,Services For Older People - 65 And Over,Third Party Payments,Home Care,568,28-Jun-13,1306-00248,3632.13,R,Allied Healthcare Group Ltd
http://statistics.data.gov.uk/doc/local-authority/00DA,Leeds City Council,Adult Social Care,Services For Older People - 65 And Over,Third Party Payments,Home Care,568,13-Jun-13,1306-00249,6189.14,R,Allied Healthcare Group Ltd
http://statistics.data.gov.uk/doc/local-authority/00DA,Leeds City Council,Adult Social Care,Services For Older People - 65 And Over,Third Party Payments,Home Care,568,28-Jun-13,1306-00250,8803.21,R,Allied Healthcare Group Ltd
http://statistics.data.gov.uk/doc/local-authority/00DA,Leeds City Council,Adult Social Care,Services For Older People - 65 And Over,Third Party Payments,Home Care,568,28-Jun-13,1306-00251,16128.23,R,Allied Healthcare Group Ltd
http://statistics.data.gov.uk/doc/local-authority/00DA,Leeds City Council,Adult Social Care,Services For Older People Under 65 P/Dis,Third Party Payments,Home Care,568,13-Jun-13,1306-00252,655.35,R,Allied Healthcare Group Ltd
http://statistics.data.gov.uk/doc/local-authority/00DA,Leeds City Council,Adult Social Care,Services For Older People Under 65 P/Dis,Third Party Payments,Home Care,568,27-Jun-13,1306-00253,857.72,R,Allied Healthcare Group Ltd
http://statistics.data.gov.uk/doc/local-authority/00DA,Leeds City Council,Adult Social Care,Services For Older People Under 65 P/Dis,Third Party Payments,Home Care,568,27-Jun-13,1306-00254,1091.4,R,Allied Healthcare Group Ltd
http://statistics.data.gov.uk/doc/local-authority/00DA,Leeds City Council,Adult Social Care,Services For Older People Under 65 P/Dis,Third Party Payments,Home Care,568,13-Jun-13,1306-00255,1192.8,R,Allied Healthcare Group Ltd
http://statistics.data.gov.uk/doc/local-authority/00DA,Leeds City Council,Adult Social Care,Services For Older People Under 65 P/Dis,Third Party Payments,Home Care,568,28-Jun-13,1306-00256,1379.6,R,Allied Healthcare Group Ltd
http://statistics.data.gov.uk/doc/local-authority/00DA,Leeds City Council,Adult Social Care,Services For Older People Under 65 P/Dis,Third Party Payments,Home Care,568,27-Jun-13,1306-00257,1387.2,R,Allied Healthcare Group Ltd
http://statistics.data.gov.uk/doc/local-authority/00DA,Leeds City Council,Adult Social Care,Services For Older People Under 65 P/Dis,Third Party Payments,Home Care,568,27-Jun-13,1306-00258,6287.3,R,Allied Healthcare Group Ltd
http://statistics.data.gov.uk/doc/local-authority/00DA,Leeds City Council as Accountable Body,Social Services Pooled Budgets,Jcs For People With Learning Disabilitie,Third Party Payments,Home Care,568,14-Jun-13,1306-00259,539.65,R,Allied Healthcare Group Ltd
http://statistics.data.gov.uk/doc/local-authority/00DA,Leeds City Council as Accountable Body,Social Services Pooled Budgets,Jcs For People With Learning Disabilitie,Third Party Payments,Home Care,568,12-Jun-13,1306-00260,583.58,R,Allied Healthcare Group Ltd
http://statistics.data.gov.uk/doc/local-authority/00DA,Leeds City Council as Accountable Body,Social Services Pooled Budgets,Jcs For People With Learning Disabilitie,Third Party Payments,Home Care,568,07-Jun-13,1306-00261,658.88,R,Allied Healthcare Group Ltd
http://statistics.data.gov.uk/doc/local-authority/00DA,Leeds City Council as Accountable Body,Social Services Pooled Budgets,Jcs For People With Learning Disabilitie,Third Party Payments,Home Care,568,11-Jun-13,1306-00262,2077.05,R,Allied Healthcare Group Ltd
http://statistics.data.gov.uk/doc/local-authority/00DA,Leeds City Council as Accountable Body,Social Services Pooled Budgets,Jcs For People With Learning Disabilitie,Third Party Payments,Home Care,568,06-Jun-13,1306-00263,2653.8,R,Allied Healthcare Group Ltd
http://statistics.data.gov.uk/doc/local-authority/00DA,Leeds City Council as Accountable Body,Social Services Pooled Budgets,Jcs For People With Learning Disabilitie,Third Party Payments,Home Care,568,21-Jun-13,1306-00264,3052.27,R,Allied Healthcare Group Ltd
http://statistics.data.gov.uk/doc/local-authority/00DA,Leeds City Council as Accountable Body,Social Services Pooled Budgets,Jcs For People With Learning Disabilitie,Third Party Payments,Home Care,568,14-Jun-13,1306-00265,3098.1,R,Allied Healthcare Group Ltd
http://statistics.data.gov.uk/doc/local-authority/00DA,Leeds City Council as Accountable Body,Social Services Pooled Budgets,Jcs For People With Learning Disabilitie,Third Party Payments,Home Care,568,10-Jun-13,1306-00266,3817.15,R,Allied Healthcare Group Ltd
http://statistics.data.gov.uk/doc/local-authority/00DA,Leeds City Council as Accountable Body,Social Services Pooled Budgets,Jcs For People With Learning Disabilitie,Third Party Payments,Home Care,568,21-Jun-13,1306-00267,3978.87,R,Allied Healthcare Group Ltd
http://statistics.data.gov.uk/doc/local-authority/00DA,Leeds City Council as Accountable Body,Social Services Pooled Budgets,Jcs For People With Learning Disabilitie,Third Party Payments,Home Care,568,28-Jun-13,1306-00268,4067.03,R,Allied Healthcare Group Ltd
http://statistics.data.gov.uk/doc/local-authority/00DA,Leeds City Council as Accountable Body,Social Services Pooled Budgets,Jcs For People With Learning Disabilitie,Third Party Payments,Home Care,568,06-Jun-13,1306-00269,4168.53,R,Allied Healthcare Group Ltd
http://statistics.data.gov.uk/doc/local-authority/00DA,Leeds City Council as Accountable Body,Social Services Pooled Budgets,Jcs For People With Learning Disabilitie,Third Party Payments,Home Care,568,28-Jun-13,1306-00270,4494.58,R,Allied Healthcare Group Ltd
http://statistics.data.gov.uk/doc/local-authority/00DA,Leeds City Council as Accountable Body,Social Services Pooled Budgets,Jcs For People With Learning Disabilitie,Third Party Payments,Home Care,568,28-Jun-13,1306-00271,16078.05,R,Allied Healthcare Group Ltd
http://statistics.data.gov.uk/doc/local-authority/00DA,Leeds City Council,Childrens Services,Learning Skills & Universal,Transport,Fuel (Non LCC Supplies),321,07-Jun-13,1306-00272,3070.27,R,Allstar Business Solutions Ltd
http://statistics.data.gov.uk/doc/local-authority/00DA,Leeds City Council,City Development,Highways,Transport,Fuel (Non LCC Supplies),321,07-Jun-13,1306-00273,551,R,Allstar Business Solutions Ltd
http://statistics.data.gov.uk/doc/local-authority/00DA,Leeds City Council,Childrens Services,Safeguarding Targeted & Specialist,Support Services,Legal Disbursements,411,03-Jun-13,1306-00274,775,R,Alpha Biolabs
http://statistics.data.gov.uk/doc/local-authority/00DA,Aire Valley Homes Leeds     ,Aire Valley Homes Leeds,Housing,Supplies and Services,Equipment And Materials,207,21-Jun-13,1306-00275,450,R,Alpha Tools (Northern) Ltd
http://statistics.data.gov.uk/doc/local-authority/00DA,Aire Valley Homes Leeds     ,Aire Valley Homes Leeds,Housing,Supplies and Services,Equipment And Materials,207,20-Jun-13,1306-00276,1074.6,R,Alpha Tools (Northern) Ltd
http://statistics.data.gov.uk/doc/local-authority/00DA,Aire Valley Homes Leeds     ,Aire Valley Homes Leeds,Housing,Supplies and Services,Necessitous Clothing,242,21-Jun-13,1306-00277,990,R,Alpha Tools (Northern) Ltd
http://statistics.data.gov.uk/doc/local-authority/00DA,Leeds City Council,Environment & Housing,West North West,Capital,Construction,3,28-Jun-13,1306-00278,1734.25,C,Alternative Windows (Leeds) Ltd
http://statistics.data.gov.uk/doc/local-authority/00DA,Leeds City Council,Childrens Services,Learning Skills & Universal  ,Supplies and Services,Admission Charges To Schools,283,06-May-13,1306-00279,990,R,Alton Towers Park
http://statistics.data.gov.uk/doc/local-authority/00DA,Leeds City Council,Adult Social Care,Services For Older People - 65 And Over,Third Party Payments,Nursing Home,570,05-Jun-13,1306-00280,1336.36,R,Alwoodley Nursing Home
http://statistics.data.gov.uk/doc/local-authority/00DA,Leeds City Council,Adult Social Care,Services For Older People - 65 And Over,Third Party Payments,Residential,580,05-Jun-13,1306-00281,1138.72,R,Alwoodley Nursing Home
http://statistics.data.gov.uk/doc/local-authority/00DA,Leeds City Council,Adult Social Care,Other Generic Services,Third Party Payments,Payments To Voluntary Organisations,561,27-Jun-13,1306-00282,35862.5,R,Alzheimers Disease Society
http://statistics.data.gov.uk/doc/local-authority/00DA,Leeds City Council,Adult Social Care,Social Services Support Services,Third Party Payments,Payments To Voluntary Organisations,561,24-Jun-13,1306-00283,73125,R,Alzheimers Society
http://statistics.data.gov.uk/doc/local-authority/00DA,Leeds City Council as Accountable Body,Social Services Pooled Budgets,Jcs For People With Learning Disabilitie,Transfer Payments,Personal Budgets,627,05-Jun-13,1306-00284,1073.2,R,REDACTED PERSONAL DATA
http://statistics.data.gov.uk/doc/local-authority/00DA,Leeds City Council,Adult Social Care,Services For Adults Under 65 Mental/Dis,Transfer Payments,Personalised Budgets,627,05-Jun-13,1306-00285,2082.56,R,REDACTED PERSONAL DATA
http://statistics.data.gov.uk/doc/local-authority/00DA,Leeds City Council,Adult Social Care,Services For Older People Under 65 P/Dis,Transfer Payments,Personalised Budgets,627,05-Jun-13,1306-00286,1280.32,R,REDACTED PERSONAL DATA
http://statistics.data.gov.uk/doc/local-authority/00DA,Leeds City Council,Adult Social Care,Services For Older People Under 65 P/Dis,Transfer Payments,Direct Payments,626,05-Jun-13,1306-00287,761.44,R,REDACTED PERSONAL DATA
http://statistics.data.gov.uk/doc/local-authority/00DA,Leeds City Council,City Development,Highways  ,Supplies and Services,Books & Audio-Visual Materials,206,30-May-13,1306-00288,523.32,R,Amazon *mktplce Eu-Uk
http://statistics.data.gov.uk/doc/local-authority/00DA,Leeds City Council,City Development,Libraries   Arts & Heritage  ,Supplies and Services,Computer Software & Equipment,214,02-May-13,1306-00289,926.7,R,Amazon *mktplce Eu-Uk
http://statistics.data.gov.uk/doc/local-authority/00DA,Leeds City Council,Childrens Services,Safeguarding Targeted & Specialist,Third Party Payments,General External Residential Placements,507,14-Jun-13,1306-00290,16554,R,Amberleigh Care Ltd
http://statistics.data.gov.uk/doc/local-authority/00DA,Leeds City Council,Environment & Housing,Parks & Countryside,Supplies and Services,Operational Materials,205,21-Jun-13,1306-00291,841.25,R,Amberol Ltd
http://statistics.data.gov.uk/doc/local-authority/00DA,Leeds City Council,Environment & Housing,Parks & Countryside,Supplies and Services,Operational Materials,205,28-Jun-13,1306-00292,1526.4,R,Amberol Ltd
http://statistics.data.gov.uk/doc/local-authority/00DA,Leeds City Council,Adult Social Care,Services For Older People - 65 And Over,Third Party Payments,Residential,580,05-Jun-13,1306-00293,2139.44,R,Amelia House Care Home
http://statistics.data.gov.uk/doc/local-authority/00DA,Leeds City Council,Adult Social Care,Services For Older People - 65 And Over,Transfer Payments,Personalised Budgets,627,05-Jun-13,1306-00294,1469.48,R,REDACTED PERSONAL DATA
http://statistics.data.gov.uk/doc/local-authority/00DA,Leeds City Council,City Development,Libraries   Arts & Heritage,Supplies and Services,Other Hired And Contracted Services,265,07-Jun-13,1306-00295,2000,R,Amore
http://statistics.data.gov.uk/doc/local-authority/00DA,Leeds City Council as Accountable Body,Social Services Pooled Budgets,Jcs For People With Learning Disabilitie,Transfer Payments,Personal Budgets,627,05-Jun-13,1306-00296,878.96,R,REDACTED PERSONAL DATA
http://statistics.data.gov.uk/doc/local-authority/00DA,Leeds City Council as Accountable Body,Social Services Pooled Budgets,Jcs For People With Learning Disabilitie,Transfer Payments,Personal Budgets,627,05-Jun-13,1306-00297,1355.33,R,REDACTED PERSONAL DATA
http://statistics.data.gov.uk/doc/local-authority/00DA,Leeds City Council,Adult Social Care,Services For Adults Under 65 Mental/Dis,Transfer Payments,Direct Payments,626,05-Jun-13,1306-00298,-1164.13,R,REDACTED PERSONAL DATA
http://statistics.data.gov.uk/doc/local-authority/00DA,Leeds City Council,Adult Social Care,Services For Adults Under 65 Mental/Dis,Transfer Payments,Personalised Budgets,627,05-Jun-13,1306-00299,3594.35,R,REDACTED PERSONAL DATA
http://statistics.data.gov.uk/doc/local-authority/00DA,Leeds City Council,Environment & Housing,Environmental Health,Capital,Construction,3,19-Jun-13,1306-00300,4150,C,REDACTED PERSONAL DATA
http://statistics.data.gov.uk/doc/local-authority/00DA,Leeds City Council,Adult Social Care,Services For Older People Under 65 P/Dis,Transfer Payments,Direct Payments,626,05-Jun-13,1306-00301,1124.72,R,REDACTED PERSONAL DATA
http://statistics.data.gov.uk/doc/local-authority/00DA,Leeds City Council,Adult Social Care,Services For Adults Under 65 Mental/Dis,Third Party Payments,Nursing Home,570,05-Jun-13,1306-00302,1876,R,Anchor Trust
http://statistics.data.gov.uk/doc/local-authority/00DA,Leeds City Council,Adult Social Care,Services For Older People - 65 And Over,Third Party Payments,Payments To Voluntary Organisations,561,14-Jun-13,1306-00303,9167.48,R,Anchor Trust
http://statistics.data.gov.uk/doc/local-authority/00DA,Leeds City Council,Adult Social Care,Services For Older People - 65 And Over,Third Party Payments,Nursing Home,570,05-Jun-13,1306-00304,21957.24,R,Anchor Trust
http://statistics.data.gov.uk/doc/local-authority/00DA,Leeds City Council,Adult Social Care,Services For Older People - 65 And Over,Third Party Payments,Residential Care Dementia,571,05-Jun-13,1306-00305,5756.28,R,Anchor Trust
http://statistics.data.gov.uk/doc/local-authority/00DA,Leeds City Council,Adult Social Care,Services For Older People - 65 And Over,Third Party Payments,Nursing Care Dementia,574,05-Jun-13,1306-00306,1159.72,R,Anchor Trust
http://statistics.data.gov.uk/doc/local-authority/00DA,Leeds City Council,Adult Social Care,Services For Older People - 65 And Over,Third Party Payments,Nursing Care Dementia,574,05-Jun-13,1306-00307,3266,R,Anchor Trust
http://statistics.data.gov.uk/doc/local-authority/00DA,Leeds City Council,Adult Social Care,Services For Older People - 65 And Over,Third Party Payments,Residential,580,05-Jun-13,1306-00308,4184.8,R,Anchor Trust
http://statistics.data.gov.uk/doc/local-authority/00DA,Leeds City Council,Adult Social Care,Services For Older People - 65 And Over,Third Party Payments,Residential,580,05-Jun-13,1306-00309,8473,R,Anchor Trust
http://statistics.data.gov.uk/doc/local-authority/00DA,Leeds City Council,Adult Social Care,Services For Older People - 65 And Over,Third Party Payments,Residential,580,05-Jun-13,1306-00310,10751.28,R,Anchor Trust
http://statistics.data.gov.uk/doc/local-authority/00DA,Leeds City Council,Adult Social Care,Services For Older People Under 65 P/Dis,Third Party Payments,Nursing Home,570,05-Jun-13,1306-00311,1560.8,R,Anchor Trust
http://statistics.data.gov.uk/doc/local-authority/00DA,Leeds City Council,Environment & Housing,Strategy & Commissioning,Third Party Payments,Supporting Ppl - Block Gross Chargeable,514,14-Jun-13,1306-00312,5738.04,R,Anchor Trust
http://statistics.data.gov.uk/doc/local-authority/00DA,Leeds City Council as Accountable Body,Social Services Pooled Budgets,Jcs For People With Learning Disabilitie,Third Party Payments,Residential,580,14-Jun-13,1306-00313,672.51,R,Anchor Trust
http://statistics.data.gov.uk/doc/local-authority/00DA,Leeds City Council,Adult Social Care,Services For Older People - 65 And Over,Third Party Payments,Residential Care Dementia,571,05-Jun-13,1306-00314,15003.24,R,Anchor Trust Simon Marks Court
http://statistics.data.gov.uk/doc/local-authority/00DA,Leeds City Council,Adult Social Care,Services For Older People - 65 And Over,Third Party Payments,Residential,580,05-Jun-13,1306-00315,21392.23,R,Anchor Trust Simon Marks Court
http://statistics.data.gov.uk/doc/local-authority/00DA,Leeds City Council,Adult Social Care,Services For Older People Under 65 P/Dis,Transfer Payments,Personalised Budgets,627,05-Jun-13,1306-00316,603.6,R,REDACTED PERSONAL DATA
http://statistics.data.gov.uk/doc/local-authority/00DA,Leeds City Council,Adult Social Care,Services For Older People Under 65 P/Dis,Transfer Payments,Direct Payments,626,05-Jun-13,1306-00317,5217.68,R,REDACTED PERSONAL DATA
http://statistics.data.gov.uk/doc/local-authority/00DA,Leeds City Council,Environment & Housing,Statutory Housing,Supplies and Services,Other Hired And Contracted Services,265,05-Jun-13,1306-00318,727,R,Andrew & Jane Ward
http://statistics.data.gov.uk/doc/local-authority/00DA,Leeds City Council,Adult Social Care,Services For Adults Under 65 Mental/Dis,Transfer Payments,Personalised Budgets,627,05-Jun-13,1306-00319,1049.92,R,REDACTED PERSONAL DATA
http://statistics.data.gov.uk/doc/local-authority/00DA,Leeds City Council as Accountable Body,Social Services Pooled Budgets,Jcs For People With Learning Disabilitie,Transfer Payments,Personal Budgets,627,06-Jun-13,1306-00320,690.32,R,REDACTED PERSONAL DATA
http://statistics.data.gov.uk/doc/local-authority/00DA,Leeds City Council as Accountable Body,Social Services Pooled Budgets,Jcs For People With Learning Disabilitie,Transfer Payments,Personal Budgets,627,05-Jun-13,1306-00321,837.4,R,REDACTED PERSONAL DATA
http://statistics.data.gov.uk/doc/local-authority/00DA,Leeds City Council,Adult Social Care,Services For Older People Under 65 P/Dis,Transfer Payments,Direct Payments,626,05-Jun-13,1306-00322,7414.64,R,REDACTED PERSONAL DATA
http://statistics.data.gov.uk/doc/local-authority/00DA,Leeds City Council,Adult Social Care,Services For Older People Under 65 P/Dis,Transfer Payments,Personalised Budgets,627,05-Jun-13,1306-00323,1000,R,REDACTED PERSONAL DATA
http://statistics.data.gov.uk/doc/local-authority/00DA,Leeds City Council as Accountable Body,Social Services Pooled Budgets,Jcs For People With Learning Disabilitie,Transfer Payments,Asylum Seekers,626,05-Jun-13,1306-00324,775.04,R,REDACTED PERSONAL DATA
http://statistics.data.gov.uk/doc/local-authority/00DA,Leeds City Council,Adult Social Care,Services For Older People Under 65 P/Dis,Transfer Payments,Personalised Budgets,627,05-Jun-13,1306-00325,679.36,R,REDACTED PERSONAL DATA
http://statistics.data.gov.uk/doc/local-authority/00DA,East - North East                 ,East - North East,Construction Services,Supplies and Services,Other Hired And Contracted Services,265,20-Jun-13,1306-00326,2040.23,R,Andrew Miller Builders
http://statistics.data.gov.uk/doc/local-authority/00DA,Leeds City Council,Environment & Housing,Statutory Housing,Supplies and Services,Other Hired And Contracted Services,265,27-Jun-13,1306-00327,600,R,Andrew Owen T/A Kw Estate
http://statistics.data.gov.uk/doc/local-authority/00DA,Leeds City Council,Adult Social Care,Services For Older People Under 65 P/Dis,Transfer Payments,Personalised Budgets,627,05-Jun-13,1306-00328,505.6,R,REDACTED PERSONAL DATA
http://statistics.data.gov.uk/doc/local-authority/00DA,Leeds City Council,Adult Social Care,Services For Older People Under 65 P/Dis,Transfer Payments,Direct Payments,626,05-Jun-13,1306-00329,2021.52,R,REDACTED PERSONAL DATA
http://statistics.data.gov.uk/doc/local-authority/00DA,Leeds City Council as Accountable Body,Social Services Pooled Budgets,Jcs For People With Learning Disabilitie,Transfer Payments,Asylum Seekers,626,05-Jun-13,1306-00330,866.12,R,REDACTED PERSONAL DATA
http://statistics.data.gov.uk/doc/local-authority/00DA,Leeds City Council,Adult Social Care,Services For Older People Under 65 P/Dis,Transfer Payments,Personalised Budgets,627,05-Jun-13,1306-00331,2108.56,R,REDACTED PERSONAL DATA
http://statistics.data.gov.uk/doc/local-authority/00DA,Leeds City Council as Accountable Body,Social Services Pooled Budgets,Jcs For People With Learning Disabilitie,Transfer Payments,Asylum Seekers,626,05-Jun-13,1306-00332,433.6,R,REDACTED PERSONAL DATA
http://statistics.data.gov.uk/doc/local-authority/00DA,Leeds City Council,Adult Social Care,Services For Older People Under 65 P/Dis,Transfer Payments,Personalised Budgets,627,05-Jun-13,1306-00333,494.96,R,REDACTED PERSONAL DATA
http://statistics.data.gov.uk/doc/local-authority/00DA,Leeds City Council as Accountable Body,Social Services Pooled Budgets,Jcs For People With Learning Disabilitie,Transfer Payments,Asylum Seekers,626,05-Jun-13,1306-00334,687.48,R,REDACTED PERSONAL DATA
http://statistics.data.gov.uk/doc/local-authority/00DA,Leeds City Council,Adult Social Care,Services For Older People Under 65 P/Dis,Transfer Payments,Personalised Budgets,627,05-Jun-13,1306-00335,531.68,R,REDACTED PERSONAL DATA
http://statistics.data.gov.uk/doc/local-authority/00DA,Leeds City Council,Adult Social Care,Services For Older People - 65 And Over,Third Party Payments,Home Care,568,11-Jun-13,1306-00336,1598.38,R,Angels Home Care Services
http://statistics.data.gov.uk/doc/local-authority/00DA,Leeds City Council,Adult Social Care,Services For Older People Under 65 P/Dis,Transfer Payments,Personalised Budgets,627,05-Jun-13,1306-00337,438.64,R,REDACTED PERSONAL DATA
http://statistics.data.gov.uk/doc/local-authority/00DA,Leeds City Council,Adult Social Care,Services For Older People Under 65 P/Dis,Transfer Payments,Direct Payments,626,05-Jun-13,1306-00338,642.24,R,REDACTED PERSONAL DATA
http://statistics.data.gov.uk/doc/local-authority/00DA,Leeds City Council,Environment & Housing,Parks & Countryside,Premises,Cleaning Maintenance & Toiletries,127,14-Jun-13,1306-00339,430,R,Ankef Ltd
http://statistics.data.gov.uk/doc/local-authority/00DA,Leeds City Council,Adult Social Care,Services For Older People Under 65 P/Dis,Transfer Payments,Direct Payments,626,05-Jun-13,1306-00340,804.88,R,REDACTED PERSONAL DATA
http://statistics.data.gov.uk/doc/local-authority/00DA,Leeds City Council,Adult Social Care,Services For Older People Under 65 P/Dis,Transfer Payments,Direct Payments,626,05-Jun-13,1306-00341,443.52,R,REDACTED PERSONAL DATA
http://statistics.data.gov.uk/doc/local-authority/00DA,Leeds City Council,Adult Social Care,Services For Older People - 65 And Over,Transfer Payments,Direct Payments,626,05-Jun-13,1306-00342,643.32,R,REDACTED PERSONAL DATA
http://statistics.data.gov.uk/doc/local-authority/00DA,Leeds City Council,Childrens Services,Safeguarding Targeted & Specialist,Employees,Agency Staff,8,21-Jun-13,1306-00343,1781.36,R,Ann Ward-Jarvis
http://statistics.data.gov.uk/doc/local-authority/00DA,Leeds City Council,Adult Social Care,Services For Older People Under 65 P/Dis,Transfer Payments,Direct Payments,626,05-Jun-13,1306-00344,1160,R,REDACTED PERSONAL DATA
http://statistics.data.gov.uk/doc/local-authority/00DA,Leeds City Council,Adult Social Care,Services For Adults Under 65 Mental/Dis,Transfer Payments,Direct Payments,626,05-Jun-13,1306-00345,702.4,R,REDACTED PERSONAL DATA
http://statistics.data.gov.uk/doc/local-authority/00DA,Leeds City Council,Central & Corporate,Customer Services,Supplies and Services,Other Hired And Contracted Services,265,05-Jun-13,1306-00346,661,R,Anna West
http://statistics.data.gov.uk/doc/local-authority/00DA,Leeds City Council,Adult Social Care,Services For Older People - 65 And Over,Transfer Payments,Direct Payments,626,05-Jun-13,1306-00347,2763.16,R,REDACTED PERSONAL DATA
http://statistics.data.gov.uk/doc/local-authority/00DA,Leeds City Council,Adult Social Care,Services For Older People Under 65 P/Dis,Transfer Payments,Personalised Budgets,627,05-Jun-13,1306-00348,964.4,R,REDACTED PERSONAL DATA
http://statistics.data.gov.uk/doc/local-authority/00DA,Leeds City Council,Adult Social Care,Services For Older People - 65 And Over,Transfer Payments,Personalised Budgets,627,05-Jun-13,1306-00349,460.8,R,REDACTED PERSONAL DATA
http://statistics.data.gov.uk/doc/local-authority/00DA,Leeds City Council,Adult Social Care,Services For Older People - 65 And Over,Transfer Payments,Personalised Budgets,627,05-Jun-13,1306-00350,462.28,R,REDACTED PERSONAL DATA
http://statistics.data.gov.uk/doc/local-authority/00DA,Leeds City Council,Adult Social Care,Services For Older People - 65 And Over,Transfer Payments,Personalised Budgets,627,05-Jun-13,1306-00351,551.64,R,REDACTED PERSONAL DATA
http://statistics.data.gov.uk/doc/local-authority/00DA,Leeds City Council,Adult Social Care,Services For Older People - 65 And Over,Transfer Payments,Personalised Budgets,627,05-Jun-13,1306-00352,2021.44,R,REDACTED PERSONAL DATA
http://statistics.data.gov.uk/doc/local-authority/00DA,Leeds City Council,Adult Social Care,Services For Older People Under 65 P/Dis,Transfer Payments,Direct Payments,626,05-Jun-13,1306-00353,547.2,R,REDACTED PERSONAL DATA
http://statistics.data.gov.uk/doc/local-authority/00DA,Leeds City Council as Accountable Body,Social Services Pooled Budgets,Jcs For People With Learning Disabilitie,Transfer Payments,Personal Budgets,627,05-Jun-13,1306-00354,1088.48,R,REDACTED PERSONAL DATA
http://statistics.data.gov.uk/doc/local-authority/00DA,Leeds City Council,Adult Social Care,Services For Older People Under 65 P/Dis,Transfer Payments,Personalised Budgets,627,05-Jun-13,1306-00355,585,R,REDACTED PERSONAL DATA
http://statistics.data.gov.uk/doc/local-authority/00DA,Leeds City Council,Adult Social Care,Services For Older People Under 65 P/Dis,Transfer Payments,Personalised Budgets,627,05-Jun-13,1306-00356,1563.72,R,REDACTED PERSONAL DATA
http://statistics.data.gov.uk/doc/local-authority/00DA,Leeds City Council,City Development,Libraries   Arts & Heritage,Supplies and Services,Other Hired And Contracted Services,265,17-Jun-13,1306-00357,954,R,Anything Audio Ltd
http://statistics.data.gov.uk/doc/local-authority/00DA,Leeds City Council,City Development,Libraries   Arts & Heritage,Supplies and Services,Other Hired And Contracted Services,265,03-Jun-13,1306-00358,1102.5,R,Anything Audio Ltd
http://statistics.data.gov.uk/doc/local-authority/00DA,Leeds City Council,Central & Corporate Functions,Commercial Services Trading Services  ,Supplies and Services,Food & Drink,231,27-May-13,1306-00359,1400.48,R,Apetito Limited
http://statistics.data.gov.uk/doc/local-authority/00DA,Leeds City Council,Central & Corporate Functions,Commercial Services Trading Services  ,Supplies and Services,Food & Drink,231,10-May-13,1306-00360,1447.67,R,Apetito Limited
http://statistics.data.gov.uk/doc/local-authority/00DA,Leeds City Council,Central & Corporate Functions,Commercial Services Trading Services  ,Supplies and Services,Food & Drink,231,13-May-13,1306-00361,1521.51,R,Apetito Limited
http://statistics.data.gov.uk/doc/local-authority/00DA,Leeds City Council,Central & Corporate Functions,Commercial Services Trading Services  ,Supplies and Services,Food & Drink,231,06-May-13,1306-00362,1562.89,R,Apetito Limited
http://statistics.data.gov.uk/doc/local-authority/00DA,Leeds City Council,Central & Corporate Functions,Commercial Services Trading Services  ,Supplies and Services,Food & Drink,231,03-May-13,1306-00363,1564.56,R,Apetito Limited
http://statistics.data.gov.uk/doc/local-authority/00DA,Leeds City Council,Central & Corporate Functions,Commercial Services Trading Services  ,Supplies and Services,Food & Drink,231,01-May-13,1306-00364,1730.42,R,Apetito Limited
http://statistics.data.gov.uk/doc/local-authority/00DA,Leeds City Council,Central & Corporate Functions,Commercial Services Trading Services  ,Supplies and Services,Food & Drink,231,31-May-13,1306-00365,1751.03,R,Apetito Limited
http://statistics.data.gov.uk/doc/local-authority/00DA,Leeds City Council,Central & Corporate Functions,Commercial Services Trading Services  ,Supplies and Services,Food & Drink,231,20-May-13,1306-00366,1754.68,R,Apetito Limited
http://statistics.data.gov.uk/doc/local-authority/00DA,Leeds City Council,Central & Corporate Functions,Commercial Services Trading Services  ,Supplies and Services,Food & Drink,231,17-May-13,1306-00367,1828.51,R,Apetito Limited
http://statistics.data.gov.uk/doc/local-authority/00DA,Leeds City Council,Central & Corporate Functions,Commercial Services Trading Services  ,Supplies and Services,Food & Drink,231,03-May-13,1306-00368,1933.26,R,Apetito Limited
http://statistics.data.gov.uk/doc/local-authority/00DA,Leeds City Council,Central & Corporate Functions,Commercial Services Trading Services  ,Supplies and Services,Food & Drink,231,27-May-13,1306-00369,2087.92,R,Apetito Limited
http://statistics.data.gov.uk/doc/local-authority/00DA,Leeds City Council,Central & Corporate Functions,Commercial Services Trading Services  ,Supplies and Services,Food & Drink,231,03-May-13,1306-00370,2723.21,R,Apetito Limited
http://statistics.data.gov.uk/doc/local-authority/00DA,Leeds City Council,Central & Corporate Functions,Commercial Services Trading Services  ,Supplies and Services,Food & Drink,231,03-May-13,1306-00371,2855.85,R,Apetito Limited
http://statistics.data.gov.uk/doc/local-authority/00DA,Leeds City Council,Adult Social Care,Services For Older People - 65 And Over,Supplies and Services,Food & Drink,231,11-Jun-13,1306-00372,589.67,R,Apetito Ltd
http://statistics.data.gov.uk/doc/local-authority/00DA,Leeds City Council,Adult Social Care,Services For Older People Under 65 P/Dis,Supplies and Services,Food & Drink,231,12-Jun-13,1306-00373,822.48,R,Apetito Ltd
http://statistics.data.gov.uk/doc/local-authority/00DA,Leeds City Council,Environment & Housing,Statutory Housing,Supplies and Services,Other Hired And Contracted Services,265,24-Jun-13,1306-00374,479,R,Apex Homes
http://statistics.data.gov.uk/doc/local-authority/00DA,Leeds City Council as Accountable Body,Social Services Pooled Budgets,Jcs For People With Learning Disabilitie,Third Party Payments,Residential,580,05-Jun-13,1306-00375,10627.56,R,Applewalk Homes
http://statistics.data.gov.uk/doc/local-authority/00DA,Leeds City Council,Environment & Housing,Statutory Housing,Supplies and Services,Other Hired And Contracted Services,265,24-Jun-13,1306-00376,940,R,Ar Properties (Leeds) Ltd
http://statistics.data.gov.uk/doc/local-authority/00DA,Leeds City Council as Accountable Body,Social Services Pooled Budgets,Jcs For People With Learning Disabilitie,Third Party Payments,Home Care,568,19-Jun-13,1306-00377,466.18,R,Arabella Health Staffing Ltd
http://statistics.data.gov.uk/doc/local-authority/00DA,Leeds City Council as Accountable Body,Social Services Pooled Budgets,Jcs For People With Learning Disabilitie,Third Party Payments,Home Care,568,19-Jun-13,1306-00378,466.18,R,Arabella Health Staffing Ltd
http://statistics.data.gov.uk/doc/local-authority/00DA,Leeds City Council as Accountable Body,Social Services Pooled Budgets,Jcs For People With Learning Disabilitie,Third Party Payments,Home Care,568,28-Jun-13,1306-00379,466.18,R,Arabella Health Staffing Ltd
http://statistics.data.gov.uk/doc/local-authority/00DA,Leeds City Council as Accountable Body,Social Services Pooled Budgets,Jcs For People With Learning Disabilitie,Third Party Payments,Home Care,568,05-Jun-13,1306-00380,470.8,R,Arabella Health Staffing Ltd
http://statistics.data.gov.uk/doc/local-authority/00DA,Leeds City Council as Accountable Body,Social Services Pooled Budgets,Jcs For People With Learning Disabilitie,Third Party Payments,Home Care,568,28-Jun-13,1306-00381,527.67,R,Arabella Health Staffing Ltd
http://statistics.data.gov.uk/doc/local-authority/00DA,Leeds City Council as Accountable Body,Social Services Pooled Budgets,Jcs For People With Learning Disabilitie,Third Party Payments,Home Care,568,19-Jun-13,1306-00382,588.94,R,Arabella Health Staffing Ltd
http://statistics.data.gov.uk/doc/local-authority/00DA,Leeds City Council as Accountable Body,Social Services Pooled Budgets,Jcs For People With Learning Disabilitie,Third Party Payments,Home Care,568,28-Jun-13,1306-00383,588.94,R,Arabella Health Staffing Ltd
http://statistics.data.gov.uk/doc/local-authority/00DA,Leeds City Council as Accountable Body,Social Services Pooled Budgets,Jcs For People With Learning Disabilitie,Third Party Payments,Home Care,568,05-Jun-13,1306-00384,588.94,R,Arabella Health Staffing Ltd
http://statistics.data.gov.uk/doc/local-authority/00DA,Leeds City Council as Accountable Body,Social Services Pooled Budgets,Jcs For People With Learning Disabilitie,Third Party Payments,Home Care,568,05-Jun-13,1306-00385,648.07,R,Arabella Health Staffing Ltd
http://statistics.data.gov.uk/doc/local-authority/00DA,Leeds City Council as Accountable Body,Social Services Pooled Budgets,Jcs For People With Learning Disabilitie,Third Party Payments,Home Care,568,12-Jun-13,1306-00386,733.98,R,Arabella Health Staffing Ltd
http://statistics.data.gov.uk/doc/local-authority/00DA,Leeds City Council as Accountable Body,Social Services Pooled Budgets,Jcs For People With Learning Disabilitie,Third Party Payments,Home Care,568,19-Jun-13,1306-00387,764.27,R,Arabella Health Staffing Ltd
http://statistics.data.gov.uk/doc/local-authority/00DA,Leeds City Council as Accountable Body,Social Services Pooled Budgets,Jcs For People With Learning Disabilitie,Third Party Payments,Home Care,568,28-Jun-13,1306-00388,822.03,R,Arabella Health Staffing Ltd
http://statistics.data.gov.uk/doc/local-authority/00DA,Leeds City Council as Accountable Body,Social Services Pooled Budgets,Jcs For People With Learning Disabilitie,Third Party Payments,Home Care,568,19-Jun-13,1306-00389,969.43,R,Arabella Health Staffing Ltd
http://statistics.data.gov.uk/doc/local-authority/00DA,Leeds City Council as Accountable Body,Social Services Pooled Budgets,Jcs For People With Learning Disabilitie,Third Party Payments,Home Care,568,05-Jun-13,1306-00390,1094.33,R,Arabella Health Staffing Ltd
http://statistics.data.gov.uk/doc/local-authority/00DA,Leeds City Council as Accountable Body,Social Services Pooled Budgets,Jcs For People With Learning Disabilitie,Third Party Payments,Home Care,568,19-Jun-13,1306-00391,1116.61,R,Arabella Health Staffing Ltd
http://statistics.data.gov.uk/doc/local-authority/00DA,Leeds City Council as Accountable Body,Social Services Pooled Budgets,Jcs For People With Learning Disabilitie,Third Party Payments,Home Care,568,19-Jun-13,1306-00392,1274.08,R,Arabella Health Staffing Ltd
http://statistics.data.gov.uk/doc/local-authority/00DA,Leeds City Council as Accountable Body,Social Services Pooled Budgets,Jcs For People With Learning Disabilitie,Third Party Payments,Home Care,568,05-Jun-13,1306-00393,1384.41,R,Arabella Health Staffing Ltd
http://statistics.data.gov.uk/doc/local-authority/00DA,Leeds City Council as Accountable Body,Social Services Pooled Budgets,Jcs For People With Learning Disabilitie,Third Party Payments,Home Care,568,05-Jun-13,1306-00394,1582.98,R,Arabella Health Staffing Ltd
http://statistics.data.gov.uk/doc/local-authority/00DA,Leeds City Council as Accountable Body,Social Services Pooled Budgets,Jcs For People With Learning Disabilitie,Third Party Payments,Home Care,568,05-Jun-13,1306-00395,2011.61,R,Arabella Health Staffing Ltd
http://statistics.data.gov.uk/doc/local-authority/00DA,Leeds City Council,Adult Social Care,Services For Older People Under 65 P/Dis,Transfer Payments,Personalised Budgets,627,05-Jun-13,1306-00396,1000,R,REDACTED PERSONAL DATA
http://statistics.data.gov.uk/doc/local-authority/00DA,Leeds City Council,Central & Corporate,Commercial Services Trading Services,Supplies and Services,Other Hired And Contracted Services,265,12-Jun-13,1306-00397,585.61,R,Archbold Carshop Ltd
http://statistics.data.gov.uk/doc/local-authority/00DA,East - North East                 ,East - North East,Construction Services,Supplies and Services,Clothing & Uniforms,241,28-Jun-13,1306-00398,504.96,R,Arco Ltd
http://statistics.data.gov.uk/doc/local-authority/00DA,East - North East                 ,East - North East,Construction Services,Supplies and Services,Clothing & Uniforms,241,06-Jun-13,1306-00399,587.6,R,Arco Ltd
http://statistics.data.gov.uk/doc/local-authority/00DA,East - North East                 ,East - North East,Construction Services,Supplies and Services,Clothing & Uniforms,241,11-Jun-13,1306-00400,649.38,R,Arco Ltd
http://statistics.data.gov.uk/doc/local-authority/00DA,East - North East                 ,East - North East,Construction Services,Supplies and Services,Clothing & Uniforms,241,06-Jun-13,1306-00401,844.6,R,Arco Ltd
http://statistics.data.gov.uk/doc/local-authority/00DA,East - North East                 ,East - North East,Construction Services,Supplies and Services,Clothing & Uniforms,241,19-Jun-13,1306-00402,871.52,R,Arco Ltd
http://statistics.data.gov.uk/doc/local-authority/00DA,East - North East                 ,East - North East,Construction Services,Supplies and Services,Clothing & Uniforms,241,06-Jun-13,1306-00403,1363.7,R,Arco Ltd
http://statistics.data.gov.uk/doc/local-authority/00DA,East - North East                 ,East - North East,Construction Services,Supplies and Services,Clothing & Uniforms,241,06-Jun-13,1306-00404,2056.4,R,Arco Ltd
http://statistics.data.gov.uk/doc/local-authority/00DA,Leeds City Council,Central & Corporate,Commercial Services Trading Services,Supplies and Services,Operational Materials,205,06-Jun-13,1306-00405,440.25,R,Arco Ltd
http://statistics.data.gov.uk/doc/local-authority/00DA,Leeds City Council,Central & Corporate,Commercial Services Trading Services,Supplies and Services,Operational Materials,205,06-Jun-13,1306-00406,481.5,R,Arco Ltd
http://statistics.data.gov.uk/doc/local-authority/00DA,Leeds City Council,Central & Corporate,Commercial Services Trading Services,Supplies and Services,Operational Materials,205,06-Jun-13,1306-00407,554.4,R,Arco Ltd
http://statistics.data.gov.uk/doc/local-authority/00DA,Leeds City Council,Central & Corporate,Commercial Services Trading Services,Supplies and Services,Clothing & Uniforms,241,06-Jun-13,1306-00408,496.4,R,Arco Ltd
http://statistics.data.gov.uk/doc/local-authority/00DA,Leeds City Council,Central & Corporate,Commercial Services Trading Services,Supplies and Services,Clothing & Uniforms,241,06-Jun-13,1306-00409,1790.37,R,Arco Ltd
http://statistics.data.gov.uk/doc/local-authority/00DA,Leeds City Council,Environment & Housing,Parks & Countryside,Supplies and Services,Clothing & Uniforms,241,27-Jun-13,1306-00410,470.29,R,Arco Ltd
http://statistics.data.gov.uk/doc/local-authority/00DA,Leeds City Council,Environment & Housing,Parks & Countryside,Supplies and Services,Clothing & Uniforms,241,28-Jun-13,1306-00411,517.92,R,Arco Ltd
http://statistics.data.gov.uk/doc/local-authority/00DA,Leeds City Council,Environment & Housing,Streetscene Environmental Services,Supplies and Services,Clothing & Uniforms,241,11-Jun-13,1306-00412,608.84,R,Arco Ltd
http://statistics.data.gov.uk/doc/local-authority/00DA,Leeds City Council,Environment & Housing,Streetscene Environmental Services,Supplies and Services,Clothing & Uniforms,241,11-Jun-13,1306-00413,757,R,Arco Ltd
http://statistics.data.gov.uk/doc/local-authority/00DA,Leeds City Council,Environment & Housing,Streetscene Environmental Services,Supplies and Services,Clothing & Uniforms,241,07-Jun-13,1306-00414,1699.95,R,Arco Ltd
http://statistics.data.gov.uk/doc/local-authority/00DA,West - North West            ,West - North West,Corporate Services,Supplies and Services,Clothing & Uniforms,241,11-Jun-13,1306-00415,430.65,R,Arco Ltd
http://statistics.data.gov.uk/doc/local-authority/00DA,Leeds City Council,Environment & Housing,Parks & Countryside,Premises,Cleaning Maintenance & Toiletries,127,21-Jun-13,1306-00416,838.5,R,Arden Winch And Company Limited
http://statistics.data.gov.uk/doc/local-authority/00DA,Leeds City Council,Environment & Housing,Parks & Countryside,Supplies and Services,Clothing & Uniforms,241,21-Jun-13,1306-00417,718.04,R,Arden Winch And Company Limited
http://statistics.data.gov.uk/doc/local-authority/00DA,East - North East                 ,East - North East,Business Improvement,Premises,Roads Paths Seats & Shelters,113,28-Jun-13,1306-00418,600,R,Arena Partnership Limited
http://statistics.data.gov.uk/doc/local-authority/00DA,West - North West            ,West - North West,Regeneration/Customer Research,Supplies and Services,Information Technology (Computers),214,11-Jun-13,1306-00419,3900,R,Arena Partnership Limited
http://statistics.data.gov.uk/doc/local-authority/00DA,Leeds City Council,Childrens Services,Safeguarding Targeted & Specialist  ,Third Party Payments,Pathway/UASC Grants,556,15-May-13,1306-00420,984.25,R,Argos B2b Online
http://statistics.data.gov.uk/doc/local-authority/00DA,Leeds City Council,Childrens Services,Safeguarding Targeted & Specialist  ,Third Party Payments,Pathway/UASC Grants,556,02-May-13,1306-00421,626.92,R,Argos Retail Group
http://statistics.data.gov.uk/doc/local-authority/00DA,Leeds City Council,Childrens Services,Safeguarding Targeted & Specialist,Supplies and Services,Operational Furniture And Equipment,203,21-Jun-13,1306-00422,783,R,Arjohuntleigh Uk
http://statistics.data.gov.uk/doc/local-authority/00DA,Leeds City Council,Adult Social Care,Services For Older People - 65 And Over,Third Party Payments,Home Care,568,12-Jun-13,1306-00423,-2408.57,R,Ark Home Healthcare Ltd
http://statistics.data.gov.uk/doc/local-authority/00DA,Leeds City Council,Adult Social Care,Services For Older People - 65 And Over,Third Party Payments,Home Care,568,12-Jun-13,1306-00424,1236.99,R,Ark Home Healthcare Ltd
http://statistics.data.gov.uk/doc/local-authority/00DA,Leeds City Council,Adult Social Care,Services For Older People - 65 And Over,Third Party Payments,Home Care,568,12-Jun-13,1306-00425,7059.77,R,Ark Home Healthcare Ltd
http://statistics.data.gov.uk/doc/local-authority/00DA,Leeds City Council,Adult Social Care,Services For Older People - 65 And Over,Third Party Payments,Home Care,568,12-Jun-13,1306-00426,7109.74,R,Ark Home Healthcare Ltd
http://statistics.data.gov.uk/doc/local-authority/00DA,Leeds City Council,Adult Social Care,Services For Older People - 65 And Over,Third Party Payments,Home Care,568,12-Jun-13,1306-00427,8420.78,R,Ark Home Healthcare Ltd
http://statistics.data.gov.uk/doc/local-authority/00DA,Leeds City Council,Adult Social Care,Services For Older People - 65 And Over,Third Party Payments,Home Care,568,12-Jun-13,1306-00428,9535,R,Ark Home Healthcare Ltd
http://statistics.data.gov.uk/doc/local-authority/00DA,Leeds City Council,Adult Social Care,Services For Older People - 65 And Over,Third Party Payments,Home Care,568,12-Jun-13,1306-00429,12209.16,R,Ark Home Healthcare Ltd
http://statistics.data.gov.uk/doc/local-authority/00DA,Leeds City Council,Adult Social Care,Services For Older People - 65 And Over,Third Party Payments,Home Care,568,12-Jun-13,1306-00430,19704.82,R,Ark Home Healthcare Ltd
http://statistics.data.gov.uk/doc/local-authority/00DA,Leeds City Council,Adult Social Care,Services For Older People Under 65 P/Dis,Third Party Payments,Home Care,568,12-Jun-13,1306-00431,460.49,R,Ark Home Healthcare Ltd
http://statistics.data.gov.uk/doc/local-authority/00DA,Leeds City Council,Adult Social Care,Services For Older People Under 65 P/Dis,Third Party Payments,Home Care,568,12-Jun-13,1306-00432,947.42,R,Ark Home Healthcare Ltd
http://statistics.data.gov.uk/doc/local-authority/00DA,Leeds City Council,Adult Social Care,Services For Older People Under 65 P/Dis,Third Party Payments,Home Care,568,12-Jun-13,1306-00433,1309.03,R,Ark Home Healthcare Ltd
http://statistics.data.gov.uk/doc/local-authority/00DA,Leeds City Council,Adult Social Care,Services For Older People Under 65 P/Dis,Third Party Payments,Home Care,568,12-Jun-13,1306-00434,2704.84,R,Ark Home Healthcare Ltd
http://statistics.data.gov.uk/doc/local-authority/00DA,Leeds City Council,Adult Social Care,Services For Older People Under 65 P/Dis,Third Party Payments,Home Care,568,12-Jun-13,1306-00435,3706.96,R,Ark Home Healthcare Ltd
http://statistics.data.gov.uk/doc/local-authority/00DA,Leeds City Council,Adult Social Care,Services For Older People Under 65 P/Dis,Third Party Payments,Home Care,568,12-Jun-13,1306-00436,4812.99,R,Ark Home Healthcare Ltd
http://statistics.data.gov.uk/doc/local-authority/00DA,Leeds City Council as Accountable Body,Social Services Pooled Budgets,Jcs For People With Learning Disabilitie,Third Party Payments,Home Care,568,12-Jun-13,1306-00437,519.94,R,Ark Home Healthcare Ltd
http://statistics.data.gov.uk/doc/local-authority/00DA,Leeds City Council,City Development,Highways,Transport,Plant Hire - By Directorate,305,27-Jun-13,1306-00438,2000,R,Armcon Limited
http://statistics.data.gov.uk/doc/local-authority/00DA,Leeds City Council,Adult Social Care,Services For Older People Under 65 P/Dis,Transfer Payments,Direct Payments,626,05-Jun-13,1306-00439,1292.37,R,REDACTED PERSONAL DATA
http://statistics.data.gov.uk/doc/local-authority/00DA,Leeds City Council,Central & Corporate,Executive Support,Supplies and Services, Well Being  Large Grants Projects,230,13-Jun-13,1306-00440,4893,R,Armley Juniors Project For Young People
http://statistics.data.gov.uk/doc/local-authority/00DA,Leeds City Council,Central & Corporate,Commercial Services Trading Services,Supplies and Services,Operational Materials,205,07-Jun-13,1306-00441,418.87,R,Arnold Laver & Co Ltd
http://statistics.data.gov.uk/doc/local-authority/00DA,Leeds City Council,Central & Corporate,Commercial Services Trading Services,Supplies and Services,Operational Materials,205,07-Jun-13,1306-00442,485.94,R,Arnold Laver & Co Ltd
http://statistics.data.gov.uk/doc/local-authority/00DA,Leeds City Council,Central & Corporate,Commercial Services Trading Services,Supplies and Services,Operational Materials,205,07-Jun-13,1306-00443,576.33,R,Arnold Laver & Co Ltd
http://statistics.data.gov.uk/doc/local-authority/00DA,Leeds City Council,Adult Social Care,Services For Older People - 65 And Over,Third Party Payments,Nursing Home,570,06-Jun-13,1306-00444,1323.64,R,Arrigadeen Nursing Home
http://statistics.data.gov.uk/doc/local-authority/00DA,Leeds City Council,Childrens Services,Safeguarding Targeted & Specialist,Supplies and Services,Consultancy Services,259,19-Jun-13,1306-00445,1237.03,R,Arrow  Social Care Consultancy Limited
http://statistics.data.gov.uk/doc/local-authority/00DA,Leeds City Council,City Development,Libraries   Arts & Heritage,Supplies and Services,Art Galleries Total Stores,3,27-Jun-13,1306-00446,1935,R,Artefact
http://statistics.data.gov.uk/doc/local-authority/00DA,Leeds City Council,City Development,Libraries   Arts & Heritage,Supplies and Services,Other Hired And Contracted Services,265,07-Jun-13,1306-00447,750,R,Arterium Ltd
http://statistics.data.gov.uk/doc/local-authority/00DA,Leeds City Council,Adult Social Care,Services For Older People - 65 And Over,Transfer Payments,Personalised Budgets,627,05-Jun-13,1306-00448,1008,R,REDACTED PERSONAL DATA
http://statistics.data.gov.uk/doc/local-authority/00DA,Leeds City Council as Accountable Body,Social Services Pooled Budgets,Jcs For People With Learning Disabilitie,Third Party Payments,Other Agency Services,561,14-Jun-13,1306-00449,-849.9,R,Articulate Advocacy
http://statistics.data.gov.uk/doc/local-authority/00DA,Leeds City Council as Accountable Body,Social Services Pooled Budgets,Jcs For People With Learning Disabilitie,Third Party Payments,Other Agency Services,561,14-Jun-13,1306-00450,1994.3,R,Articulate Advocacy
http://statistics.data.gov.uk/doc/local-authority/00DA,Leeds City Council,Central & Corporate,Commercial Services Trading Services,Supplies and Services,Other Hired And Contracted Services,265,27-Jun-13,1306-00451,457.5,R,Asbestos Sample Analysis Limited
http://statistics.data.gov.uk/doc/local-authority/00DA,Leeds City Council,Central & Corporate,Commercial Services Trading Services,Supplies and Services,Other Hired And Contracted Services,265,20-Jun-13,1306-00452,465,R,Asbestos Sample Analysis Limited
http://statistics.data.gov.uk/doc/local-authority/00DA,Leeds City Council,Central & Corporate,Commercial Services Trading Services,Supplies and Services,Other Hired And Contracted Services,265,05-Jun-13,1306-00453,472.5,R,Asbestos Sample Analysis Limited
http://statistics.data.gov.uk/doc/local-authority/00DA,Leeds City Council,Central & Corporate,Commercial Services Trading Services,Supplies and Services,Other Hired And Contracted Services,265,11-Jun-13,1306-00454,517.5,R,Asbestos Sample Analysis Limited
http://statistics.data.gov.uk/doc/local-authority/00DA,Leeds City Council,Central & Corporate,Commercial Services Trading Services,Supplies and Services,Other Hired And Contracted Services,265,05-Jun-13,1306-00455,547.5,R,Asbestos Sample Analysis Limited
http://statistics.data.gov.uk/doc/local-authority/00DA,Leeds City Council,Central & Corporate,Commercial Services Trading Services,Supplies and Services,Other Hired And Contracted Services,265,07-Jun-13,1306-00456,585,R,Asbestos Sample Analysis Limited
http://statistics.data.gov.uk/doc/local-authority/00DA,Leeds City Council,Central & Corporate,Commercial Services Trading Services,Supplies and Services,Other Hired And Contracted Services,265,20-Jun-13,1306-00457,600,R,Asbestos Sample Analysis Limited
http://statistics.data.gov.uk/doc/local-authority/00DA,Leeds City Council,Central & Corporate Functions,Commercial Services Trading Services  ,Supplies and Services,Operational Materials,205,29-May-13,1306-00458,510.3,R,Ascertiva Group Lt
http://statistics.data.gov.uk/doc/local-authority/00DA,East - North East                 ,East - North East,Construction Services,Supplies and Services,Miscellaneous Expenditure,208,25-Jun-13,1306-00459,2370,R,Ascertiva Group Ltd
http://statistics.data.gov.uk/doc/local-authority/00DA,Leeds City Council,Central & Corporate,Public Health,Third Party Payments,Public Health Commissioned Services,526,07-Jun-13,1306-00460,5186.75,R,Asha Neighbourhood Project
http://statistics.data.gov.uk/doc/local-authority/00DA,Leeds City Council,Childrens Services,Learning Skills & Universal,Premises,Rents,141,06-Jun-13,1306-00461,429,R,Asha Neighbourhood Project
http://statistics.data.gov.uk/doc/local-authority/00DA,Leeds City Council,Adult Social Care,Services For Older People - 65 And Over,Third Party Payments,Residential,580,05-Jun-13,1306-00462,15912.02,R,Ashcroft House Residential Home
http://statistics.data.gov.uk/doc/local-authority/00DA,Leeds City Council,Adult Social Care,Services For Older People - 65 And Over,Third Party Payments,Nursing Home,570,05-Jun-13,1306-00463,1181.56,R,Ashcroft Nursing Home
http://statistics.data.gov.uk/doc/local-authority/00DA,Leeds City Council,Adult Social Care,Services For Older People - 65 And Over,Third Party Payments,Nursing Home,570,05-Jun-13,1306-00464,1302.68,R,Ashcroft Nursing Home
http://statistics.data.gov.uk/doc/local-authority/00DA,Leeds City Council,Adult Social Care,Services For Older People - 65 And Over,Third Party Payments,Residential Care Dementia,571,05-Jun-13,1306-00465,750.84,R,Ashcroft Nursing Home
http://statistics.data.gov.uk/doc/local-authority/00DA,Leeds City Council,Adult Social Care,Services For Older People - 65 And Over,Third Party Payments,Residential,580,05-Jun-13,1306-00466,971.52,R,Ashfield Court
http://statistics.data.gov.uk/doc/local-authority/00DA,Leeds City Council,Adult Social Care,Services For Adults Under 65 Mental/Dis,Third Party Payments,Residential,580,05-Jun-13,1306-00467,2318.4,R,Ashfield Nursing Home
http://statistics.data.gov.uk/doc/local-authority/00DA,Leeds City Council,Adult Social Care,Services For Older People - 65 And Over,Third Party Payments,Nursing Home,570,05-Jun-13,1306-00468,11899.53,R,Ashfield Nursing Home
http://statistics.data.gov.uk/doc/local-authority/00DA,Leeds City Council,Adult Social Care,Services For Older People - 65 And Over,Third Party Payments,Residential Care Dementia,571,05-Jun-13,1306-00469,1159.36,R,Ashfield Nursing Home
http://statistics.data.gov.uk/doc/local-authority/00DA,Leeds City Council,Adult Social Care,Services For Older People - 65 And Over,Third Party Payments,Residential,580,05-Jun-13,1306-00470,1248,R,Ashfield Nursing Home
http://statistics.data.gov.uk/doc/local-authority/00DA,Leeds City Council,Adult Social Care,Services For Older People - 65 And Over,Third Party Payments,Nursing Home,570,05-Jun-13,1306-00471,1860,R,Ashley Care Ltd
http://statistics.data.gov.uk/doc/local-authority/00DA,Leeds City Council as Accountable Body,Social Services Pooled Budgets,Jcs For People With Learning Disabilitie,Transfer Payments,Personal Budgets,627,05-Jun-13,1306-00472,791.32,R,REDACTED PERSONAL DATA
http://statistics.data.gov.uk/doc/local-authority/00DA,Leeds City Council,Adult Social Care,Services For Older People Under 65 P/Dis,Transfer Payments,Personalised Budgets,627,05-Jun-13,1306-00473,634.68,R,REDACTED PERSONAL DATA
http://statistics.data.gov.uk/doc/local-authority/00DA,Leeds City Council,Central & Corporate,Commercial Services Trading Services,Supplies and Services,Other Hired And Contracted Services,265,06-Jun-13,1306-00474,663,R,Ashtead Plant Hire Company Ltd
http://statistics.data.gov.uk/doc/local-authority/00DA,Leeds City Council,City Development,Highways,Transport,Plant Hire - By Directorate,305,06-Jun-13,1306-00475,638,R,Ashtead Plant Hire Company Ltd
http://statistics.data.gov.uk/doc/local-authority/00DA,Leeds City Council,City Development,Highways,Transport,Plant Hire - By Directorate,305,06-Jun-13,1306-00476,638,R,Ashtead Plant Hire Company Ltd
http://statistics.data.gov.uk/doc/local-authority/00DA,Leeds City Council,City Development,Highways,Transport,Plant Hire - By Directorate,305,06-Jun-13,1306-00477,638,R,Ashtead Plant Hire Company Ltd
http://statistics.data.gov.uk/doc/local-authority/00DA,Leeds City Council,City Development,Highways,Transport,Plant Hire - By Directorate,305,06-Jun-13,1306-00478,638,R,Ashtead Plant Hire Company Ltd
http://statistics.data.gov.uk/doc/local-authority/00DA,Leeds City Council,City Development,Highways,Transport,Plant Hire - By Directorate,305,06-Jun-13,1306-00479,638,R,Ashtead Plant Hire Company Ltd
http://statistics.data.gov.uk/doc/local-authority/00DA,Leeds City Council,City Development,Highways,Transport,Plant Hire - By Directorate,305,06-Jun-13,1306-00480,638,R,Ashtead Plant Hire Company Ltd
http://statistics.data.gov.uk/doc/local-authority/00DA,Leeds City Council,City Development,Highways,Transport,Plant Hire - By Directorate,305,06-Jun-13,1306-00481,638,R,Ashtead Plant Hire Company Ltd
http://statistics.data.gov.uk/doc/local-authority/00DA,Leeds City Council,City Development,Highways,Transport,Plant Hire - By Directorate,305,06-Jun-13,1306-00482,638,R,Ashtead Plant Hire Company Ltd
http://statistics.data.gov.uk/doc/local-authority/00DA,Leeds City Council,City Development,Highways,Transport,Plant Hire - By Directorate,305,06-Jun-13,1306-00483,638,R,Ashtead Plant Hire Company Ltd
http://statistics.data.gov.uk/doc/local-authority/00DA,Leeds City Council,City Development,Highways,Transport,Plant Hire - By Directorate,305,06-Jun-13,1306-00484,638,R,Ashtead Plant Hire Company Ltd
http://statistics.data.gov.uk/doc/local-authority/00DA,Leeds City Council,City Development,Highways,Transport,Plant Hire - By Directorate,305,06-Jun-13,1306-00485,638,R,Ashtead Plant Hire Company Ltd
http://statistics.data.gov.uk/doc/local-authority/00DA,Leeds City Council,City Development,Highways,Transport,Plant Hire - By Directorate,305,06-Jun-13,1306-00486,638,R,Ashtead Plant Hire Company Ltd
http://statistics.data.gov.uk/doc/local-authority/00DA,Leeds City Council,City Development,Highways,Transport,Plant Hire - By Directorate,305,06-Jun-13,1306-00487,638,R,Ashtead Plant Hire Company Ltd
http://statistics.data.gov.uk/doc/local-authority/00DA,Leeds City Council,City Development,Highways,Transport,Plant Hire - By Directorate,305,06-Jun-13,1306-00488,638,R,Ashtead Plant Hire Company Ltd
http://statistics.data.gov.uk/doc/local-authority/00DA,Leeds City Council,City Development,Highways,Transport,Plant Hire - By Directorate,305,06-Jun-13,1306-00489,638,R,Ashtead Plant Hire Company Ltd
http://statistics.data.gov.uk/doc/local-authority/00DA,Leeds City Council,City Development,Highways,Transport,Plant Hire - By Directorate,305,06-Jun-13,1306-00490,638,R,Ashtead Plant Hire Company Ltd
http://statistics.data.gov.uk/doc/local-authority/00DA,Leeds City Council,City Development,Highways,Transport,Plant Hire - By Directorate,305,06-Jun-13,1306-00491,638,R,Ashtead Plant Hire Company Ltd
http://statistics.data.gov.uk/doc/local-authority/00DA,Leeds City Council,City Development,Highways,Transport,Plant Hire - By Directorate,305,06-Jun-13,1306-00492,638,R,Ashtead Plant Hire Company Ltd
http://statistics.data.gov.uk/doc/local-authority/00DA,Leeds City Council,City Development,Highways,Transport,Plant Hire - By Directorate,305,06-Jun-13,1306-00493,638,R,Ashtead Plant Hire Company Ltd
http://statistics.data.gov.uk/doc/local-authority/00DA,Leeds City Council,City Development,Highways,Transport,Plant Hire - By Directorate,305,06-Jun-13,1306-00494,638,R,Ashtead Plant Hire Company Ltd
http://statistics.data.gov.uk/doc/local-authority/00DA,Leeds City Council,City Development,Highways,Transport,Plant Hire - By Directorate,305,06-Jun-13,1306-00495,638,R,Ashtead Plant Hire Company Ltd
http://statistics.data.gov.uk/doc/local-authority/00DA,Leeds City Council,City Development,Highways,Transport,Plant Hire - By Directorate,305,06-Jun-13,1306-00496,660,R,Ashtead Plant Hire Company Ltd
http://statistics.data.gov.uk/doc/local-authority/00DA,Leeds City Council,Environment & Housing,Parks & Countryside,Supplies and Services,Operational Materials,205,13-Jun-13,1306-00497,1560,R,Ashtrees Ltd
http://statistics.data.gov.uk/doc/local-authority/00DA,Leeds City Council,Adult Social Care,Services For Older People - 65 And Over,Third Party Payments,Residential Care Dementia,571,05-Jun-13,1306-00498,1226.76,R,Ashworth Grange
http://statistics.data.gov.uk/doc/local-authority/00DA,Leeds City Council,Adult Social Care,Services For Older People - 65 And Over,Third Party Payments,Residential,580,05-Jun-13,1306-00499,1184.92,R,Ashworth Grange
http://statistics.data.gov.uk/doc/local-authority/00DA,Leeds City Council,City Development,Libraries   Arts & Heritage,Supplies and Services,Books & Audio-Visual Materials,206,13-Jun-13,1306-00500,418.62,R,Askews & Holts Library Services Ltd
http://statistics.data.gov.uk/doc/local-authority/00DA,Leeds City Council,City Development,Libraries   Arts & Heritage,Supplies and Services,Books & Audio-Visual Materials,206,21-Jun-13,1306-00501,459.59,R,Askews & Holts Library Services Ltd
http://statistics.data.gov.uk/doc/local-authority/00DA,Leeds City Council,City Development,Libraries   Arts & Heritage,Supplies and Services,Books & Audio-Visual Materials,206,20-Jun-13,1306-00502,552.36,R,Askews & Holts Library Services Ltd
http://statistics.data.gov.uk/doc/local-authority/00DA,Leeds City Council,City Development,Libraries   Arts & Heritage,Supplies and Services,Books & Audio-Visual Materials,206,21-Jun-13,1306-00503,742.63,R,Askews & Holts Library Services Ltd
http://statistics.data.gov.uk/doc/local-authority/00DA,Leeds City Council,City Development,Libraries   Arts & Heritage,Supplies and Services,Books & Audio-Visual Materials,206,18-Jun-13,1306-00504,768.71,R,Askews & Holts Library Services Ltd
http://statistics.data.gov.uk/doc/local-authority/00DA,Leeds City Council,City Development,Libraries   Arts & Heritage,Supplies and Services,Books & Audio-Visual Materials,206,11-Jun-13,1306-00505,791.87,R,Askews & Holts Library Services Ltd
http://statistics.data.gov.uk/doc/local-authority/00DA,Leeds City Council,City Development,Libraries   Arts & Heritage,Supplies and Services,Books & Audio-Visual Materials,206,21-Jun-13,1306-00506,810.6,R,Askews & Holts Library Services Ltd
http://statistics.data.gov.uk/doc/local-authority/00DA,Leeds City Council,City Development,Libraries   Arts & Heritage,Supplies and Services,Books & Audio-Visual Materials,206,13-Jun-13,1306-00507,858.49,R,Askews & Holts Library Services Ltd
http://statistics.data.gov.uk/doc/local-authority/00DA,Leeds City Council,City Development,Libraries   Arts & Heritage,Supplies and Services,Books & Audio-Visual Materials,206,11-Jun-13,1306-00508,1116.03,R,Askews & Holts Library Services Ltd
http://statistics.data.gov.uk/doc/local-authority/00DA,Leeds City Council,City Development,Libraries   Arts & Heritage,Supplies and Services,Books & Audio-Visual Materials,206,18-Jun-13,1306-00509,1558.04,R,Askews & Holts Library Services Ltd
http://statistics.data.gov.uk/doc/local-authority/00DA,Leeds City Council,City Development,Libraries   Arts & Heritage,Supplies and Services,Books & Audio-Visual Materials,206,18-Jun-13,1306-00510,1749.66,R,Askews & Holts Library Services Ltd
http://statistics.data.gov.uk/doc/local-authority/00DA,Leeds City Council,City Development,Libraries   Arts & Heritage,Supplies and Services,Books & Audio-Visual Materials,206,11-Jun-13,1306-00511,2389.27,R,Askews & Holts Library Services Ltd
http://statistics.data.gov.uk/doc/local-authority/00DA,Leeds City Council,City Development,Libraries   Arts & Heritage,Supplies and Services,Books & Audio-Visual Materials,206,21-Jun-13,1306-00512,2410.82,R,Askews & Holts Library Services Ltd
http://statistics.data.gov.uk/doc/local-authority/00DA,Leeds City Council,City Development,Libraries   Arts & Heritage,Supplies and Services,Books & Audio-Visual Materials,206,18-Jun-13,1306-00513,2411.04,R,Askews & Holts Library Services Ltd
http://statistics.data.gov.uk/doc/local-authority/00DA,Leeds City Council,City Development,Libraries   Arts & Heritage,Supplies and Services,Books & Audio-Visual Materials,206,11-Jun-13,1306-00514,2789.81,R,Askews & Holts Library Services Ltd
http://statistics.data.gov.uk/doc/local-authority/00DA,Leeds City Council,City Development,Libraries   Arts & Heritage,Supplies and Services,Books & Audio-Visual Materials,206,21-Jun-13,1306-00515,3103.01,R,Askews & Holts Library Services Ltd
http://statistics.data.gov.uk/doc/local-authority/00DA,Leeds City Council,City Development,Libraries   Arts & Heritage,Supplies and Services,Books & Audio-Visual Materials,206,11-Jun-13,1306-00516,3448.2,R,Askews & Holts Library Services Ltd
http://statistics.data.gov.uk/doc/local-authority/00DA,Leeds City Council,City Development,Libraries   Arts & Heritage,Supplies and Services,Books & Audio-Visual Materials,206,18-Jun-13,1306-00517,4612.55,R,Askews & Holts Library Services Ltd
http://statistics.data.gov.uk/doc/local-authority/00DA,Leeds City Council,City Development,Libraries   Arts & Heritage,Supplies and Services,Books & Audio-Visual Materials,206,18-Jun-13,1306-00518,6016.59,R,Askews & Holts Library Services Ltd
http://statistics.data.gov.uk/doc/local-authority/00DA,Leeds City Council,City Development,Libraries   Arts & Heritage,Supplies and Services,Books & Audio-Visual Materials,206,21-Jun-13,1306-00519,17941.16,R,Askews & Holts Library Services Ltd
http://statistics.data.gov.uk/doc/local-authority/00DA,East - North East                 ,East - North East,Corporate Directorate,Employees,General Training,79,21-Jun-13,1306-00520,5110,R,Askham Bryan College
http://statistics.data.gov.uk/doc/local-authority/00DA,Leeds City Council,City Development,Libraries   Arts & Heritage,Supplies and Services,Other Hired And Contracted Services,265,20-Jun-13,1306-00521,500,R,Aslan Productions Ltd
http://statistics.data.gov.uk/doc/local-authority/00DA,Leeds City Council,City Development,Highways,Transport,Plant Hire - By Directorate,305,28-Jun-13,1306-00522,495,R,Asphalt Pavers
http://statistics.data.gov.uk/doc/local-authority/00DA,Leeds City Council,City Development,Highways,Transport,Plant Hire - By Directorate,305,14-Jun-13,1306-00523,495,R,Asphalt Pavers
http://statistics.data.gov.uk/doc/local-authority/00DA,Leeds City Council,City Development,Highways,Transport,Plant Hire - By Directorate,305,12-Jun-13,1306-00524,495,R,Asphalt Pavers
http://statistics.data.gov.uk/doc/local-authority/00DA,Leeds City Council,City Development,Highways,Transport,Plant Hire - By Directorate,305,06-Jun-13,1306-00525,495,R,Asphalt Pavers
http://statistics.data.gov.uk/doc/local-authority/00DA,Leeds City Council,City Development,Highways,Transport,Plant Hire - By Directorate,305,28-Jun-13,1306-00526,650,R,Asphalt Pavers
http://statistics.data.gov.uk/doc/local-authority/00DA,Leeds City Council,City Development,Highways,Transport,Plant Hire - By Directorate,305,28-Jun-13,1306-00527,650,R,Asphalt Pavers
http://statistics.data.gov.uk/doc/local-authority/00DA,Leeds City Council,City Development,Highways,Transport,Plant Hire - By Directorate,305,28-Jun-13,1306-00528,650,R,Asphalt Pavers
http://statistics.data.gov.uk/doc/local-authority/00DA,Leeds City Council,City Development,Highways,Transport,Plant Hire - By Directorate,305,19-Jun-13,1306-00529,790,R,Asphalt Pavers
http://statistics.data.gov.uk/doc/local-authority/00DA,Leeds City Council,City Development,Highways,Transport,Plant Hire - By Directorate,305,19-Jun-13,1306-00530,790,R,Asphalt Pavers
http://statistics.data.gov.uk/doc/local-authority/00DA,Leeds City Council,City Development,Highways,Transport,Plant Hire - By Directorate,305,14-Jun-13,1306-00531,790,R,Asphalt Pavers
http://statistics.data.gov.uk/doc/local-authority/00DA,Leeds City Council,City Development,Highways,Transport,Plant Hire - By Directorate,305,06-Jun-13,1306-00532,790,R,Asphalt Pavers
http://statistics.data.gov.uk/doc/local-authority/00DA,Leeds City Council,City Development,Highways,Transport,Plant Hire - By Directorate,305,06-Jun-13,1306-00533,790,R,Asphalt Pavers
http://statistics.data.gov.uk/doc/local-authority/00DA,Leeds City Council,City Development,Highways,Transport,Plant Hire - By Directorate,305,28-Jun-13,1306-00534,850,R,Asphalt Pavers
http://statistics.data.gov.uk/doc/local-authority/00DA,Leeds City Council,City Development,Highways,Transport,Plant Hire - By Directorate,305,28-Jun-13,1306-00535,881,R,Asphalt Pavers
http://statistics.data.gov.uk/doc/local-authority/00DA,Leeds City Council,City Development,Highways,Transport,Plant Hire - By Directorate,305,28-Jun-13,1306-00536,924,R,Asphalt Pavers
http://statistics.data.gov.uk/doc/local-authority/00DA,Leeds City Council,City Development,Highways,Transport,Plant Hire - By Directorate,305,21-Jun-13,1306-00537,1064,R,Asphalt Pavers
http://statistics.data.gov.uk/doc/local-authority/00DA,Leeds City Council,City Development,Highways,Transport,Plant Hire - By Directorate,305,28-Jun-13,1306-00538,1155,R,Asphalt Pavers
http://statistics.data.gov.uk/doc/local-authority/00DA,Leeds City Council,City Development,Highways,Transport,Plant Hire - By Directorate,305,21-Jun-13,1306-00539,1160,R,Asphalt Pavers
http://statistics.data.gov.uk/doc/local-authority/00DA,Leeds City Council,City Development,Highways,Transport,Plant Hire - By Directorate,305,21-Jun-13,1306-00540,1300,R,Asphalt Pavers
http://statistics.data.gov.uk/doc/local-authority/00DA,Leeds City Council,City Development,Highways,Transport,Plant Hire - By Directorate,305,14-Jun-13,1306-00541,1670,R,Asphalt Pavers
http://statistics.data.gov.uk/doc/local-authority/00DA,Leeds City Council,Childrens Services,Safeguarding Targeted & Specialist,Supplies and Services,Teaching Materials,202,21-Jun-13,1306-00542,579,R,Assessment And Qualifications Alliance
http://statistics.data.gov.uk/doc/local-authority/00DA,East - North East              ,East - North East,Construction Services  ,Premises,Removal Of Workplace Waste,126,15-May-13,1306-00543,721.92,R,Associated Waste Manag
http://statistics.data.gov.uk/doc/local-authority/00DA,East - North East              ,East - North East,Construction Services  ,Premises,Removal Of Workplace Waste,126,30-May-13,1306-00544,1393.92,R,Associated Waste Manag
http://statistics.data.gov.uk/doc/local-authority/00DA,East - North East              ,East - North East,Construction Services  ,Premises,Removal Of Workplace Waste,126,09-May-13,1306-00545,1748.54,R,Associated Waste Manag
http://statistics.data.gov.uk/doc/local-authority/00DA,East - North East              ,East - North East,Construction Services  ,Premises,Removal Of Workplace Waste,126,21-May-13,1306-00546,2141.52,R,Associated Waste Manag
http://statistics.data.gov.uk/doc/local-authority/00DA,East - North East              ,East - North East,Construction Services  ,Premises,Removal Of Workplace Waste,126,30-May-13,1306-00547,2601.55,R,Associated Waste Manag
http://statistics.data.gov.uk/doc/local-authority/00DA,Leeds City Council,Central & Corporate Functions,Commercial Services Trading Services  ,Supplies and Services,Waste Disposal Charges,236,08-May-13,1306-00548,510.55,R,Associated Waste Manag
http://statistics.data.gov.uk/doc/local-authority/00DA,Leeds City Council,Central & Corporate Functions,Commercial Services Trading Services  ,Supplies and Services,Waste Disposal Charges,236,31-May-13,1306-00549,871.24,R,Associated Waste Manag
http://statistics.data.gov.uk/doc/local-authority/00DA,Leeds City Council,Central & Corporate Functions,Commercial Services Trading Services  ,Supplies and Services,Waste Disposal Charges,236,22-May-13,1306-00550,2051.73,R,Associated Waste Manag
http://statistics.data.gov.uk/doc/local-authority/00DA,Leeds City Council,Central & Corporate,Support And Facilities General Fund,Premises,Removal Of Workplace Waste,126,18-Jun-13,1306-00551,3846.95,R,Associated Waste Management Limited
http://statistics.data.gov.uk/doc/local-authority/00DA,Leeds City Council,Central & Corporate,Support And Facilities General Fund,Premises,Removal Of Workplace Waste,126,19-Jun-13,1306-00552,4835.31,R,Associated Waste Management Limited
http://statistics.data.gov.uk/doc/local-authority/00DA,Leeds City Council,Central & Corporate,Support And Facilities General Fund,Premises,Removal Of Workplace Waste,126,17-Jun-13,1306-00553,5912.23,R,Associated Waste Management Limited
http://statistics.data.gov.uk/doc/local-authority/00DA,Leeds City Council,Central & Corporate,Support And Facilities General Fund,Premises,Removal Of Workplace Waste,126,18-Jun-13,1306-00554,7032.61,R,Associated Waste Management Limited
http://statistics.data.gov.uk/doc/local-authority/00DA,Leeds City Council,City Development,Economic Development,Premises,Removal Of Workplace Waste,126,28-Jun-13,1306-00555,428.46,R,Associated Waste Management Limited
http://statistics.data.gov.uk/doc/local-authority/00DA,Leeds City Council,City Development,Economic Development,Premises,Removal Of Workplace Waste,126,12-Jun-13,1306-00556,476.22,R,Associated Waste Management Limited
http://statistics.data.gov.uk/doc/local-authority/00DA,Leeds City Council,City Development,Economic Development,Premises,Removal Of Workplace Waste,126,21-Jun-13,1306-00557,530.15,R,Associated Waste Management Limited
http://statistics.data.gov.uk/doc/local-authority/00DA,Leeds City Council,City Development,Economic Development,Premises,Removal Of Workplace Waste,126,07-Jun-13,1306-00558,548.64,R,Associated Waste Management Limited
http://statistics.data.gov.uk/doc/local-authority/00DA,Leeds City Council,City Development,Economic Development,Premises,Removal Of Workplace Waste,126,14-Jun-13,1306-00559,560.97,R,Associated Waste Management Limited
http://statistics.data.gov.uk/doc/local-authority/00DA,Leeds City Council,City Development,Support Services,Premises,Removal Of Workplace Waste,126,17-Jun-13,1306-00560,576.28,R,Associated Waste Management Limited
http://statistics.data.gov.uk/doc/local-authority/00DA,Leeds City Council,City Development,Support Services,Premises,Removal Of Workplace Waste,126,12-Jun-13,1306-00561,601.07,R,Associated Waste Management Limited
http://statistics.data.gov.uk/doc/local-authority/00DA,Leeds City Council,City Development,Support Services,Premises,Removal Of Workplace Waste,126,12-Jun-13,1306-00562,1270.32,R,Associated Waste Management Limited
http://statistics.data.gov.uk/doc/local-authority/00DA,Leeds City Council,City Development,Support Services,Premises,Removal Of Workplace Waste,126,13-Jun-13,1306-00563,3091.02,R,Associated Waste Management Limited
http://statistics.data.gov.uk/doc/local-authority/00DA,Leeds City Council,City Development,Support Services,Premises,Removal Of Workplace Waste,126,17-Jun-13,1306-00564,3173.82,R,Associated Waste Management Limited
http://statistics.data.gov.uk/doc/local-authority/00DA,Leeds City Council,Environment & Housing,Parks & Countryside,Premises,Removal Of Workplace Waste,126,11-Jun-13,1306-00565,419,R,Associated Waste Management Limited
http://statistics.data.gov.uk/doc/local-authority/00DA,Leeds City Council,Environment & Housing,Parks & Countryside,Premises,Removal Of Workplace Waste,126,11-Jun-13,1306-00566,426,R,Associated Waste Management Limited
http://statistics.data.gov.uk/doc/local-authority/00DA,Leeds City Council,Environment & Housing,Parks & Countryside,Premises,Removal Of Workplace Waste,126,11-Jun-13,1306-00567,426,R,Associated Waste Management Limited
http://statistics.data.gov.uk/doc/local-authority/00DA,Leeds City Council,Environment & Housing,Parks & Countryside,Premises,Removal Of Workplace Waste,126,17-Jun-13,1306-00568,503.36,R,Associated Waste Management Limited
http://statistics.data.gov.uk/doc/local-authority/00DA,Leeds City Council,Environment & Housing,Parks & Countryside,Premises,Removal Of Workplace Waste,126,06-Jun-13,1306-00569,568.4,R,Associated Waste Management Limited
http://statistics.data.gov.uk/doc/local-authority/00DA,Leeds City Council,Environment & Housing,Parks & Countryside,Premises,Removal Of Workplace Waste,126,04-Jun-13,1306-00570,929.36,R,Associated Waste Management Limited
http://statistics.data.gov.uk/doc/local-authority/00DA,Leeds City Council,Environment & Housing,Parks & Countryside,Premises,Removal Of Workplace Waste,126,04-Jun-13,1306-00571,973.6,R,Associated Waste Management Limited
http://statistics.data.gov.uk/doc/local-authority/00DA,Leeds City Council,Environment & Housing,Parks & Countryside,Premises,Removal Of Workplace Waste,126,04-Jun-13,1306-00572,979.49,R,Associated Waste Management Limited
http://statistics.data.gov.uk/doc/local-authority/00DA,Leeds City Council,Environment & Housing,Parks & Countryside,Premises,Removal Of Workplace Waste,126,18-Jun-13,1306-00573,1091.25,R,Associated Waste Management Limited
http://statistics.data.gov.uk/doc/local-authority/00DA,Leeds City Council,Environment & Housing,Parks & Countryside,Premises,Removal Of Workplace Waste,126,04-Jun-13,1306-00574,1120.72,R,Associated Waste Management Limited
http://statistics.data.gov.uk/doc/local-authority/00DA,Leeds City Council,Environment & Housing,Parks & Countryside,Premises,Removal Of Workplace Waste,126,11-Jun-13,1306-00575,1149.97,R,Associated Waste Management Limited
http://statistics.data.gov.uk/doc/local-authority/00DA,Leeds City Council,Environment & Housing,Streetscene Environmental Services,Supplies and Services,Waste Disposal Charges,236,27-Jun-13,1306-00576,-861.32,R,Associated Waste Management Limited
http://statistics.data.gov.uk/doc/local-authority/00DA,Leeds City Council,Environment & Housing,Streetscene Environmental Services,Supplies and Services,Waste Disposal Charges,236,06-Jun-13,1306-00577,1352.92,R,Associated Waste Management Limited
http://statistics.data.gov.uk/doc/local-authority/00DA,Leeds City Council,Environment & Housing,Streetscene Environmental Services,Supplies and Services,Waste Disposal Charges,236,06-Jun-13,1306-00578,1941.74,R,Associated Waste Management Limited
http://statistics.data.gov.uk/doc/local-authority/00DA,Leeds City Council,Environment & Housing,Streetscene Environmental Services,Supplies and Services,Waste Disposal Charges,236,06-Jun-13,1306-00579,2169.27,R,Associated Waste Management Limited
http://statistics.data.gov.uk/doc/local-authority/00DA,Leeds City Council,Environment & Housing,Streetscene Environmental Services,Supplies and Services,Waste Disposal Charges,236,06-Jun-13,1306-00580,2744.26,R,Associated Waste Management Limited
http://statistics.data.gov.uk/doc/local-authority/00DA,Leeds City Council,Environment & Housing,Streetscene Environmental Services,Supplies and Services,Waste Disposal Charges,236,06-Jun-13,1306-00581,2821.13,R,Associated Waste Management Limited
http://statistics.data.gov.uk/doc/local-authority/00DA,Leeds City Council,Environment & Housing,Streetscene Environmental Services,Supplies and Services,Waste Disposal Charges,236,06-Jun-13,1306-00582,2917.98,R,Associated Waste Management Limited
http://statistics.data.gov.uk/doc/local-authority/00DA,Leeds City Council,Environment & Housing,Streetscene Environmental Services,Supplies and Services,Waste Disposal Charges,236,06-Jun-13,1306-00583,2937.98,R,Associated Waste Management Limited
http://statistics.data.gov.uk/doc/local-authority/00DA,Leeds City Council,Environment & Housing,Streetscene Environmental Services,Supplies and Services,Waste Disposal Charges,236,06-Jun-13,1306-00584,3042.52,R,Associated Waste Management Limited
http://statistics.data.gov.uk/doc/local-authority/00DA,Leeds City Council,Environment & Housing,Streetscene Environmental Services,Supplies and Services,Waste Disposal Charges,236,06-Jun-13,1306-00585,3345.38,R,Associated Waste Management Limited
http://statistics.data.gov.uk/doc/local-authority/00DA,Leeds City Council,Environment & Housing,Streetscene Environmental Services,Supplies and Services,Waste Disposal Charges,236,28-Jun-13,1306-00586,5204.09,R,Associated Waste Management Limited
http://statistics.data.gov.uk/doc/local-authority/00DA,Leeds City Council,Environment & Housing,Streetscene Environmental Services,Supplies and Services,Waste Disposal Charges,236,28-Jun-13,1306-00587,76919.21,R,Associated Waste Management Limited
http://statistics.data.gov.uk/doc/local-authority/00DA,Leeds City Council,Environment & Housing,Streetscene Environmental Services,Supplies and Services,Waste Disposal Charges,236,12-Jun-13,1306-00588,86098.07,R,Associated Waste Management Limited
http://statistics.data.gov.uk/doc/local-authority/00DA,Leeds City Council,Environment & Housing,Streetscene Environmental Services,Supplies and Services,Waste Disposal Charges,236,25-Jun-13,1306-00589,87408.91,R,Associated Waste Management Limited
http://statistics.data.gov.uk/doc/local-authority/00DA,Leeds City Council,Environment & Housing,Streetscene Environmental Services,Supplies and Services,Waste Disposal Charges,236,21-Jun-13,1306-00590,100584.41,R,Associated Waste Management Limited
http://statistics.data.gov.uk/doc/local-authority/00DA,Leeds City Council,Environment & Housing,Streetscene Environmental Services,Supplies and Services,Waste Disposal Charges,236,28-Jun-13,1306-00591,101162.14,R,Associated Waste Management Limited
http://statistics.data.gov.uk/doc/local-authority/00DA,Leeds City Council,Central & Corporate,Support And Facilities General Fund,Employees,Tuition & Course Fees,73,12-Jun-13,1306-00592,1416,R,Association Of Electoral Administrators
http://statistics.data.gov.uk/doc/local-authority/00DA,Leeds City Council,Childrens Services,Safeguarding Targeted & Specialist,Supplies and Services,Operational Furniture And Equipment,203,27-Jun-13,1306-00593,444.95,R,Astor Bannerman Medical Ltd
http://statistics.data.gov.uk/doc/local-authority/00DA,Leeds City Council as Accountable Body,Social Services Pooled Budgets,Leeds Community Equip Store Pooled Budgt,Supplies and Services,Other Equipment,203,27-Jun-13,1306-00594,494.95,R,Astor Bannerman Medical Ltd
http://statistics.data.gov.uk/doc/local-authority/00DA,East - North East                 ,East - North East,Corporate Directorate,Employees,General Training,79,19-Jun-13,1306-00595,600,R,Astra  Access Safety Training Ltd
http://statistics.data.gov.uk/doc/local-authority/00DA,Leeds City Council,City Development,Asset Management Services,Premises,Rents,141,21-Jun-13,1306-00596,16159.43,R,Atc Properties Limited
http://statistics.data.gov.uk/doc/local-authority/00DA,Leeds City Council,City Development,Asset Management Services,Premises,Rents,141,21-Jun-13,1306-00597,32318.87,R,Atc Properties Limited
http://statistics.data.gov.uk/doc/local-authority/00DA,Leeds City Council,Adult Social Care,Services For Older People - 65 And Over,Third Party Payments,Nursing Home,570,05-Jun-13,1306-00598,14271.97,R,Atkinson Court
http://statistics.data.gov.uk/doc/local-authority/00DA,Leeds City Council,Adult Social Care,Services For Older People - 65 And Over,Third Party Payments,Nursing Care Dementia,574,05-Jun-13,1306-00599,10254.08,R,Atkinson Court
http://statistics.data.gov.uk/doc/local-authority/00DA,Leeds City Council,Adult Social Care,Services For Older People - 65 And Over,Third Party Payments,Residential,580,05-Jun-13,1306-00600,1951.68,R,Atkinson Court
http://statistics.data.gov.uk/doc/local-authority/00DA,Leeds City Council,Central & Corporate,Commercial Services Trading Services,Supplies and Services,Other Hired And Contracted Services,265,27-Jun-13,1306-00601,15357.88,R,Atkinsons Fencing Limited
http://statistics.data.gov.uk/doc/local-authority/00DA,Leeds City Council,Central & Corporate,Commercial Services Trading Services,Supplies and Services,Other Hired And Contracted Services,265,14-Jun-13,1306-00602,440,R,Atspace Limited
http://statistics.data.gov.uk/doc/local-authority/00DA,Leeds City Council,City Development,Libraries   Arts & Heritage,Supplies and Services,Books & Audio-Visual Materials,206,21-Jun-13,1306-00603,495.6,R,Audiogo Ltd
http://statistics.data.gov.uk/doc/local-authority/00DA,Leeds City Council,City Development,Libraries   Arts & Heritage,Supplies and Services,Books & Audio-Visual Materials,206,28-Jun-13,1306-00604,508.38,R,Audiogo Ltd
http://statistics.data.gov.uk/doc/local-authority/00DA,Leeds City Council,City Development,Libraries   Arts & Heritage,Supplies and Services,Books & Audio-Visual Materials,206,12-Jun-13,1306-00605,649.28,R,Audiogo Ltd
http://statistics.data.gov.uk/doc/local-authority/00DA,Leeds City Council,Adult Social Care,Services For Older People - 65 And Over,Transfer Payments,Personalised Budgets,627,05-Jun-13,1306-00606,922.6,R,REDACTED PERSONAL DATA
http://statistics.data.gov.uk/doc/local-authority/00DA,Leeds City Council,Adult Social Care,Services For Older People - 65 And Over,Transfer Payments,Personalised Budgets,627,12-Jun-13,1306-00607,4038.97,R,REDACTED PERSONAL DATA
http://statistics.data.gov.uk/doc/local-authority/00DA,Leeds City Council,Adult Social Care,Services For Older People - 65 And Over,Transfer Payments,Personalised Budgets,627,12-Jun-13,1306-00608,1482.01,R,REDACTED PERSONAL DATA
http://statistics.data.gov.uk/doc/local-authority/00DA,Leeds City Council as Accountable Body,Social Services Pooled Budgets,Jcs For People With Learning Disabilitie,Third Party Payments,Residential,580,05-Jun-13,1306-00609,8217,R,Autism Care (Uk) Ltd
http://statistics.data.gov.uk/doc/local-authority/00DA,Leeds City Council,Childrens Services,Safeguarding Targeted & Specialist,Third Party Payments,SEN Placements,566,14-Jun-13,1306-00610,512,R,Autism Partnership Uk Ltd
http://statistics.data.gov.uk/doc/local-authority/00DA,Leeds City Council,Childrens Services,Safeguarding Targeted & Specialist,Third Party Payments,SEN Placements,566,14-Jun-13,1306-00611,2695.5,R,Autism Partnership Uk Ltd
http://statistics.data.gov.uk/doc/local-authority/00DA,Leeds City Council,Childrens Services,Safeguarding Targeted & Specialist,Third Party Payments,SEN Placements,566,14-Jun-13,1306-00612,4277.66,R,Autism Partnership Uk Ltd
http://statistics.data.gov.uk/doc/local-authority/00DA,Leeds City Council,Environment & Housing,Parks & Countryside,Supplies and Services,Food & Drink,231,21-Jun-13,1306-00613,423.75,R,Autobar Vending Services Ltd
http://statistics.data.gov.uk/doc/local-authority/00DA,Leeds City Council,Environment & Housing,Parks & Countryside,Supplies and Services,Food & Drink,231,28-Jun-13,1306-00614,526.26,R,Autobar Vending Services Ltd
http://statistics.data.gov.uk/doc/local-authority/00DA,Leeds City Council,Adult Social Care,Social Services Support Services,Supplies and Services,Conference Meetings,253,03-Jun-13,1306-00615,2469,R,Av2000 Ltd
http://statistics.data.gov.uk/doc/local-authority/00DA,Leeds City Council as Accountable Body,Social Services Pooled Budgets,Jcs For People With Learning Disabilitie,Third Party Payments,Residential,580,19-Jun-13,1306-00616,4642.2,R,Avens Ltd
http://statistics.data.gov.uk/doc/local-authority/00DA,Leeds City Council as Accountable Body,Social Services Pooled Budgets,Jcs For People With Learning Disabilitie,Third Party Payments,Residential,580,14-Jun-13,1306-00617,4642.2,R,Avens Ltd
http://statistics.data.gov.uk/doc/local-authority/00DA,Leeds City Council as Accountable Body,Social Services Pooled Budgets,Jcs For People With Learning Disabilitie,Third Party Payments,Residential,580,05-Jun-13,1306-00618,4123.12,R,Avon Lodge
http://statistics.data.gov.uk/doc/local-authority/00DA,Leeds City Council,Childrens Services,Learning Skills & Universal,Supplies and Services,Courses For Non-Employees,281,21-Jun-13,1306-00619,532.5,R,Award Scheme Ltd
http://statistics.data.gov.uk/doc/local-authority/00DA,Leeds City Council,City Development,Asset Management Services,Premises,Rents,141,18-Jun-13,1306-00620,10239.96,R,Aws Ltd
http://statistics.data.gov.uk/doc/local-authority/00DA,West - North West            ,West - North West,Corporate Services,Premises,Cct Contract Cleaning,129,07-Jun-13,1306-00621,561.24,R,Axis Cleaning & Support Services
http://statistics.data.gov.uk/doc/local-authority/00DA,Leeds City Council,City Development,Libraries   Arts & Heritage,Supplies and Services,Operational Furniture And Equipment,203,28-Jun-13,1306-00622,528.52,R,Axminster Tool Centre Ltd
http://statistics.data.gov.uk/doc/local-authority/00DA,Leeds City Council as Accountable Body,Social Services Pooled Budgets,Jcs For People With Learning Disabilitie,Third Party Payments,Sheltered Accommodation,569,05-Jun-13,1306-00623,4656.36,R,Ayersome Terrace
http://statistics.data.gov.uk/doc/local-authority/00DA,Leeds City Council as Accountable Body,Social Services Pooled Budgets,Jcs For People With Learning Disabilitie,Third Party Payments,Residential,580,05-Jun-13,1306-00624,13798.28,R,Ayersome Terrace
http://statistics.data.gov.uk/doc/local-authority/00DA,Leeds City Council,Adult Social Care,Services For Older People - 65 And Over,Transfer Payments,Direct Payments,626,05-Jun-13,1306-00625,673.64,R,REDACTED PERSONAL DATA
http://statistics.data.gov.uk/doc/local-authority/00DA,Leeds City Council,Adult Social Care,Services For Older People Under 65 P/Dis,Transfer Payments,Direct Payments,626,05-Jun-13,1306-00626,976.64,R,REDACTED PERSONAL DATA
http://statistics.data.gov.uk/doc/local-authority/00DA,Leeds City Council as Accountable Body,Social Services Pooled Budgets,Jcs For People With Learning Disabilitie,Transfer Payments,Personal Budgets,627,05-Jun-13,1306-00627,487.52,R,REDACTED PERSONAL DATA
http://statistics.data.gov.uk/doc/local-authority/00DA,Leeds City Council,Environment & Housing,Environmental Health,Capital,Construction,3,03-Jun-13,1306-00628,1280.59,C,B & K Passmore
http://statistics.data.gov.uk/doc/local-authority/00DA,Leeds City Council,Environment & Housing,Environmental Health,Capital,Construction,3,03-Jun-13,1306-00629,1500,C,B & K Passmore
http://statistics.data.gov.uk/doc/local-authority/00DA,Leeds City Council,Environment & Housing,Environmental Health,Capital,Construction,3,12-Jun-13,1306-00630,2890,C,B & K Passmore
http://statistics.data.gov.uk/doc/local-authority/00DA,Leeds City Council,Environment & Housing,Environmental Health,Capital,Construction,3,19-Jun-13,1306-00631,2890,C,B & K Passmore
http://statistics.data.gov.uk/doc/local-authority/00DA,Leeds City Council,Environment & Housing,Environmental Health,Capital,Construction,3,12-Jun-13,1306-00632,3105,C,B & K Passmore
http://statistics.data.gov.uk/doc/local-authority/00DA,Leeds City Council,Environment & Housing,Environmental Health,Capital,Construction,3,03-Jun-13,1306-00633,3950,C,B & K Passmore
http://statistics.data.gov.uk/doc/local-authority/00DA,Leeds City Council,Environment & Housing,Environmental Health,Capital,Construction,3,24-Jun-13,1306-00634,4148.78,C,B & K Passmore
http://statistics.data.gov.uk/doc/local-authority/00DA,Leeds City Council,Environment & Housing,Environmental Health,Capital,Construction,3,12-Jun-13,1306-00635,4150,C,B & K Passmore
http://statistics.data.gov.uk/doc/local-authority/00DA,Leeds City Council,Environment & Housing,Environmental Health,Capital,Construction,3,28-Jun-13,1306-00636,4150,C,B & K Passmore
http://statistics.data.gov.uk/doc/local-authority/00DA,Leeds City Council,Environment & Housing,Environmental Health,Capital,Construction,3,12-Jun-13,1306-00637,4150,C,B & K Passmore
http://statistics.data.gov.uk/doc/local-authority/00DA,Leeds City Council,Environment & Housing,Environmental Health,Capital,Construction,3,27-Jun-13,1306-00638,4150,C,B & K Passmore
http://statistics.data.gov.uk/doc/local-authority/00DA,Leeds City Council,Environment & Housing,Environmental Health,Capital,Construction,3,28-Jun-13,1306-00639,4150,C,B & K Passmore
http://statistics.data.gov.uk/doc/local-authority/00DA,Leeds City Council,Environment & Housing,Environmental Health,Capital,Construction,3,19-Jun-13,1306-00640,4150,C,B & K Passmore
http://statistics.data.gov.uk/doc/local-authority/00DA,Leeds City Council,Environment & Housing,Environmental Health,Capital,Construction,3,19-Jun-13,1306-00641,4150,C,B & K Passmore
http://statistics.data.gov.uk/doc/local-authority/00DA,Leeds City Council,Environment & Housing,Environmental Health,Capital,Construction,3,28-Jun-13,1306-00642,4150,C,B & K Passmore
http://statistics.data.gov.uk/doc/local-authority/00DA,Leeds City Council,Environment & Housing,Environmental Health,Capital,Construction,3,27-Jun-13,1306-00643,4150,C,B & K Passmore
http://statistics.data.gov.uk/doc/local-authority/00DA,Leeds City Council,Environment & Housing,Environmental Health,Capital,Construction,3,19-Jun-13,1306-00644,4420,C,B & K Passmore
http://statistics.data.gov.uk/doc/local-authority/00DA,Leeds City Council,Environment & Housing,Environmental Health,Capital,Construction,3,03-Jun-13,1306-00645,4720,C,B & K Passmore
http://statistics.data.gov.uk/doc/local-authority/00DA,Leeds City Council,Childrens Services,Partnership Development & Leadership,Employees,Training Costs,71,14-Jun-13,1306-00646,600,R,Baaf Registered Charity
http://statistics.data.gov.uk/doc/local-authority/00DA,Leeds City Council,Childrens Services,Safeguarding Targeted & Specialist,Employees,Training Costs,71,06-Jun-13,1306-00647,447.9,R,Baaf Registered Charity
http://statistics.data.gov.uk/doc/local-authority/00DA,Leeds City Council,Environment & Housing,Statutory Housing,Premises,Fixtures & Fittings,131,07-Jun-13,1306-00648,675,R,Back Care Solutions Ltd
http://statistics.data.gov.uk/doc/local-authority/00DA,Leeds City Council,Environment & Housing,Streetscene Environmental Services,Supplies and Services,Operational Furniture And Equipment,203,20-Jun-13,1306-00649,727.99,R,Back Care Solutions Ltd
http://statistics.data.gov.uk/doc/local-authority/00DA,Aire Valley Homes Leeds     ,Aire Valley Homes Leeds,S. Offices,Employees,Temporary Staff-Basic,9,06-Jun-13,1306-00650,532.8,R,Badenoch & Clark Ltd
http://statistics.data.gov.uk/doc/local-authority/00DA,Aire Valley Homes Leeds     ,Aire Valley Homes Leeds,S. Offices,Employees,Temporary Staff-Basic,9,13-Jun-13,1306-00651,554.85,R,Badenoch & Clark Ltd
http://statistics.data.gov.uk/doc/local-authority/00DA,West - North West            ,West - North West,Customer And Tenancy,Employees,Temporary Staff-Basic,9,11-Jun-13,1306-00652,453.06,R,Badenoch & Clark Ltd
http://statistics.data.gov.uk/doc/local-authority/00DA,West - North West            ,West - North West,Customer And Tenancy,Employees,Temporary Staff-Basic,9,11-Jun-13,1306-00653,610.92,R,Badenoch & Clark Ltd
http://statistics.data.gov.uk/doc/local-authority/00DA,West - North West            ,West - North West,Customer And Tenancy,Employees,Temporary Staff-Basic,9,11-Jun-13,1306-00654,628.5,R,Badenoch & Clark Ltd
http://statistics.data.gov.uk/doc/local-authority/00DA,West - North West            ,West - North West,Customer And Tenancy,Employees,Temporary Staff-Basic,9,11-Jun-13,1306-00655,642.2,R,Badenoch & Clark Ltd
http://statistics.data.gov.uk/doc/local-authority/00DA,West - North West            ,West - North West,Customer And Tenancy,Employees,Temporary Staff-Basic,9,11-Jun-13,1306-00656,743.6,R,Badenoch & Clark Ltd
http://statistics.data.gov.uk/doc/local-authority/00DA,Leeds City Council,Central & Corporate,Support And Facilities General Fund,Supplies and Services,Other Hired And Contracted Services,265,19-Jun-13,1306-00657,748,R,Bahson Colour Print Ltd
http://statistics.data.gov.uk/doc/local-authority/00DA,Leeds City Council,Central & Corporate,Support And Facilities General Fund,Supplies and Services,Other Hired And Contracted Services,265,07-Jun-13,1306-00658,898,R,Bahson Colour Print Ltd
http://statistics.data.gov.uk/doc/local-authority/00DA,Leeds City Council,Central & Corporate,Support And Facilities General Fund,Supplies and Services,Other Hired And Contracted Services,265,07-Jun-13,1306-00659,1189,R,Bahson Colour Print Ltd
http://statistics.data.gov.uk/doc/local-authority/00DA,Leeds City Council,City Development,Libraries   Arts & Heritage,Supplies and Services,Art Galleries Total Stores,3,28-Jun-13,1306-00660,510.25,R,Baker & Taylor (Uk) Ltd
http://statistics.data.gov.uk/doc/local-authority/00DA,Leeds City Council,City Development,Recreation  ,Supplies and Services,Operational Materials,205,10-May-13,1306-00661,708.8,R,Ball Colegrave Ltd
http://statistics.data.gov.uk/doc/local-authority/00DA,Leeds City Council,City Development,Recreation  ,Transport,Hire of Movable Plant & Machinery,315,16-May-13,1306-00662,960,R,Balmers Gm Limited
http://statistics.data.gov.uk/doc/local-authority/00DA,Leeds City Council,City Development,Recreation  ,Transport,Hire of Movable Plant & Machinery,315,16-May-13,1306-00663,1824,R,Balmers Gm Limited
http://statistics.data.gov.uk/doc/local-authority/00DA,Leeds City Council,City Development,Asset Management Services,Capital,Construction,3,21-Jun-13,1306-00664,66461.45,C,Bam Construction Ltd
http://statistics.data.gov.uk/doc/local-authority/00DA,Leeds City Council,Adult Social Care,Services For Older People - 65 And Over,Transfer Payments,Personalised Budgets,627,05-Jun-13,1306-00665,618.04,R,REDACTED PERSONAL DATA
http://statistics.data.gov.uk/doc/local-authority/00DA,Leeds City Council,Adult Social Care,Services For Older People - 65 And Over,Transfer Payments,Personalised Budgets,627,05-Jun-13,1306-00666,1021.32,R,REDACTED PERSONAL DATA
http://statistics.data.gov.uk/doc/local-authority/00DA,Leeds City Council,Childrens Services,Learning Skills & Universal,Third Party Payments,Services Rendered By Voluntary Sector,505,14-Jun-13,1306-00667,6250,R,Barca Leeds
http://statistics.data.gov.uk/doc/local-authority/00DA,Leeds City Council,Childrens Services,Safeguarding Targeted & Specialist,Third Party Payments,Interagency Adoptions,559,05-Jun-13,1306-00668,18000,R,Barnardos
http://statistics.data.gov.uk/doc/local-authority/00DA,Leeds City Council,Childrens Services,Safeguarding Targeted & Specialist,Third Party Payments,Independent Fostering Agencies,509,21-Jun-13,1306-00669,1864.03,R,Barnardos Yorkshire
http://statistics.data.gov.uk/doc/local-authority/00DA,Leeds City Council,Childrens Services,Safeguarding Targeted & Specialist,Third Party Payments,Independent Fostering Agencies,509,21-Jun-13,1306-00670,3728.68,R,Barnardos Yorkshire
http://statistics.data.gov.uk/doc/local-authority/00DA,Leeds City Council,Childrens Services,Safeguarding Targeted & Specialist,Third Party Payments,Independent Fostering Agencies,509,21-Jun-13,1306-00671,3805.87,R,Barnardos Yorkshire
http://statistics.data.gov.uk/doc/local-authority/00DA,Leeds City Council,Childrens Services,Safeguarding Targeted & Specialist,Third Party Payments,Independent Fostering Agencies,509,21-Jun-13,1306-00672,4161.44,R,Barnardos Yorkshire
http://statistics.data.gov.uk/doc/local-authority/00DA,Leeds City Council,Childrens Services,Safeguarding Targeted & Specialist,Third Party Payments,Independent Fostering Agencies,509,21-Jun-13,1306-00673,4161.84,R,Barnardos Yorkshire
http://statistics.data.gov.uk/doc/local-authority/00DA,Leeds City Council,Childrens Services,Safeguarding Targeted & Specialist,Third Party Payments,Independent Fostering Agencies,509,21-Jun-13,1306-00674,4317.6,R,Barnardos Yorkshire
http://statistics.data.gov.uk/doc/local-authority/00DA,Leeds City Council,Environment & Housing,Statutory Housing,Supplies and Services,Other Hired And Contracted Services,265,20-Jun-13,1306-00675,500,R,Barringtons & Blake Estate
http://statistics.data.gov.uk/doc/local-authority/00DA,Leeds City Council,Adult Social Care,Services For Older People - 65 And Over,Transfer Payments,Personalised Budgets,627,19-Jun-13,1306-00676,1004.64,R,REDACTED PERSONAL DATA
http://statistics.data.gov.uk/doc/local-authority/00DA,Leeds City Council,Adult Social Care,Services For Older People Under 65 P/Dis,Transfer Payments,Personalised Budgets,627,05-Jun-13,1306-00677,661.88,R,REDACTED PERSONAL DATA
http://statistics.data.gov.uk/doc/local-authority/00DA,Leeds City Council,City Development,Recreation,Supplies and Services,Publication And Promotion,267,12-Jun-13,1306-00678,500,R,Bauer Radio Ltd
http://statistics.data.gov.uk/doc/local-authority/00DA,Leeds City Council,City Development,Recreation,Supplies and Services,Publication And Promotion,267,20-Jun-13,1306-00679,700,R,Bauer Radio Ltd
http://statistics.data.gov.uk/doc/local-authority/00DA,Leeds City Council,City Development,Recreation,Supplies and Services,Publication And Promotion,267,20-Jun-13,1306-00680,2005,R,Bauer Radio Ltd
http://statistics.data.gov.uk/doc/local-authority/00DA,Leeds City Council,City Development,Recreation,Supplies and Services,Publication And Promotion,267,13-Jun-13,1306-00681,2610.22,R,Bauer Radio Ltd
http://statistics.data.gov.uk/doc/local-authority/00DA,Leeds City Council,City Development,Recreation,Supplies and Services,Action Plan-Supplies & Services,297,13-Jun-13,1306-00682,1933.78,R,Bauer Radio Ltd
http://statistics.data.gov.uk/doc/local-authority/00DA,Leeds City Council,Environment & Housing,Strategy & Commissioning,Supplies and Services,Publication And Promotion,267,07-Jun-13,1306-00683,1417,R,Bauer Radio Ltd
http://statistics.data.gov.uk/doc/local-authority/00DA,Leeds City Council,Childrens Services,Safeguarding Targeted & Specialist,Supplies and Services,Advertising,211,07-Jun-13,1306-00684,720,R,Bay Media Ltd
http://statistics.data.gov.uk/doc/local-authority/00DA,Leeds City Council,Central & Corporate,Commercial Services Trading Services,Premises,Plant and Machinery,102,18-Jun-13,1306-00685,559.98,R,Bayford Oil
http://statistics.data.gov.uk/doc/local-authority/00DA,Leeds City Council,Central & Corporate,Commercial Services Trading Services,Transport,Fuel (Non LCC Supplies),321,14-Jun-13,1306-00686,1612.75,R,Bayford Oil
http://statistics.data.gov.uk/doc/local-authority/00DA,Leeds City Council,Central & Corporate,Commercial Services Trading Services,Transport,Fuel (Non LCC Supplies),321,28-Jun-13,1306-00687,1961.1,R,Bayford Oil
http://statistics.data.gov.uk/doc/local-authority/00DA,Leeds City Council,Central & Corporate,Commercial Services Trading Services,Transport,Fuel (Non LCC Supplies),321,18-Jun-13,1306-00688,3175.5,R,Bayford Oil
http://statistics.data.gov.uk/doc/local-authority/00DA,Leeds City Council,Central & Corporate,Commercial Services Trading Services,Transport,Fuel (Non LCC Supplies),321,14-Jun-13,1306-00689,11024.34,R,Bayford Oil
http://statistics.data.gov.uk/doc/local-authority/00DA,Leeds City Council,Central & Corporate,Commercial Services Trading Services,Transport,Fuel (Non LCC Supplies),321,21-Jun-13,1306-00690,11121,R,Bayford Oil
http://statistics.data.gov.uk/doc/local-authority/00DA,Leeds City Council,Central & Corporate,Commercial Services Trading Services,Transport,Fuel (Non LCC Supplies),321,26-Jun-13,1306-00691,11767.82,R,Bayford Oil
http://statistics.data.gov.uk/doc/local-authority/00DA,Leeds City Council,Central & Corporate,Commercial Services Trading Services,Transport,Fuel (Non LCC Supplies),321,07-Jun-13,1306-00692,16418.59,R,Bayford Oil
http://statistics.data.gov.uk/doc/local-authority/00DA,Leeds City Council,Central & Corporate,Commercial Services Trading Services,Transport,Fuel (Non LCC Supplies),321,14-Jun-13,1306-00693,16608,R,Bayford Oil
http://statistics.data.gov.uk/doc/local-authority/00DA,Leeds City Council,Central & Corporate,Commercial Services Trading Services,Transport,Fuel (Non LCC Supplies),321,26-Jun-13,1306-00694,16667.61,R,Bayford Oil
http://statistics.data.gov.uk/doc/local-authority/00DA,Leeds City Council,Central & Corporate,Commercial Services Trading Services,Transport,Fuel (Non LCC Supplies),321,07-Jun-13,1306-00695,24158.2,R,Bayford Oil
http://statistics.data.gov.uk/doc/local-authority/00DA,Leeds City Council,Central & Corporate,Commercial Services Trading Services,Transport,Fuel (Non LCC Supplies),321,14-Jun-13,1306-00696,24270.4,R,Bayford Oil
http://statistics.data.gov.uk/doc/local-authority/00DA,Leeds City Council,Central & Corporate,Commercial Services Trading Services,Transport,Fuel (Non LCC Supplies),321,21-Jun-13,1306-00697,24356.2,R,Bayford Oil
http://statistics.data.gov.uk/doc/local-authority/00DA,Leeds City Council,Central & Corporate,Commercial Services Trading Services,Transport,Fuel (Non LCC Supplies),321,21-Jun-13,1306-00698,24405.75,R,Bayford Oil
http://statistics.data.gov.uk/doc/local-authority/00DA,Leeds City Council,Central & Corporate,Commercial Services Trading Services,Transport,Fuel (Non LCC Supplies),321,07-Jun-13,1306-00699,24418.47,R,Bayford Oil
http://statistics.data.gov.uk/doc/local-authority/00DA,Leeds City Council,Central & Corporate,Commercial Services Trading Services,Transport,Fuel (Non LCC Supplies),321,28-Jun-13,1306-00700,24503.6,R,Bayford Oil
http://statistics.data.gov.uk/doc/local-authority/00DA,Leeds City Council,Central & Corporate,Commercial Services Trading Services,Transport,Fuel (Non LCC Supplies),321,03-Jun-13,1306-00701,30746.8,R,Bayford Oil
http://statistics.data.gov.uk/doc/local-authority/00DA,Leeds City Council,Central & Corporate,Commercial Services Trading Services,Transport,Fuel (Non LCC Supplies),321,10-Jun-13,1306-00702,39258,R,Bayford Oil
http://statistics.data.gov.uk/doc/local-authority/00DA,Leeds City Council,Central & Corporate,Commercial Services Trading Services,Transport,Fuel (Non LCC Supplies),321,28-Jun-13,1306-00703,39468.9,R,Bayford Oil
http://statistics.data.gov.uk/doc/local-authority/00DA,Leeds City Council,Central & Corporate,Commercial Services Trading Services,Transport,Fuel (Non LCC Supplies),321,21-Jun-13,1306-00704,39855.6,R,Bayford Oil
http://statistics.data.gov.uk/doc/local-authority/00DA,Leeds City Council,Childrens Services,Learning Skills & Universal,Premises,Oil,122,11-Jun-13,1306-00705,1948.5,R,Bayford Oil
http://statistics.data.gov.uk/doc/local-authority/00DA,Leeds City Council,Childrens Services,Learning Skills & Universal,Premises,Oil,122,07-Jun-13,1306-00706,2052.3,R,Bayford Oil
http://statistics.data.gov.uk/doc/local-authority/00DA,Leeds City Council,Childrens Services,Learning Skills & Universal,Premises,Oil,122,10-Jun-13,1306-00707,2583.9,R,Bayford Oil
http://statistics.data.gov.uk/doc/local-authority/00DA,Leeds City Council,Environment & Housing,Parks & Countryside,Transport,Fuel (Non LCC Supplies),321,07-Jun-13,1306-00708,1078.48,R,Bayford Oil
http://statistics.data.gov.uk/doc/local-authority/00DA,Leeds City Council,Environment & Housing,Parks & Countryside,Transport,Fuel (Non LCC Supplies),321,21-Jun-13,1306-00709,1174.4,R,Bayford Oil
http://statistics.data.gov.uk/doc/local-authority/00DA,Leeds City Council,Environment & Housing,Parks & Countryside,Transport,Fuel (Non LCC Supplies),321,18-Jun-13,1306-00710,1294.2,R,Bayford Oil
http://statistics.data.gov.uk/doc/local-authority/00DA,Leeds City Council,Environment & Housing,Parks & Countryside,Transport,Fuel (Non LCC Supplies),321,21-Jun-13,1306-00711,1302,R,Bayford Oil
http://statistics.data.gov.uk/doc/local-authority/00DA,Leeds City Council,Environment & Housing,Parks & Countryside,Transport,Fuel (Non LCC Supplies),321,14-Jun-13,1306-00712,2123.6,R,Bayford Oil
http://statistics.data.gov.uk/doc/local-authority/00DA,Leeds City Council,Environment & Housing,Parks & Countryside,Transport,Fuel (Non LCC Supplies),321,06-Jun-13,1306-00713,2205.81,R,Bayford Oil
http://statistics.data.gov.uk/doc/local-authority/00DA,Leeds City Council,Environment & Housing,Parks & Countryside,Transport,Fuel (Non LCC Supplies),321,20-Jun-13,1306-00714,4452.8,R,Bayford Oil
http://statistics.data.gov.uk/doc/local-authority/00DA,Leeds City Council,Environment & Housing,Parks & Countryside,Transport,Fuel (Non LCC Supplies),321,20-Jun-13,1306-00715,17512,R,Bayford Oil
http://statistics.data.gov.uk/doc/local-authority/00DA,Leeds City Council,Environment & Housing,Streetscene Environmental Services,Transport,Fuel (Non LCC Supplies),321,05-Jun-13,1306-00716,638.03,R,Bayford Oil
http://statistics.data.gov.uk/doc/local-authority/00DA,Leeds City Council,Environment & Housing,Streetscene Environmental Services,Transport,Fuel (Non LCC Supplies),321,20-Jun-13,1306-00717,642,R,Bayford Oil
http://statistics.data.gov.uk/doc/local-authority/00DA,Leeds City Council,Adult Social Care,Services For Older People - 65 And Over,Transfer Payments,Personalised Budgets,627,05-Jun-13,1306-00718,1686.88,R,REDACTED PERSONAL DATA
http://statistics.data.gov.uk/doc/local-authority/00DA,Leeds City Council as Accountable Body,Social Services Pooled Budgets,Jcs For People With Learning Disabilitie,Third Party Payments,Day Centre,564,24-Jun-13,1306-00719,660,R,Beat It Music Cic
http://statistics.data.gov.uk/doc/local-authority/00DA,Leeds City Council as Accountable Body,Social Services Pooled Budgets,Jcs For People With Learning Disabilitie,Third Party Payments,Home Care,568,24-Jun-13,1306-00720,600,R,Beat It Music Cic
http://statistics.data.gov.uk/doc/local-authority/00DA,Leeds City Council,Adult Social Care,Services For Adults Under 65 Learn/Dis,Premises,Cleaning Maintenance & Toiletries,127,07-Jun-13,1306-00721,440.76,R,Beaucare Medical Ltd
http://statistics.data.gov.uk/doc/local-authority/00DA,Leeds City Council,City Development,Recreation  ,Supplies and Services,Operational Materials,205,31-May-13,1306-00722,1115.16,R,Beaver Plants Ltd
http://statistics.data.gov.uk/doc/local-authority/00DA,Leeds City Council,Adult Social Care,Services For Older People - 65 And Over,Supplies and Services,Operational Furniture And Equipment,203,14-Jun-13,1306-00723,490,R,Beds For Everyone
http://statistics.data.gov.uk/doc/local-authority/00DA,Leeds City Council,Adult Social Care,Services For Older People - 65 And Over,Supplies and Services,Operational Furniture And Equipment,203,14-Jun-13,1306-00724,560,R,Beds For Everyone
http://statistics.data.gov.uk/doc/local-authority/00DA,Leeds City Council,Adult Social Care,Services For Older People - 65 And Over,Third Party Payments,Residential Care Dementia,571,05-Jun-13,1306-00725,998.32,R,Beechmount
http://statistics.data.gov.uk/doc/local-authority/00DA,Leeds City Council,Central & Corporate,Executive Support,Supplies and Services,Well Being Small Grants Projects,228,06-Jun-13,1306-00726,1000,R,Beeston In Bloom
http://statistics.data.gov.uk/doc/local-authority/00DA,Leeds City Council,Environment & Housing,Parks & Countryside,Supplies and Services,Non-Recurring Grants,227,10-Jun-13,1306-00727,500,R,Beeston In Bloom
http://statistics.data.gov.uk/doc/local-authority/00DA,Leeds City Council,Adult Social Care,Services For Older People - 65 And Over,Third Party Payments,Residential,580,05-Jun-13,1306-00728,1314,R,Belgrave Court Residential Care Home
http://statistics.data.gov.uk/doc/local-authority/00DA,Leeds City Council,Adult Social Care,Services For Older People - 65 And Over,Third Party Payments,Nursing Home,570,06-Jun-13,1306-00729,1232.32,R,Belle Green Court Care Home
http://statistics.data.gov.uk/doc/local-authority/00DA,Leeds City Council,Environment & Housing,Strategy & Commissioning,Third Party Payments,Supporting Ppl - Block Gross Chargeable,514,14-Jun-13,1306-00730,1305.24,R,Belle Isle Tenant Management
http://statistics.data.gov.uk/doc/local-authority/00DA,Leeds City Council,Adult Social Care,Services For Older People Under 65 P/Dis,Transfer Payments,Personalised Budgets,627,05-Jun-13,1306-00731,1427.2,R,REDACTED PERSONAL DATA
http://statistics.data.gov.uk/doc/local-authority/00DA,Leeds City Council,City Development,Libraries   Arts & Heritage,Supplies and Services,Operational Materials,205,07-Jun-13,1306-00732,1018,R,Ben Hall
http://statistics.data.gov.uk/doc/local-authority/00DA,Leeds City Council,Adult Social Care,Services For Older People Under 65 P/Dis,Transfer Payments,Personalised Budgets,627,05-Jun-13,1306-00733,773.36,R,REDACTED PERSONAL DATA
http://statistics.data.gov.uk/doc/local-authority/00DA,Leeds City Council as Accountable Body,Social Services Pooled Budgets,Jcs For People With Learning Disabilitie,Third Party Payments,Nursing Home,570,05-Jun-13,1306-00734,3165.44,R,Benedict Nursing Home
http://statistics.data.gov.uk/doc/local-authority/00DA,Leeds City Council,Central & Corporate,Commercial Services Trading Services,Supplies and Services,Other Hired And Contracted Services,265,10-Jun-13,1306-00735,456.44,R,Benfield Ford Leeds (Parts Invs)
http://statistics.data.gov.uk/doc/local-authority/00DA,Leeds City Council,Central & Corporate,Commercial Services Trading Services,Supplies and Services,Other Hired And Contracted Services,265,14-Jun-13,1306-00736,3685.03,R,Benfield Ford Leeds (Parts Invs)
http://statistics.data.gov.uk/doc/local-authority/00DA,Leeds City Council,Adult Social Care,Services For Older People Under 65 P/Dis,Transfer Payments,Personalised Budgets,627,05-Jun-13,1306-00737,8289.4,R,REDACTED PERSONAL DATA
http://statistics.data.gov.uk/doc/local-authority/00DA,Leeds City Council,Adult Social Care,Other Adult Services,Third Party Payments,Residential - Drugs & Alcohol,583,05-Jun-13,1306-00738,1514.52,R,Bennett House
http://statistics.data.gov.uk/doc/local-authority/00DA,Leeds City Council,Adult Social Care,Services For Older People - 65 And Over,Third Party Payments,Residential Care Dementia,571,05-Jun-13,1306-00739,17626.11,R,Berkley Court
http://statistics.data.gov.uk/doc/local-authority/00DA,Leeds City Council,Adult Social Care,Services For Older People - 65 And Over,Third Party Payments,Residential,580,05-Jun-13,1306-00740,17268.5,R,Berkley Court
http://statistics.data.gov.uk/doc/local-authority/00DA,Leeds City Council,City Development,Asset Management Services,Capital,Construction,3,25-Jun-13,1306-00741,143317.48,C,Bermar Building Company Ltd
http://statistics.data.gov.uk/doc/local-authority/00DA,Leeds City Council,Adult Social Care,Services For Older People - 65 And Over,Transfer Payments,Direct Payments,626,05-Jun-13,1306-00742,587.08,R,REDACTED PERSONAL DATA
http://statistics.data.gov.uk/doc/local-authority/00DA,Leeds City Council as Accountable Body,Social Services Pooled Budgets,Jcs For People With Learning Disabilitie,Third Party Payments,Residential,580,06-Jun-13,1306-00743,482.32,R,REDACTED PERSONAL DATA
http://statistics.data.gov.uk/doc/local-authority/00DA,Leeds City Council,City Development,Asset Management Services,Premises,Lifts,103,21-Jun-13,1306-00744,514,R,Besam Ltd
http://statistics.data.gov.uk/doc/local-authority/00DA,Leeds City Council,Adult Social Care,Services For Older People - 65 And Over,Third Party Payments,Residential Care Dementia,571,05-Jun-13,1306-00745,1760.92,R,Bethel House
http://statistics.data.gov.uk/doc/local-authority/00DA,Leeds City Council,Childrens Services,Safeguarding Targeted & Specialist,Third Party Payments,General External Residential Placements,507,21-Jun-13,1306-00746,850,R,Bettercare Keys Ltd
http://statistics.data.gov.uk/doc/local-authority/00DA,Leeds City Council,Adult Social Care,Services For Older People - 65 And Over,Transfer Payments,Direct Payments,626,05-Jun-13,1306-00747,435.84,R,REDACTED PERSONAL DATA
http://statistics.data.gov.uk/doc/local-authority/00DA,Leeds City Council,Adult Social Care,Services For Older People - 65 And Over,Transfer Payments,Personalised Budgets,627,05-Jun-13,1306-00748,460.68,R,REDACTED PERSONAL DATA
http://statistics.data.gov.uk/doc/local-authority/00DA,Leeds City Council,Adult Social Care,Services For Older People Under 65 P/Dis,Transfer Payments,Personalised Budgets,627,05-Jun-13,1306-00749,991.4,R,REDACTED PERSONAL DATA
http://statistics.data.gov.uk/doc/local-authority/00DA,Leeds City Council as Accountable Body,Social Services Pooled Budgets,Jcs For People With Learning Disabilitie,Transfer Payments,Personal Budgets,627,05-Jun-13,1306-00750,1856.44,R,REDACTED PERSONAL DATA
http://statistics.data.gov.uk/doc/local-authority/00DA,Leeds City Council,City Development,Libraries   Arts & Heritage,Supplies and Services,Books & Audio-Visual Materials,206,19-Jun-13,1306-00751,1821.72,R,Bibliotheca Ltd
http://statistics.data.gov.uk/doc/local-authority/00DA,Leeds City Council,Environment & Housing,Streetscene Environmental Services,Supplies and Services,Recycling & Reuse Charges,234,06-Jun-13,1306-00752,1863.2,R,Biffa Waste Services Ltd
http://statistics.data.gov.uk/doc/local-authority/00DA,Leeds City Council,Environment & Housing,Streetscene Environmental Services,Supplies and Services,Recycling & Reuse Charges,234,25-Jun-13,1306-00753,2521.26,R,Biffa Waste Services Ltd
http://statistics.data.gov.uk/doc/local-authority/00DA,Leeds City Council,Environment & Housing,Streetscene Environmental Services,Supplies and Services,Recycling & Reuse Charges,234,27-Jun-13,1306-00754,2525.38,R,Biffa Waste Services Ltd
http://statistics.data.gov.uk/doc/local-authority/00DA,Leeds City Council,Environment & Housing,Streetscene Environmental Services,Supplies and Services,Recycling & Reuse Charges,234,12-Jun-13,1306-00755,2802.61,R,Biffa Waste Services Ltd
http://statistics.data.gov.uk/doc/local-authority/00DA,Leeds City Council,Environment & Housing,Streetscene Environmental Services,Supplies and Services,Recycling & Reuse Charges,234,20-Jun-13,1306-00756,3407.39,R,Biffa Waste Services Ltd
http://statistics.data.gov.uk/doc/local-authority/00DA,Leeds City Council,Environment & Housing,Streetscene Environmental Services,Supplies and Services,Waste Disposal Charges,236,06-Jun-13,1306-00757,5344.01,R,Biffa Waste Services Ltd
http://statistics.data.gov.uk/doc/local-authority/00DA,Leeds City Council,Environment & Housing,Streetscene Environmental Services,Supplies and Services,Waste Disposal Charges,236,07-Jun-13,1306-00758,6338.46,R,Biffa Waste Services Ltd
http://statistics.data.gov.uk/doc/local-authority/00DA,Leeds City Council,Environment & Housing,Streetscene Environmental Services,Supplies and Services,Waste Disposal Charges,236,25-Jun-13,1306-00759,7793.13,R,Biffa Waste Services Ltd
http://statistics.data.gov.uk/doc/local-authority/00DA,Leeds City Council,Environment & Housing,Streetscene Environmental Services,Supplies and Services,Waste Disposal Charges,236,27-Jun-13,1306-00760,9401.2,R,Biffa Waste Services Ltd
http://statistics.data.gov.uk/doc/local-authority/00DA,Leeds City Council,Environment & Housing,Streetscene Environmental Services,Supplies and Services,Waste Disposal Charges,236,14-Jun-13,1306-00761,16804.51,R,Biffa Waste Services Ltd
http://statistics.data.gov.uk/doc/local-authority/00DA,Leeds City Council,Environment & Housing,Streetscene Environmental Services,Supplies and Services,Waste Disposal Charges,236,12-Jun-13,1306-00762,24196.8,R,Biffa Waste Services Ltd
http://statistics.data.gov.uk/doc/local-authority/00DA,Leeds City Council,Environment & Housing,Streetscene Environmental Services,Supplies and Services,Waste Disposal Charges,236,27-Jun-13,1306-00763,24293,R,Biffa Waste Services Ltd
http://statistics.data.gov.uk/doc/local-authority/00DA,Leeds City Council,Environment & Housing,Streetscene Environmental Services,Supplies and Services,Waste Disposal Charges,236,25-Jun-13,1306-00764,25228.6,R,Biffa Waste Services Ltd
http://statistics.data.gov.uk/doc/local-authority/00DA,Leeds City Council,Environment & Housing,Streetscene Environmental Services,Supplies and Services,Waste Disposal Charges,236,06-Jun-13,1306-00765,28126.53,R,Biffa Waste Services Ltd
http://statistics.data.gov.uk/doc/local-authority/00DA,Leeds City Council,Environment & Housing,Streetscene Environmental Services,Supplies and Services,Waste Disposal Charges,236,20-Jun-13,1306-00766,31003.44,R,Biffa Waste Services Ltd
http://statistics.data.gov.uk/doc/local-authority/00DA,Leeds City Council,Environment & Housing,Streetscene Environmental Services,Supplies and Services,Waste Disposal Charges,237,12-Jun-13,1306-00767,120901.64,R,Biffa Waste Services Ltd
http://statistics.data.gov.uk/doc/local-authority/00DA,Leeds City Council,Environment & Housing,Streetscene Environmental Services,Supplies and Services,Waste Disposal Charges,237,27-Jun-13,1306-00768,121598.58,R,Biffa Waste Services Ltd
http://statistics.data.gov.uk/doc/local-authority/00DA,Leeds City Council,Environment & Housing,Streetscene Environmental Services,Supplies and Services,Waste Disposal Charges,237,25-Jun-13,1306-00769,126243.81,R,Biffa Waste Services Ltd
http://statistics.data.gov.uk/doc/local-authority/00DA,Leeds City Council,Environment & Housing,Streetscene Environmental Services,Supplies and Services,Waste Disposal Charges,237,06-Jun-13,1306-00770,139896.77,R,Biffa Waste Services Ltd
http://statistics.data.gov.uk/doc/local-authority/00DA,Leeds City Council,Environment & Housing,Streetscene Environmental Services,Supplies and Services,Waste Disposal Charges,237,20-Jun-13,1306-00771,155650.13,R,Biffa Waste Services Ltd
http://statistics.data.gov.uk/doc/local-authority/00DA,Leeds City Council,City Development,Libraries   Arts & Heritage,Supplies and Services,Other Hired And Contracted Services,265,24-Jun-13,1306-00772,500,R,Big Screen Events Team Ltd
http://statistics.data.gov.uk/doc/local-authority/00DA,Leeds City Council,Adult Social Care,Services For Older People Under 65 P/Dis,Transfer Payments,Direct Payments,626,05-Jun-13,1306-00773,1106.2,R,REDACTED PERSONAL DATA
http://statistics.data.gov.uk/doc/local-authority/00DA,Leeds City Council,Childrens Services,Safeguarding Targeted & Specialist,Premises,Maintenance Of Buildings,101,06-Jun-13,1306-00774,1066,R,Binns Fencing Limited
http://statistics.data.gov.uk/doc/local-authority/00DA,Leeds City Council,Environment & Housing,Streetscene Environmental Services,Supplies and Services,Recycling & Reuse Charges,234,06-Jun-13,1306-00775,8749.8,R,Biowise Ltd
http://statistics.data.gov.uk/doc/local-authority/00DA,Leeds City Council,Environment & Housing,Streetscene Environmental Services,Supplies and Services,Recycling & Reuse Charges,234,13-Jun-13,1306-00776,11208.25,R,Biowise Ltd
http://statistics.data.gov.uk/doc/local-authority/00DA,Leeds City Council,Environment & Housing,Streetscene Environmental Services,Supplies and Services,Recycling & Reuse Charges,234,13-Jun-13,1306-00777,12213.27,R,Biowise Ltd
http://statistics.data.gov.uk/doc/local-authority/00DA,Leeds City Council,Environment & Housing,Streetscene Environmental Services,Supplies and Services,Recycling & Reuse Charges,234,20-Jun-13,1306-00778,16333.02,R,Biowise Ltd
http://statistics.data.gov.uk/doc/local-authority/00DA,Leeds City Council,City Development,Highways,Capital,Construction,3,03-Jun-13,1306-00779,10000,C,Birse Civils Ltd
http://statistics.data.gov.uk/doc/local-authority/00DA,Leeds City Council,Central & Corporate,Support And Facilities General Fund,Supplies and Services,Operational Materials,205,06-Jun-13,1306-00780,539.8,R,Blackburns Metals Limited
http://statistics.data.gov.uk/doc/local-authority/00DA,Leeds City Council,City Development,Libraries   Arts & Heritage,Supplies and Services,Art Galleries Total Stores,3,14-Jun-13,1306-00781,439.6,R,Blooming Brollies
http://statistics.data.gov.uk/doc/local-authority/00DA,Leeds City Council,Adult Social Care,Services For Older People - 65 And Over,Third Party Payments,Residential Care Dementia,571,05-Jun-13,1306-00782,18417.16,R,Bluebell Lodge Care Home
http://statistics.data.gov.uk/doc/local-authority/00DA,Leeds City Council,City Development,Libraries   Arts & Heritage,Income,Admissions   Booking Fees & Ticket Sales,933,11-Jun-13,1306-00783,735,R,Blunderbus Theatre Company Ltd
http://statistics.data.gov.uk/doc/local-authority/00DA,Leeds City Council,Environment & Housing,Parks & Countryside,Supplies and Services,Operational Furniture And Equipment,203,07-Jun-13,1306-00784,1109.27,R,Bob Wild Grass Machinery
http://statistics.data.gov.uk/doc/local-authority/00DA,Leeds City Council,Adult Social Care,Services For Older People Under 65 P/Dis,Transfer Payments,Personalised Budgets,627,05-Jun-13,1306-00785,1015.84,R,REDACTED PERSONAL DATA
http://statistics.data.gov.uk/doc/local-authority/00DA,Leeds City Council,Central & Corporate,Commercial Services Trading Services,Supplies and Services,Operational Materials,205,27-Jun-13,1306-00786,595,R,Boiler & Heating Supplies Ltd
http://statistics.data.gov.uk/doc/local-authority/00DA,Leeds City Council,Central & Corporate,Commercial Services Trading Services,Supplies and Services,Operational Materials,205,27-Jun-13,1306-00787,695.1,R,Boiler & Heating Supplies Ltd
http://statistics.data.gov.uk/doc/local-authority/00DA,Leeds City Council,Central & Corporate,Commercial Services Trading Services,Supplies and Services,Operational Materials,205,27-Jun-13,1306-00788,733.46,R,Boiler & Heating Supplies Ltd
http://statistics.data.gov.uk/doc/local-authority/00DA,Leeds City Council,Central & Corporate,Commercial Services Trading Services,Supplies and Services,Operational Materials,205,27-Jun-13,1306-00789,1079.28,R,Boiler & Heating Supplies Ltd
http://statistics.data.gov.uk/doc/local-authority/00DA,Leeds City Council,City Development,Libraries   Arts & Heritage,Capital,Furniture And Equipment,5,28-Jun-13,1306-00790,1620,C,Boldman Ltd
http://statistics.data.gov.uk/doc/local-authority/00DA,Leeds City Council,Environment & Housing,Parks & Countryside,Supplies and Services,Resaleable Materials,204,28-Jun-13,1306-00791,447.6,R,Bon Bons Ltd
http://statistics.data.gov.uk/doc/local-authority/00DA,Leeds City Council,Environment & Housing,Parks & Countryside,Supplies and Services,Resaleable Materials,204,25-Jun-13,1306-00792,654.76,R,Bon Bons Ltd
http://statistics.data.gov.uk/doc/local-authority/00DA,Leeds City Council,Central & Corporate,Public Health,Third Party Payments,Public Health Commissioned Services,526,20-Jun-13,1306-00793,3732.88,R,Boots The Chemist Ltd
http://statistics.data.gov.uk/doc/local-authority/00DA,Leeds City Council,Childrens Services,Safeguarding Targeted & Specialist  ,Supplies and Services,Operational Furniture And Equipment,203,03-May-13,1306-00794,539.99,R,Boots.Com
http://statistics.data.gov.uk/doc/local-authority/00DA,Aire Valley Homes Leeds     ,Aire Valley Homes Leeds,Aire Valley Homes Leeds,Employees,General Training,79,06-Jun-13,1306-00795,1100,R,Boss Training Limited
http://statistics.data.gov.uk/doc/local-authority/00DA,Leeds City Council,Environment & Housing,Parks & Countryside,Supplies and Services,Non-Recurring Grants,227,17-Jun-13,1306-00796,450,R,Boston Spa Parish Council
http://statistics.data.gov.uk/doc/local-authority/00DA,West - North West            ,West - North West,Customer And Tenancy,Premises,General Maintenance,104,26-Jun-13,1306-00797,579,R,Boundaries Fencing Leeds Ltd
http://statistics.data.gov.uk/doc/local-authority/00DA,Leeds City Council,Central & Corporate,Support And Facilities General Fund,Supplies and Services,Conference Meetings,253,10-Jun-13,1306-00798,537.5,R,Bournemouth Convention Bureau Ltd
http://statistics.data.gov.uk/doc/local-authority/00DA,Leeds City Council,Childrens Services,Safeguarding Targeted & Specialist,Supplies and Services,Food & Drink,231,25-Jun-13,1306-00799,1203.18,R,Boutique Catering & Events Ltd
http://statistics.data.gov.uk/doc/local-authority/00DA,Leeds City Council,Adult Social Care,Services For Adults Under 65 Mental/Dis,Third Party Payments,Residential,580,05-Jun-13,1306-00800,5544,R,Box Tree Cottage
http://statistics.data.gov.uk/doc/local-authority/00DA,Leeds City Council,City Development,Highways,Supplies and Services,Bought In Professional Services,277,12-Jun-13,1306-00801,1258,R,Br Hallworth Ltd
http://statistics.data.gov.uk/doc/local-authority/00DA,Leeds City Council,Central & Corporate,Commercial Services Trading Services,Supplies and Services,Other Hired And Contracted Services,265,05-Jun-13,1306-00802,1440,R,Bradbury Group Ltd
http://statistics.data.gov.uk/doc/local-authority/00DA,Leeds City Council,Central & Corporate,Commercial Services Trading Services,Supplies and Services,Other Hired And Contracted Services,265,05-Jun-13,1306-00803,2160,R,Bradbury Group Ltd
http://statistics.data.gov.uk/doc/local-authority/00DA,Leeds City Council,Central & Corporate,Commercial Services Trading Services,Supplies and Services,Other Hired And Contracted Services,265,05-Jun-13,1306-00804,2880,R,Bradbury Group Ltd
http://statistics.data.gov.uk/doc/local-authority/00DA,Leeds City Council,City Development,Economic Development,Income,Admissions   Booking Fees & Ticket Sales,933,06-Jun-13,1306-00805,426.52,R,Bradford Council
http://statistics.data.gov.uk/doc/local-authority/00DA,Leeds City Council,Environment & Housing,Statutory Housing,Supplies and Services,Other Hired And Contracted Services,265,10-Jun-13,1306-00806,445,R,Bradford Estates Ltd
http://statistics.data.gov.uk/doc/local-authority/00DA,Leeds City Council,Adult Social Care,Services For Adults Under 65 Mental/Dis,Third Party Payments,Residential,580,05-Jun-13,1306-00807,1455.6,R,Bradford Independent (St Ives) Ltd
http://statistics.data.gov.uk/doc/local-authority/00DA,Leeds City Council,Adult Social Care,Services For Older People - 65 And Over,Third Party Payments,Nursing Home,570,05-Jun-13,1306-00808,8042.24,R,Bradford Independent (St Ives) Ltd
http://statistics.data.gov.uk/doc/local-authority/00DA,Leeds City Council,Adult Social Care,Services For Older People Under 65 P/Dis,Third Party Payments,Nursing Home,570,05-Jun-13,1306-00809,2054.08,R,Bradford Independent (St Ives) Ltd
http://statistics.data.gov.uk/doc/local-authority/00DA,Leeds City Council,Adult Social Care,Services For Older People Under 65 P/Dis,Third Party Payments,Residential,580,05-Jun-13,1306-00810,1922,R,Bradford Independent (St Ives) Ltd
http://statistics.data.gov.uk/doc/local-authority/00DA,Leeds City Council,Adult Social Care,Services For Adults Under 65 Mental/Dis,Third Party Payments,Nursing Home,570,05-Jun-13,1306-00811,19208.28,R,Bradford Independent Health Care
http://statistics.data.gov.uk/doc/local-authority/00DA,Leeds City Council,Adult Social Care,Services For Adults Under 65 Mental/Dis,Third Party Payments,Residential,580,05-Jun-13,1306-00812,2635.12,R,Bradford Independent Health Care
http://statistics.data.gov.uk/doc/local-authority/00DA,Leeds City Council,Adult Social Care,Services For Older People - 65 And Over,Third Party Payments,Nursing Home,570,05-Jun-13,1306-00813,1791.17,R,Bradford Independent Health Care
http://statistics.data.gov.uk/doc/local-authority/00DA,Leeds City Council,Adult Social Care,Services For Older People - 65 And Over,Third Party Payments,Nursing Home,570,05-Jun-13,1306-00814,19755.28,R,Bradford Independent Health Care
http://statistics.data.gov.uk/doc/local-authority/00DA,Leeds City Council,Adult Social Care,Services For Older People - 65 And Over,Third Party Payments,Residential Care Dementia,571,05-Jun-13,1306-00815,1244.82,R,Bradford Independent Health Care
http://statistics.data.gov.uk/doc/local-authority/00DA,Leeds City Council,Adult Social Care,Services For Older People - 65 And Over,Third Party Payments,Nursing Care Dementia,574,05-Jun-13,1306-00816,519.96,R,Bradford Independent Health Care
http://statistics.data.gov.uk/doc/local-authority/00DA,Leeds City Council,Adult Social Care,Services For Older People - 65 And Over,Third Party Payments,Nursing Care Dementia,574,05-Jun-13,1306-00817,1955.77,R,Bradford Independent Health Care
http://statistics.data.gov.uk/doc/local-authority/00DA,Leeds City Council,Adult Social Care,Services For Older People - 65 And Over,Third Party Payments,Residential,580,05-Jun-13,1306-00818,1413.4,R,Bradford Independent Health Care
http://statistics.data.gov.uk/doc/local-authority/00DA,Leeds City Council,Adult Social Care,Services For Older People - 65 And Over,Third Party Payments,Residential,580,05-Jun-13,1306-00819,2756.2,R,Bradford Independent Health Care
http://statistics.data.gov.uk/doc/local-authority/00DA,Leeds City Council,Adult Social Care,Services For Older People Under 65 P/Dis,Third Party Payments,Nursing Home,570,05-Jun-13,1306-00820,2321.36,R,Bradford Independent Health Care
http://statistics.data.gov.uk/doc/local-authority/00DA,Leeds City Council,Adult Social Care,Services For Adults Under 65 Mental/Dis,Third Party Payments,Nursing Home,570,05-Jun-13,1306-00821,1544.64,R,Bradford Independent Health Care Owlett
http://statistics.data.gov.uk/doc/local-authority/00DA,Leeds City Council,Adult Social Care,Services For Older People - 65 And Over,Third Party Payments,Nursing Home,570,05-Jun-13,1306-00822,12776.35,R,Bradford Independent Health Care Owlett
http://statistics.data.gov.uk/doc/local-authority/00DA,Leeds City Council,Strategic Accounts,Strategic,Transfer Payments,Business Rates Tariffs,666,19-Jun-13,1306-00823,5716928,R,Bradford Metropolitan Council
http://statistics.data.gov.uk/doc/local-authority/00DA,Leeds City Council,Central & Corporate,Commercial Services Trading Services,Supplies and Services,Food & Drink,231,14-Jun-13,1306-00824,556.13,R,Brake Bros Ltd
http://statistics.data.gov.uk/doc/local-authority/00DA,Leeds City Council,City Development,Recreation  ,Supplies and Services,Food & Drink,231,30-May-13,1306-00825,600.08,R,Brake Bros Ltd
http://statistics.data.gov.uk/doc/local-authority/00DA,Leeds City Council,City Development,Recreation  ,Supplies and Services,Food & Drink,231,10-May-13,1306-00826,633.59,R,Brake Bros Ltd
http://statistics.data.gov.uk/doc/local-authority/00DA,Leeds City Council,Childrens Services,Safeguarding Targeted & Specialist,Support Services,Internal Charges From City Development,491,03-Jun-13,1306-00827,840,R,Bramley Baths & Community Limited
http://statistics.data.gov.uk/doc/local-authority/00DA,Leeds City Council as Accountable Body,Social Services Pooled Budgets,Jcs For People With Learning Disabilitie,Third Party Payments,Home Care,568,12-Jun-13,1306-00828,1849.52,R,Bramley Family Support Project
http://statistics.data.gov.uk/doc/local-authority/00DA,Leeds City Council,Central & Corporate,Executive Support,Supplies and Services, Well Being  Large Grants Projects,230,03-Jun-13,1306-00829,2500,R,Bramley Music Festival
http://statistics.data.gov.uk/doc/local-authority/00DA,Leeds City Council,Strategic Accounts,Miscellaneous,Supplies and Services,Non-Recurring Grants,227,10-Jun-13,1306-00830,500,R,Bramley Music Festival
http://statistics.data.gov.uk/doc/local-authority/00DA,Leeds City Council,Adult Social Care,Services For Adults Under 65 Mental/Dis,Third Party Payments,Residential,580,05-Jun-13,1306-00831,2896.92,R,REDACTED PERSONAL DATA
http://statistics.data.gov.uk/doc/local-authority/00DA,Leeds City Council,Adult Social Care,Services For Adults Under 65 Mental/Dis,Third Party Payments,Nursing Home,570,05-Jun-13,1306-00832,1402.24,R,Brandon House
http://statistics.data.gov.uk/doc/local-authority/00DA,Leeds City Council,Adult Social Care,Services For Older People - 65 And Over,Third Party Payments,Nursing Home,570,05-Jun-13,1306-00833,30084.16,R,Brandon House
http://statistics.data.gov.uk/doc/local-authority/00DA,Leeds City Council,Adult Social Care,Services For Older People - 65 And Over,Third Party Payments,Residential,580,05-Jun-13,1306-00834,1713.3,R,Brandon House
http://statistics.data.gov.uk/doc/local-authority/00DA,Leeds City Council,City Development,Economic Development  ,Supplies and Services,Operational Materials,205,09-May-13,1306-00835,900,R,Bre
http://statistics.data.gov.uk/doc/local-authority/00DA,Leeds City Council,Adult Social Care,Services For Older People Under 65 P/Dis,Transfer Payments,Direct Payments,626,05-Jun-13,1306-00836,555,R,REDACTED PERSONAL DATA
http://statistics.data.gov.uk/doc/local-authority/00DA,Leeds City Council,Adult Social Care,Services For Older People - 65 And Over,Transfer Payments,Personalised Budgets,627,05-Jun-13,1306-00837,1304.04,R,REDACTED PERSONAL DATA
http://statistics.data.gov.uk/doc/local-authority/00DA,Leeds City Council,Adult Social Care,Services For Older People Under 65 P/Dis,Transfer Payments,Personalised Budgets,627,05-Jun-13,1306-00838,940.52,R,REDACTED PERSONAL DATA
http://statistics.data.gov.uk/doc/local-authority/00DA,Leeds City Council,Adult Social Care,Services For Adults Under 65 Mental/Dis,Transfer Payments,Personalised Budgets,627,05-Jun-13,1306-00839,1094,R,REDACTED PERSONAL DATA
http://statistics.data.gov.uk/doc/local-authority/00DA,Leeds City Council,Adult Social Care,Services For Older People - 65 And Over,Transfer Payments,Direct Payments,626,05-Jun-13,1306-00840,2065.13,R,REDACTED PERSONAL DATA
http://statistics.data.gov.uk/doc/local-authority/00DA,Leeds City Council,Adult Social Care,Services For Older People - 65 And Over,Transfer Payments,Direct Payments,626,05-Jun-13,1306-00841,1778.32,R,REDACTED PERSONAL DATA
http://statistics.data.gov.uk/doc/local-authority/00DA,Leeds City Council,Adult Social Care,Services For Older People - 65 And Over,Transfer Payments,Personalised Budgets,627,05-Jun-13,1306-00842,1596.64,R,REDACTED PERSONAL DATA
http://statistics.data.gov.uk/doc/local-authority/00DA,Leeds City Council,Central & Corporate,Commercial Services Trading Services,Transport,Vehicle Spares,345,06-Jun-13,1306-00843,428.81,R,Britannia Cooling Ltd
http://statistics.data.gov.uk/doc/local-authority/00DA,Leeds City Council,Central & Corporate,Commercial Services Trading Services,Transport,Vehicle Spares,345,06-Jun-13,1306-00844,643.6,R,Britannia Cooling Ltd
http://statistics.data.gov.uk/doc/local-authority/00DA,Leeds City Council,Adult Social Care,Services For Adults Under 65 Mental/Dis,Third Party Payments,Residential,580,05-Jun-13,1306-00845,1900,R,Britannia Nursing Home
http://statistics.data.gov.uk/doc/local-authority/00DA,Leeds City Council,Adult Social Care,Services For Older People Under 65 P/Dis,Third Party Payments,Residential,580,05-Jun-13,1306-00846,1968,R,Britannia Nursing Home
http://statistics.data.gov.uk/doc/local-authority/00DA,Leeds City Council,Central & Corporate,Commercial Services Trading Services,Supplies and Services,Operational Materials,205,19-Jun-13,1306-00847,457.73,R,British Electrical & Manufacturing
http://statistics.data.gov.uk/doc/local-authority/00DA,Leeds City Council,Adult Social Care,Services For Adults Under 65 Mental/Dis,Premises,Gas,123,20-Jun-13,1306-00848,1192.87,R,British Gas
http://statistics.data.gov.uk/doc/local-authority/00DA,Leeds City Council,Childrens Services,Learning Skills & Universal,Premises,Electricity,124,27-Jun-13,1306-00849,1358.63,R,British Gas Business
http://statistics.data.gov.uk/doc/local-authority/00DA,Leeds City Council,Environment & Housing,East North East,Capital,Construction,3,11-Jun-13,1306-00850,2900,C,British Gas Services Ltd
http://statistics.data.gov.uk/doc/local-authority/00DA,Leeds City Council,Environment & Housing,East North East,Capital,Construction,3,11-Jun-13,1306-00851,3507,C,British Gas Services Ltd
http://statistics.data.gov.uk/doc/local-authority/00DA,Leeds City Council,Environment & Housing,South South East,Capital,Construction,3,25-Jun-13,1306-00852,1523.42,C,British Gas Services Ltd
http://statistics.data.gov.uk/doc/local-authority/00DA,Leeds City Council,Environment & Housing,South South East,Capital,Construction,3,25-Jun-13,1306-00853,2046.17,C,British Gas Services Ltd
http://statistics.data.gov.uk/doc/local-authority/00DA,Leeds City Council,Environment & Housing,South South East,Capital,Construction,3,25-Jun-13,1306-00854,2153.26,C,British Gas Services Ltd
http://statistics.data.gov.uk/doc/local-authority/00DA,Leeds City Council,Environment & Housing,South South East,Capital,Construction,3,25-Jun-13,1306-00855,2183.26,C,British Gas Services Ltd
http://statistics.data.gov.uk/doc/local-authority/00DA,Leeds City Council,Environment & Housing,South South East,Capital,Construction,3,28-Jun-13,1306-00856,2220.08,C,British Gas Services Ltd
http://statistics.data.gov.uk/doc/local-authority/00DA,Leeds City Council,Environment & Housing,South South East,Capital,Construction,3,25-Jun-13,1306-00857,2321.65,C,British Gas Services Ltd
http://statistics.data.gov.uk/doc/local-authority/00DA,Leeds City Council,Environment & Housing,South South East,Capital,Construction,3,25-Jun-13,1306-00858,3334.4,C,British Gas Services Ltd
http://statistics.data.gov.uk/doc/local-authority/00DA,Leeds City Council,Environment & Housing,South South East,Capital,Construction,3,25-Jun-13,1306-00859,4189.51,C,British Gas Services Ltd
http://statistics.data.gov.uk/doc/local-authority/00DA,Leeds City Council,Environment & Housing,South South East,Capital,Construction,3,25-Jun-13,1306-00860,4875.39,C,British Gas Services Ltd
http://statistics.data.gov.uk/doc/local-authority/00DA,Leeds City Council,Environment & Housing,West North West,Capital,Construction,3,28-Jun-13,1306-00861,3079.44,C,British Gas Services Ltd
http://statistics.data.gov.uk/doc/local-authority/00DA,Leeds City Council,Environment & Housing,West North West,Capital,Construction,3,28-Jun-13,1306-00862,3266.08,C,British Gas Services Ltd
http://statistics.data.gov.uk/doc/local-authority/00DA,Leeds City Council,Environment & Housing,West North West,Capital,Construction,3,28-Jun-13,1306-00863,7753.65,C,British Gas Services Ltd
http://statistics.data.gov.uk/doc/local-authority/00DA,Leeds City Council,City Development,Economic Development,Supplies and Services,Other Hired And Contracted Services,265,17-Jun-13,1306-00864,22971,R,British Humanist Association
http://statistics.data.gov.uk/doc/local-authority/00DA,Leeds City Council,Other Education Services,Primary Schools,Capital,Other Costs,7,28-Jun-13,1306-00865,1758.49,C,British Telecom
http://statistics.data.gov.uk/doc/local-authority/00DA,Leeds City Council,Other Education Services,Private Finance Initiative,Capital,Construction,3,28-Jun-13,1306-00866,3010.22,C,British Telecom
http://statistics.data.gov.uk/doc/local-authority/00DA,Leeds City Council,Adult Social Care,Social Services Support Services,Supplies and Services,Telephones,213,28-Jun-13,1306-00867,27825.88,R,British Telecom Bt/Bacs
http://statistics.data.gov.uk/doc/local-authority/00DA,Leeds City Council,Central & Corporate,Information Technology,Supplies and Services,Telephones,213,17-Jun-13,1306-00868,76288.73,R,British Telecom Bt/Bacs
http://statistics.data.gov.uk/doc/local-authority/00DA,Leeds City Council,City Development,Support Services,Supplies and Services,Telephones,213,28-Jun-13,1306-00869,9648,R,British Telecom Bt/Bacs
http://statistics.data.gov.uk/doc/local-authority/00DA,Leeds City Council as Accountable Body,Social Services Pooled Budgets,Jcs For People With Learning Disabilitie,Third Party Payments,Residential,580,05-Jun-13,1306-00870,30429.87,R,Broad Lane
http://statistics.data.gov.uk/doc/local-authority/00DA,Leeds City Council,Adult Social Care,Services For Older People - 65 And Over,Third Party Payments,Residential,580,05-Jun-13,1306-00871,1039.24,R,Broadway Lodge
http://statistics.data.gov.uk/doc/local-authority/00DA,Leeds City Council,Central & Corporate Functions,Commercial Services Trading Services  ,Supplies and Services,Operational Furniture And Equipment,203,08-May-13,1306-00872,3960,R,Brodex Systems Ltd
http://statistics.data.gov.uk/doc/local-authority/00DA,Leeds City Council,Adult Social Care,Services For Adults Under 65 Mental/Dis,Third Party Payments,Residential,580,05-Jun-13,1306-00873,1443.32,R,Bronte Park Nursing Home
http://statistics.data.gov.uk/doc/local-authority/00DA,Leeds City Council,Adult Social Care,Services For Older People - 65 And Over,Third Party Payments,Residential,580,05-Jun-13,1306-00874,1206.76,R,Brookfield Care Home
http://statistics.data.gov.uk/doc/local-authority/00DA,Leeds City Council,Adult Social Care,Services For Older People - 65 And Over,Third Party Payments,Nursing Home,570,05-Jun-13,1306-00875,1263.44,R,Brooklands Residential Home
http://statistics.data.gov.uk/doc/local-authority/00DA,Leeds City Council,Adult Social Care,Services For Older People - 65 And Over,Third Party Payments,Residential Care Dementia,571,05-Jun-13,1306-00876,3711.92,R,Brooklands Residential Home
http://statistics.data.gov.uk/doc/local-authority/00DA,Leeds City Council,Adult Social Care,Services For Older People - 65 And Over,Third Party Payments,Residential,580,05-Jun-13,1306-00877,10348.07,R,Brooklands Residential Home
http://statistics.data.gov.uk/doc/local-authority/00DA,Leeds City Council as Accountable Body,Social Services Pooled Budgets,Jcs For People With Learning Disabilitie,Third Party Payments,Residential,580,05-Jun-13,1306-00878,4109.56,R,Brookvale (For The Mentally
http://statistics.data.gov.uk/doc/local-authority/00DA,Leeds City Council as Accountable Body,Social Services Pooled Budgets,Jcs For People With Learning Disabilitie,Third Party Payments,Residential,580,05-Jun-13,1306-00879,1850.72,R,Brothers Of Charity
http://statistics.data.gov.uk/doc/local-authority/00DA,Leeds City Council,Childrens Services,Learning Skills & Universal,Third Party Payments,Services Rendered By Voluntary Sector,505,06-Jun-13,1306-00880,513.85,R,Brownberrie Lane Pre-School
